Workbook

Sheet Nómina
G1: Diligencie los siguientes valores de referencia: | O1: Periodo de pago
G2: Salario mínimo | J2: 908526 | O2: Abril 01 2021 - Abril 30 2021
G3: Auxilio de transporte | J3: 106454 | O3: Fecha de liquidación
G4: ¿Está exonerado del pago de aportes? | J4: Si | O4: 2021-04-30
B6: Nombre del empleado | C6: Devengado | K6: Deducciones | P6: Neto pagado | Q6: Firma del empleado
C7: Salario básico | D7: Días liquidados | E7: Salario devengado | F7: Horas extras | G7: Recargos nocturnos | H7: Trabajo dominical y festivo | I7: Auxilio de transporte | J7: Total devengado | K7: Salud | L7: Pensión | M7: Fondo de solidaridad pensional | N7: Retención en la fuente | O7: Otras deducciones
B8: Pedro | C8: 1200000 | D8: 30 | E8: =(C8/30)*D8 -> 1200000 | F8: 150000 | G8: 85000 | H8: 170000 | I8: =IF(C8>$J$2*2,0,($J$3/30*D8)) -> 106454 | J8: =SUM(E8:I8) -> 1711454 | K8: =(J8-I8)*0.04 -> 64200 | L8: =(J8-I8)*0.04 -> 64200 | M8: =(J8-I8)*(IF(AND(((J8-I8)/$J$2)>=4,((J8-I8)/$J$2)<16),1,IF(AND(((J8-I8)/$J$2)>=16,((J8-I8)/$J$2)<=17),1.2,IF(AND(((J8-I8)/$J$2)>17,((J8-I8)/$J$2)<=18),1.4,IF(AND(((J8-I8)/$J$2)>18,((J8-I8)/$J$2)<=19),1.6,IF(AND(((J8-I8)/$J$2)>19,((J8-I8)/$J$2)<=20),1.8,IF(((J8-I8)/$J$2)>20,2,0))))))/100) -> 0 | N8: 0 | O8: 0 | P8: =J8-K8-L8-M8-N8-O8 -> 1583054
B9: María | C9: 6000000 | D9: 30 | E9: 6000000 | F9: 180000 | I9: 0 | J9: 6180000 | K9: 247200 | L9: 247200 | M9: 61800 | P9: 5623800
B10: Oscar | C10: 10000000 | D10: 30 | E10: 10000000 | F10: 0 | I10: 0 | J10: 10000000 | K10: 400000 | L10: 400000 | M10: 100000 | P10: 9100000
B11: Angela | C11: 1400000 | D11: 30 | E11: 1400000 | F11: 120000 | I11: 106454 | J11: 1626454 | K11: 60800 | L11: 60800 | M11: 0 | P11: 1504854
B12: Arturo | C12: 1280000 | D12: 30 | E12: 1280000 | F12: 0 | I12: 106454 | J12: 1386454 | K12: 51200 | L12: 51200 | M12: 0 | P12: 1284054
B13: Angie | C13: 1600000 | D13: 15 | E13: 800000 | F13: 0 | I13: 53227 | J13: 853227 | K13: 32000 | L13: 32000 | M13: 0 | P13: 789227
B14: Camila | C14: 900000 | D14: 30 | E14: 900000 | F14: 0 | I14: 106454 | J14: 1006454 | K14: 36000 | L14: 36000 | M14: 0 | P14: 934454
B15: Alejandra | C15: 900000 | D15: 30 | E15: 900000 | F15: 0 | I15: 106454 | J15: 1006454 | K15: 36000 | L15: 36000 | M15: 0 | P15: 934454
B16: Cleopatra | C16: 900000 | D16: 30 | E16: 900000 | F16: 130000 | I16: 106454 | J16: 1136454 | K16: 41200 | L16: 41200 | M16: 0 | P16: 1054054
B17: Juana de Arco | C17: 900000 | D17: 20 | E17: 600000 | F17: 0 | I17: 70969.33333 | J17: 670969.3333 | K17: 24000 | L17: 24000 | M17: 0 | P17: 622969.3333
B18: Magda | C18: 10000000 | D18: 30 | E18: 10000000 | F18: 0 | I18: 0 | J18: 10000000 | K18: 400000 | L18: 400000 | M18: 100000 | P18: 9100000
B19: Inés | C19: 1000000 | D19: 30 | E19: 1000000 | F19: 210000 | I19: 106454 | J19: 1316454 | K19: 48400 | L19: 48400 | M19: 0 | P19: 1219654
B20: Clara | C20: 1000000 | D20: 30 | E20: 1000000 | F20: 0 | I20: 106454 | J20: 1106454 | K20: 40000 | L20: 40000 | M20: 0 | P20: 1026454
B21: César | C21: 1000000 | D21: 30 | E21: 1000000 | F21: 0 | I21: 106454 | J21: 1106454 | K21: 40000 | L21: 40000 | M21: 0 | P21: 1026454
B22: Susana | C22: 1000000 | D22: 10 | E22: 333333.3333 | F22: 60000 | I22: 35484.66667 | J22: 428818 | K22: 15733.33333 | L22: 15733.33333 | M22: 0 | P22: 397351.3333
B23: Totales | E23: =SUM(E8:E22) -> 37313333.33 | F23: 850000 | G23: 85000 | H23: 170000 | I23: 1117767 | J23: 39536100.33 | K23: 1536733.333 | L23: 1536733.333 | M23: 261800 | N23: 0 | O23: 0 | P23: 36200833.67
B25: =ROUND(P23,0) -> 36200834
B28: Comprobante de Pago Nº: | J28: Provisiones de nómina a cargo del empleador.
B30: Fecha de | C30: =O4 -> 2021-04-30 | J30: Aportes a pensión | M30: =(J23-I23)*0.12 -> 4610200
J31: Aportes a salud | M31: =IF(J4="Si",(SUMIF(J8:J22,">"&J2*10,J8:J22))*0.085,(J23-I23)*0.085) -> 1700000
B32: Observaciones | J32: Aportes a riesgos laborales | M32: =(J23-I23)*0.00522 -> 200543.7
J33: Sena | M33: =IF(J4="Si",(SUMIF(J8:J22,">"&J2*10,J8:J22))*0.02,(J23-I23)*0.02) -> 400000
J34: Icbf | M34: =IF(J4="Si",(SUMIF(J8:J22,">"&J2*10,J8:J22))*0.03,(J23-I23)*0.03) -> 600000
J35: Cajas de compensación | M35: =(J23-I23)*0.04 -> 1536733.333
J36: Prima de servicios | M36: =J23*0.0833 -> 3293357.158
B37: Elaborador Por: | C37: Revisado Por: | G37: Aprobado Por: | J37: Cesantía | M37: =J23*0.0833 -> 3293357.158
J38: Intereses sobre cesantías | M38: =M37*0.12 -> 395202.8589
J39: Provisón de vacaciones | M39: =(J23-F23-H23-I23)*0.0417 -> 1559510.5
J40: Total provisiones | M40: =SUM(M30:M39) -> 17588904.71

Sheet Horas extras y demás
B1: Horas extrsa, recargos nocturnos, dominicales y festivos
B2: Seleccione el trabajador a liquidar: | C2: Pedro | D2: Sueldo de | E2: =C2 -> Pedro | F2: =VLOOKUP(E2,'Nómina'!B8:C22,2,0) -> 1200000
B3: Concepto | C3: Porcentaje de recargo | D3: Factor | E3: Valor de la hora con el recargo | F3: Ingrese las horas trabajadas | G3: Valor total
B4: Recargo Nocturno | C4: 0.35 | D4: 1.35 | E4: =($F$2/240)*D4 -> 6750 | F4: 2 | G4: =E4*F4 -> 13500
B5: Hora extra diurna | C5: 0.25 | D5: 1.25 | E5: =($F$2/240)*C5 -> 1250 | F5: 5 | G5: 6250
B6: Hora extra nocturna | C6: 0.75 | D6: 1.75 | E6: 3750 | F6: 2 | G6: 7500
B7: Hora Ordinaria dominical o festivo | C7: 0.75 | D7: 1.75 | E7: 3750 | F7: 1 | G7: 3750
B8: Hora extra diurna dominical o festivo | C8: 1 | D8: 2 | E8: 5000 | F8: 3 | G8: 15000
B9: Hora extra nocturna dominical o festivo | C9: 1.5 | D9: 2.5 | E9: 7500 | F9: 4 | G9: 30000
F10: Subtotal trabajo extra | G10: =G5+G6 -> 13750
F11: Subtotal recargo nocturno | G11: =G4 -> 13500
F12: Subtotal trabajo dominical y festivo | G12: =G7+G8+G9 -> 48750

Sheet Listas y Controles
A1: Horas | B1: Minutos | C1: Jornada Ordinaria | E1: Jornada | J1: Valor Hora Ordinaria | K1: Recargo Hora Nocturna | L1: Recargo Hora Extra Diurna | M1: Recargo Hora Extra Nocturna | O1: Límite Horas Extras X Día
A2: 00 | B2: 00 | C2: 1 | E2: IJD | F2: 6 | G2: 0 | H2: =((F2*60)+G2)/60 -> 6 | J2: 3000 | K2: 0.35 | L2: 0.25 | M2: 0.75 | O2: 2
A3: 01 | B3: 05 | C3: 2 | E3: FJD | F3: 20 | G3: 59 | H3: 20.98333333
A4: 02 | B4: 10 | C4: 3
A5: 03 | B5: 15 | C5: 4
A6: 04 | B6: 20 | C6: 5
A7: 05 | B7: 25 | C7: 6
A8: 06 | B8: 30 | C8: 7
A9: 07 | B9: 35 | C9: 8
A10: 08 | B10: 40 | C10: 9
A11: 09 | B11: 45 | C11: 10
A12: 10 | B12: 50 | C12: 11
A13: 11 | B13: 55 | C13: 12
A14: 12 | B14: 59 | C14: 13
A15: 13 | B15: 00 | C15: 14
A16: 14 | B16: N/A | C16: 15
A17: 15 | C17: 16
A18: 16 | C18: 17
A19: 17 | C19: 18
A20: 18 | C20: 19
A21: 19 | C21: 20
A22: 20 | C22: 21
A23: 21 | C23: 22
A24: 22 | C24: 23
A25: 23 | C25: 24
A26: 00
A27: N/A

Sheet Asignación de Turnos
A1: CEDULA | B1: NOMBRE | C1: APELLIDOS | D1: JORNADA ORDINARIA | E1: HORA DE INGRESO | H1: HORA DE DESCANSO | K1: HORA DE REGRESO | N1: HORA DE SALIDA | Q1: I | R1: D | S1: R | T1: S | U1: Total horas Laboradas | V1: Horas Ordinarias Laboradas | Y1: Horas Extras Laboradas | AB1: Ingreso a Descanso | AH1: Descanso a Regreso | AK1: Regreso a Salida | AQ1: Ingreso a Salida (Para turnos sin descanso) | AW1: $ trabajo nocturno | AX1: $ trabajo extra diurno | AY1: $ trabajo extra nocturno | AZ1: Valor total del trabajo extra y/o nocturno | BA1: Mensaje
E2: hh | G2: mm | H2: hh | J2: mm | K2: hh | M2: mm | N2: hh | P2: mm | V2: Total | W2: Diurnas | X2: Nocturnas | Y2: Total | Z2: Diurnas | AA2: Nocturnas | AB2: Laboradas | AC2: Diurnas | AD2: Nocturnas | AE2: Extras | AF2: Diurnas | AG2: Nocturnas | AH2: Descanzadas | AI2: Diurnas | AJ2: Nocturnas | AK2: Laboradas | AL2: Diurnas | AM2: Nocturnas | AN2: Extras | AO2: Diurnas | AP2: Nocturnas | AQ2: Laboradas | AR2: Diurnas | AS2: Nocturnas | AT2: Extras | AU2: Diurnas | AV2: Nocturnas
A3: 12345678 | B3: Jaime | C3: Barragan | D3: 8 | E3: 08 | F3: : | G3: 00 | H3: 12 | I3: : | J3: 00 | K3: 14 | L3: : | M3: 00 | N3: 22 | O3: : | P3: 00 | Q3: =((IF(VALUE(LEFT(E3,1))=0,VALUE(RIGHT(E3,1)),VALUE(E3))*60)+IF(VALUE(LEFT(G3,1))=0,VALUE(RIGHT(G3,1)),VALUE(G3)))/60 -> 8 | R3: =((IF(VALUE(LEFT(H3,1))=0,VALUE(RIGHT(H3,1)),VALUE(H3))*60)+IF(VALUE(LEFT(J3,1))=0,VALUE(RIGHT(J3,1)),VALUE(J3)))/60 -> 12 | S3: =((IF(VALUE(LEFT(K3,1))=0,VALUE(RIGHT(K3,1)),VALUE(K3))*60)+IF(VALUE(LEFT(M3,1))=0,VALUE(RIGHT(M3,1)),VALUE(M3)))/60 -> 14 | T3: =((IF(VALUE(LEFT(N3,1))=0,VALUE(RIGHT(N3,1)),VALUE(N3))*60)+IF(VALUE(LEFT(P3,1))=0,VALUE(RIGHT(P3,1)),VALUE(P3)))/60 -> 22 | U3: =V3+Y3 -> 12 | V3: =W3+X3 -> 8 | W3: =ROUND(AC3-AF3+AL3-AO3+AR3-AU3,1) -> 8 | X3: 0 | Y3: =Z3+AA3 -> 4 | Z3: =ROUND(AF3+AO3+AU3,1) -> 3 | AA3: 1 | AB3: =IF(AND(H3<>"N/A",K3<>"N/A"),IF(H3>E3,H3-E3,IF(H3<E3,24-E3+H3)),0) -> 4 | AC3: =IF(AND(H3<>"N/A",K3<>"N/A"),IF(R3>Q3,IF(AND(Q3>=IJD,R3<=FJD),R3-Q3,IF(AND(Q3<IJD,R3>FJD),FJD-IJD,IF(AND(Q3>=IJD,Q3<FJD,R3<24),FJD-Q3,IF(AND(Q3<IJD,R3>IJD,R3<FJD),R3-IJD,0)))),IF(R3<Q3,IF(AND(Q3>IJD,Q3<FJD,R3>=IJD,R3<FJD),FJD-Q3+R3-IJD,IF(AND(Q3>=IJD,Q3<FJD,R3<IJD),FJD-Q3,IF(AND(Q3>FJD,R3>IJD,R3<FJD),R3-IJD,IF(AND(Q3>FJD,R3>FJD),16,IF(AND(Q3<IJD,R3<IJD),16,0))))))),0) -> 4 | AD3: =IF(AND(H3<>"N/A",K3<>"N/A"),AB3-AC3,0) -> 0 | AE3: =IF(AND(H3<>"N/A",K3<>"N/A"),IF(AB3>$D3,AB3-$D3,0),0) -> 0 | AF3: =IF(AND(H3<>"N/A",K3<>"N/A"),IF(AE3=0,0,IF(R3>IF(Q3+AB3-AE3>24,(Q3+AB3-AE3)-24,Q3+AB3-AE3),IF(AND(IF(Q3+AB3-AE3>24,(Q3+AB3-AE3)-24,Q3+AB3-AE3)>=IJD,R3<=FJD),R3-IF(Q3+AB3-AE3>24,(Q3+AB3-AE3)-24,Q3+AB3-AE3),IF(AND(IF(Q3+AB3-AE3>24,(Q3+AB3-AE3)-24,Q3+AB3-AE3)<IJD,R3>FJD),FJD-IJD,IF(AND(IF(Q3+AB3-AE3>24,(Q3+AB3-AE3)-24,Q3+AB3-AE3)>=IJD,IF(Q3+AB3-AE3>24,(Q3+AB3-AE3)-24,Q3+AB3-AE3)<FJD,R3<24),FJD-IF(Q3+AB3-AE3>24,(Q3+AB3-AE3)-24,Q3+AB3-AE3),IF(AND(IF(Q3+AB3-AE3>24,(Q3+AB3-AE3)-24,Q3+AB3-AE3)<IJD,R3>IJD,R3<FJD),R3-IJD,0)))),IF(R3<IF(Q3+AB3-AE3>24,(Q3+AB3-AE3)-24,Q3+AB3-AE3),IF(AND(IF(Q3+AB3-AE3>24,(Q3+AB3-AE3)-24,Q3+AB3-AE3)>IJD,IF(Q3+AB3-AE3>24,(Q3+AB3-AE3)-24,Q3+AB3-AE3)<FJD,R3>=IJD,R3<FJD),FJD-IF(Q3+AB3-AE3>24,(Q3+AB3-AE3)-24,Q3+AB3-AE3)+R3-IJD,IF(AND(IF(Q3+AB3-AE3>24,(Q3+AB3-AE3)-24,Q3+AB3-AE3)>=IJD,IF(Q3+AB3-AE3>24,(Q3+AB3-AE3)-24,Q3+AB3-AE3)<FJD,R3<IJD),FJD-IF(Q3+AB3-AE3>24,(Q3+AB3-AE3)-24,Q3+AB3-AE3),IF(AND(IF(Q3+AB3-AE3>24,(Q3+AB3-AE3)-24,Q3+AB3-AE3)>FJD,R3>IJD,R3<FJD),R3-IJD,IF(AND(IF(Q3+AB3-AE3>24,(Q3+AB3-AE3)-24,Q3+AB3-AE3)>FJD,R3>FJD),16,IF(AND(IF(Q3+AB3-AE3>24,(Q3+AB3-AE3)-24,Q3+AB3-AE3)<IJD,R3<IJD),16,0)))))))),0) -> 0 | AG3: =IF(AND(H3<>"N/A",K3<>"N/A"),AE3-AF3,0) -> 0 | AH3: =IF(AND(H3<>"N/A",K3<>"N/A"),IF(S3>R3,S3-R3,IF(S3<R3,24-R3+S3)),0) -> 2 | AI3: =IF(AND(H3<>"N/A",K3<>"N/A"),IF(S3>R3,IF(AND(R3>=IJD,S3<FJD),S3-R3,IF(AND(R3>=IJD,S3>FJD),IF(R3>FJD,R3-FJD,FJD-R3),IF(AND(R3<IJD,S3>=IJD,S3>FJD),S3-IJD-(S3-FJD),IF(AND(R3<IJD,S3>=IJD),S3-IJD,IF(AND(R3<IJD,S3<IJD),0))))),IF(S3<R3,IF(AND(R3>=FJD,S3<=IJD),0,IF(AND(R3<FJD,S3<=IJD),FJD-R3,IF(AND(R3>FJD,S3>IJD),S3-IJD,IF(AND(R3<FJD,S3>IJD),FJD-R3+S3-IJD)))))),0) -> 2 | AJ3: =IF(AND(H3<>"N/A",K3<>"N/A"),AH3-AI3,0) -> 0 | AK3: =IF(AND(H3<>"N/A",K3<>"N/A"),IF(T3>S3,T3-S3,IF(T3<S3,24-S3+T3)),0) -> 8 | AL3: =IF(AND(H3<>"N/A",K3<>"N/A"),IF(T3>S3,IF(AND(S3>=IJD,T3<=FJD),T3-S3,IF(AND(S3<IJD,T3>FJD),FJD-IJD,IF(AND(S3>=IJD,S3<FJD,T3<24),FJD-S3,IF(AND(S3<IJD,T3>IJD,T3<FJD),T3-IJD,0)))),IF(T3<S3,IF(AND(S3>IJD,S3<FJD,T3>=IJD,T3<FJD),FJD-S3+T3-IJD,IF(AND(S3>=IJD,S3<FJD,T3<IJD),FJD-S3,IF(AND(S3>FJD,T3>IJD,T3<FJD),T3-IJD,IF(AND(S3>FJD,T3>FJD),16,IF(AND(S3<IJD,T3<IJD),16,0))))))),0) -> 6.983333333 | AM3: =IF(AND(H3<>"N/A",K3<>"N/A"),AK3-AL3,0) -> 1.016666667 | AN3: =IF(AND(H3<>"N/A",K3<>"N/A"),IF(AE3>0,AK3,IF(AK3+AB3>$D3,AK3+AB3-$D3,0)),0) -> 4 | AO3: =IF(AND(H3<>"N/A",K3<>"N/A"),IF(AN3=0,0,IF(T3>IF(S3+AK3-AN3>24,(S3+AK3-AN3)-24,S3+AK3-AN3),IF(AND(IF(S3+AK3-AN3>24,(S3+AK3-AN3)-24,S3+AK3-AN3)>=IJD,T3<=FJD),T3-IF(S3+AK3-AN3>24,(S3+AK3-AN3)-24,S3+AK3-AN3),IF(AND(IF(S3+AK3-AN3>24,(S3+AK3-AN3)-24,S3+AK3-AN3)<IJD,T3>FJD),FJD-IJD,IF(AND(IF(S3+AK3-AN3>24,(S3+AK3-AN3)-24,S3+AK3-AN3)>=IJD,IF(S3+AK3-AN3>24,(S3+AK3-AN3)-24,S3+AK3-AN3)<FJD,T3<24),FJD-IF(S3+AK3-AN3>24,(S3+AK3-AN3)-24,S3+AK3-AN3),IF(AND(IF(S3+AK3-AN3>24,(S3+AK3-AN3)-24,S3+AK3-AN3)<IJD,T3>IJD,T3<FJD),T3-IJD,0)))),IF(T3<IF(S3+AK3-AN3>24,(S3+AK3-AN3)-24,S3+AK3-AN3),IF(AND(IF(S3+AK3-AN3>24,(S3+AK3-AN3)-24,S3+AK3-AN3)>IJD,IF(S3+AK3-AN3>24,(S3+AK3-AN3)-24,S3+AK3-AN3)<FJD,T3>=IJD,T3<FJD),FJD-IF(S3+AK3-AN3>24,(S3+AK3-AN3)-24,S3+AK3-AN3)+T3-IJD,IF(AND(IF(S3+AK3-AN3>24,(S3+AK3-AN3)-24,S3+AK3-AN3)>=IJD,IF(S3+AK3-AN3>24,(S3+AK3-AN3)-24,S3+AK3-AN3)<FJD,T3<IJD),FJD-IF(S3+AK3-AN3>24,(S3+AK3-AN3)-24,S3+AK3-AN3),IF(AND(IF(S3+AK3-AN3>24,(S3+AK3-AN3)-24,S3+AK3-AN3)>FJD,T3>IJD,T3<FJD),T3-IJD,IF(AND(IF(S3+AK3-AN3>24,(S3+AK3-AN3)-24,S3+AK3-AN3)>FJD,T3>FJD),16,IF(AND(IF(S3+AK3-AN3>24,(S3+AK3-AN3)-24,S3+AK3-AN3)<IJD,T3<IJD),16,0)))))))),0) -> 2.983333333 | AP3: =IF(AND(H3<>"N/A",K3<>"N/A"),AN3-AO3,0) -> 1.016666667 | AQ3: =IF(AND(H3="N/A",K3="N/A"),IF(T3>Q3,T3-Q3,IF(T3<Q3,24-Q3+T3)),0) -> 0 | AR3: =IF(AND(H3="N/A",K3="N/A"),IF(T3>Q3,IF(AND(Q3>=IJD,T3<=FJD),T3-Q3,IF(AND(Q3<IJD,T3>FJD),FJD-IJD,IF(AND(Q3>=IJD,Q3<FJD,T3<24),FJD-Q3,IF(AND(Q3<IJD,T3>IJD,T3<FJD),T3-IJD,0)))),IF(T3<Q3,IF(AND(Q3>IJD,Q3<FJD,T3>=IJD,T3<FJD),FJD-Q3+T3-IJD,IF(AND(Q3>=IJD,Q3<FJD,T3<IJD),FJD-Q3,IF(AND(Q3>FJD,T3>IJD,T3<FJD),T3-IJD,IF(AND(Q3>FJD,T3>FJD),16,IF(AND(Q3<IJD,T3<IJD),16,0))))))),0) -> 0 | AS3: =AQ3-AR3 -> 0 | AT3: =IF(AND(H3="N/A",K3="N/A"),IF(AQ3>$D3,AQ3-$D3,0),0) -> 0 | AU3: =IF(AND(H3="N/A",K3="N/A"),IF(AT3=0,0,IF(T3>IF(Q3+AQ3-AT3>24,(Q3+AQ3-AT3)-24,Q3+AQ3-AT3),IF(AND(IF(Q3+AQ3-AT3>24,(Q3+AQ3-AT3)-24,Q3+AQ3-AT3)>=IJD,T3<=FJD),T3-IF(Q3+AQ3-AT3>24,(Q3+AQ3-AT3)-24,Q3+AQ3-AT3),IF(AND(IF(Q3+AQ3-AT3>24,(Q3+AQ3-AT3)-24,Q3+AQ3-AT3)<IJD,T3>FJD),FJD-IJD,IF(AND(IF(Q3+AQ3-AT3>24,(Q3+AQ3-AT3)-24,Q3+AQ3-AT3)>=IJD,IF(Q3+AQ3-AT3>24,(Q3+AQ3-AT3)-24,Q3+AQ3-AT3)<FJD,T3<24),FJD-IF(Q3+AQ3-AT3>24,(Q3+AQ3-AT3)-24,Q3+AQ3-AT3),IF(AND(IF(Q3+AQ3-AT3>24,(Q3+AQ3-AT3)-24,Q3+AQ3-AT3)<IJD,T3>IJD,T3<FJD),T3-IJD,0)))),IF(T3<IF(Q3+AQ3-AT3>24,(Q3+AQ3-AT3)-24,Q3+AQ3-AT3),IF(AND(IF(Q3+AQ3-AT3>24,(Q3+AQ3-AT3)-24,Q3+AQ3-AT3)>IJD,IF(Q3+AQ3-AT3>24,(Q3+AQ3-AT3)-24,Q3+AQ3-AT3)<FJD,T3>=IJD,T3<FJD),FJD-IF(Q3+AQ3-AT3>24,(Q3+AQ3-AT3)-24,Q3+AQ3-AT3)+T3-IJD,IF(AND(IF(Q3+AQ3-AT3>24,(Q3+AQ3-AT3)-24,Q3+AQ3-AT3)>=IJD,IF(Q3+AQ3-AT3>24,(Q3+AQ3-AT3)-24,Q3+AQ3-AT3)<FJD,T3<IJD),FJD-IF(Q3+AQ3-AT3>24,(Q3+AQ3-AT3)-24,Q3+AQ3-AT3),IF(AND(IF(Q3+AQ3-AT3>24,(Q3+AQ3-AT3)-24,Q3+AQ3-AT3)>FJD,T3>IJD,T3<FJD),T3-IJD,IF(AND(IF(Q3+AQ3-AT3>24,(Q3+AQ3-AT3)-24,Q3+AQ3-AT3)>FJD,T3>FJD),16,IF(AND(IF(Q3+AQ3-AT3>24,(Q3+AQ3-AT3)-24,Q3+AQ3-AT3)<IJD,T3<IJD),16,0)))))))),0) -> 0 | AV3: =IF(AND(H3="N/A",K3="N/A"),AT3-AU3,0) -> 0 | AW3: =X3*((1+RECARGONOCTURNA)*VALORHORAORDINARIA) -> 0 | AX3: =Z3*((1+RECARGOEXTRADIURNA)*VALORHORAORDINARIA) -> 11250 | AY3: =AA3*((1+RECARGOEXTRANOCTURNA)*VALORHORAORDINARIA) -> 5250 | AZ3: =SUM(AW3:AY3) -> 16500 | BA3: =IF(Y3>2,"Excedio el límite de horas Extras en " & Y3-LIMITEHORASEXTRAXDIA,"") -> Excedio el límite de horas Extras en 2
A4: 92408250 | B4: Pedro | C4: Cano | D4: 8 | E4: 08 | F4: : | G4: 00 | H4: 12 | I4: : | J4: 00 | K4: 14 | L4: : | M4: 00 | N4: 20 | O4: : | P4: 00 | Q4: 8 | R4: 12 | S4: 14 | T4: 20 | U4: 10 | V4: 8 | W4: =ROUND(AC4-AF4+AL4-AO4+AR4-AU4,1) -> 8 | X4: 0 | Y4: 2 | Z4: =ROUND(AF4+AO4+AU4,1) -> 2 | AA4: 0 | AB4: 4 | AC4: =IF(AND(H4<>"N/A",K4<>"N/A"),IF(R4>Q4,IF(AND(Q4>=IJD,R4<=FJD),R4-Q4,IF(AND(Q4<IJD,R4>FJD),FJD-IJD,IF(AND(Q4>=IJD,Q4<FJD,R4<24),FJD-Q4,IF(AND(Q4<IJD,R4>IJD,R4<FJD),R4-IJD,0)))),IF(R4<Q4,IF(AND(Q4>IJD,Q4<FJD,R4>=IJD,R4<FJD),FJD-Q4+R4-IJD,IF(AND(Q4>=IJD,Q4<FJD,R4<IJD),FJD-Q4,IF(AND(Q4>FJD,R4>IJD,R4<FJD),R4-IJD,IF(AND(Q4>FJD,R4>FJD),16,IF(AND(Q4<IJD,R4<IJD),16,0))))))),0) -> 4 | AD4: 0 | AE4: 0 | AF4: =IF(AND(H4<>"N/A",K4<>"N/A"),IF(AE4=0,0,IF(R4>IF(Q4+AB4-AE4>24,(Q4+AB4-AE4)-24,Q4+AB4-AE4),IF(AND(IF(Q4+AB4-AE4>24,(Q4+AB4-AE4)-24,Q4+AB4-AE4)>=IJD,R4<=FJD),R4-IF(Q4+AB4-AE4>24,(Q4+AB4-AE4)-24,Q4+AB4-AE4),IF(AND(IF(Q4+AB4-AE4>24,(Q4+AB4-AE4)-24,Q4+AB4-AE4)<IJD,R4>FJD),FJD-IJD,IF(AND(IF(Q4+AB4-AE4>24,(Q4+AB4-AE4)-24,Q4+AB4-AE4)>=IJD,IF(Q4+AB4-AE4>24,(Q4+AB4-AE4)-24,Q4+AB4-AE4)<FJD,R4<24),FJD-IF(Q4+AB4-AE4>24,(Q4+AB4-AE4)-24,Q4+AB4-AE4),IF(AND(IF(Q4+AB4-AE4>24,(Q4+AB4-AE4)-24,Q4+AB4-AE4)<IJD,R4>IJD,R4<FJD),R4-IJD,0)))),IF(R4<IF(Q4+AB4-AE4>24,(Q4+AB4-AE4)-24,Q4+AB4-AE4),IF(AND(IF(Q4+AB4-AE4>24,(Q4+AB4-AE4)-24,Q4+AB4-AE4)>IJD,IF(Q4+AB4-AE4>24,(Q4+AB4-AE4)-24,Q4+AB4-AE4)<FJD,R4>=IJD,R4<FJD),FJD-IF(Q4+AB4-AE4>24,(Q4+AB4-AE4)-24,Q4+AB4-AE4)+R4-IJD,IF(AND(IF(Q4+AB4-AE4>24,(Q4+AB4-AE4)-24,Q4+AB4-AE4)>=IJD,IF(Q4+AB4-AE4>24,(Q4+AB4-AE4)-24,Q4+AB4-AE4)<FJD,R4<IJD),FJD-IF(Q4+AB4-AE4>24,(Q4+AB4-AE4)-24,Q4+AB4-AE4),IF(AND(IF(Q4+AB4-AE4>24,(Q4+AB4-AE4)-24,Q4+AB4-AE4)>FJD,R4>IJD,R4<FJD),R4-IJD,IF(AND(IF(Q4+AB4-AE4>24,(Q4+AB4-AE4)-24,Q4+AB4-AE4)>FJD,R4>FJD),16,IF(AND(IF(Q4+AB4-AE4>24,(Q4+AB4-AE4)-24,Q4+AB4-AE4)<IJD,R4<IJD),16,0)))))))),0) -> 0 | AG4: 0 | AH4: 2 | AI4: =IF(AND(H4<>"N/A",K4<>"N/A"),IF(S4>R4,IF(AND(R4>=IJD,S4<FJD),S4-R4,IF(AND(R4>=IJD,S4>FJD),IF(R4>FJD,R4-FJD,FJD-R4),IF(AND(R4<IJD,S4>=IJD,S4>FJD),S4-IJD-(S4-FJD),IF(AND(R4<IJD,S4>=IJD),S4-IJD,IF(AND(R4<IJD,S4<IJD),0))))),IF(S4<R4,IF(AND(R4>=FJD,S4<=IJD),0,IF(AND(R4<FJD,S4<=IJD),FJD-R4,IF(AND(R4>FJD,S4>IJD),S4-IJD,IF(AND(R4<FJD,S4>IJD),FJD-R4+S4-IJD)))))),0) -> 2 | AJ4: 0 | AK4: 6 | AL4: =IF(AND(H4<>"N/A",K4<>"N/A"),IF(T4>S4,IF(AND(S4>=IJD,T4<=FJD),T4-S4,IF(AND(S4<IJD,T4>FJD),FJD-IJD,IF(AND(S4>=IJD,S4<FJD,T4<24),FJD-S4,IF(AND(S4<IJD,T4>IJD,T4<FJD),T4-IJD,0)))),IF(T4<S4,IF(AND(S4>IJD,S4<FJD,T4>=IJD,T4<FJD),FJD-S4+T4-IJD,IF(AND(S4>=IJD,S4<FJD,T4<IJD),FJD-S4,IF(AND(S4>FJD,T4>IJD,T4<FJD),T4-IJD,IF(AND(S4>FJD,T4>FJD),16,IF(AND(S4<IJD,T4<IJD),16,0))))))),0) -> 6 | AM4: 0 | AN4: 2 | AO4: =IF(AND(H4<>"N/A",K4<>"N/A"),IF(AN4=0,0,IF(T4>IF(S4+AK4-AN4>24,(S4+AK4-AN4)-24,S4+AK4-AN4),IF(AND(IF(S4+AK4-AN4>24,(S4+AK4-AN4)-24,S4+AK4-AN4)>=IJD,T4<=FJD),T4-IF(S4+AK4-AN4>24,(S4+AK4-AN4)-24,S4+AK4-AN4),IF(AND(IF(S4+AK4-AN4>24,(S4+AK4-AN4)-24,S4+AK4-AN4)<IJD,T4>FJD),FJD-IJD,IF(AND(IF(S4+AK4-AN4>24,(S4+AK4-AN4)-24,S4+AK4-AN4)>=IJD,IF(S4+AK4-AN4>24,(S4+AK4-AN4)-24,S4+AK4-AN4)<FJD,T4<24),FJD-IF(S4+AK4-AN4>24,(S4+AK4-AN4)-24,S4+AK4-AN4),IF(AND(IF(S4+AK4-AN4>24,(S4+AK4-AN4)-24,S4+AK4-AN4)<IJD,T4>IJD,T4<FJD),T4-IJD,0)))),IF(T4<IF(S4+AK4-AN4>24,(S4+AK4-AN4)-24,S4+AK4-AN4),IF(AND(IF(S4+AK4-AN4>24,(S4+AK4-AN4)-24,S4+AK4-AN4)>IJD,IF(S4+AK4-AN4>24,(S4+AK4-AN4)-24,S4+AK4-AN4)<FJD,T4>=IJD,T4<FJD),FJD-IF(S4+AK4-AN4>24,(S4+AK4-AN4)-24,S4+AK4-AN4)+T4-IJD,IF(AND(IF(S4+AK4-AN4>24,(S4+AK4-AN4)-24,S4+AK4-AN4)>=IJD,IF(S4+AK4-AN4>24,(S4+AK4-AN4)-24,S4+AK4-AN4)<FJD,T4<IJD),FJD-IF(S4+AK4-AN4>24,(S4+AK4-AN4)-24,S4+AK4-AN4),IF(AND(IF(S4+AK4-AN4>24,(S4+AK4-AN4)-24,S4+AK4-AN4)>FJD,T4>IJD,T4<FJD),T4-IJD,IF(AND(IF(S4+AK4-AN4>24,(S4+AK4-AN4)-24,S4+AK4-AN4)>FJD,T4>FJD),16,IF(AND(IF(S4+AK4-AN4>24,(S4+AK4-AN4)-24,S4+AK4-AN4)<IJD,T4<IJD),16,0)))))))),0) -> 2 | AP4: 0 | AQ4: 0 | AR4: =IF(AND(H4="N/A",K4="N/A"),IF(T4>Q4,IF(AND(Q4>=IJD,T4<=FJD),T4-Q4,IF(AND(Q4<IJD,T4>FJD),FJD-IJD,IF(AND(Q4>=IJD,Q4<FJD,T4<24),FJD-Q4,IF(AND(Q4<IJD,T4>IJD,T4<FJD),T4-IJD,0)))),IF(T4<Q4,IF(AND(Q4>IJD,Q4<FJD,T4>=IJD,T4<FJD),FJD-Q4+T4-IJD,IF(AND(Q4>=IJD,Q4<FJD,T4<IJD),FJD-Q4,IF(AND(Q4>FJD,T4>IJD,T4<FJD),T4-IJD,IF(AND(Q4>FJD,T4>FJD),16,IF(AND(Q4<IJD,T4<IJD),16,0))))))),0) -> 0 | AS4: 0 | AT4: 0 | AU4: =IF(AND(H4="N/A",K4="N/A"),IF(AT4=0,0,IF(T4>IF(Q4+AQ4-AT4>24,(Q4+AQ4-AT4)-24,Q4+AQ4-AT4),IF(AND(IF(Q4+AQ4-AT4>24,(Q4+AQ4-AT4)-24,Q4+AQ4-AT4)>=IJD,T4<=FJD),T4-IF(Q4+AQ4-AT4>24,(Q4+AQ4-AT4)-24,Q4+AQ4-AT4),IF(AND(IF(Q4+AQ4-AT4>24,(Q4+AQ4-AT4)-24,Q4+AQ4-AT4)<IJD,T4>FJD),FJD-IJD,IF(AND(IF(Q4+AQ4-AT4>24,(Q4+AQ4-AT4)-24,Q4+AQ4-AT4)>=IJD,IF(Q4+AQ4-AT4>24,(Q4+AQ4-AT4)-24,Q4+AQ4-AT4)<FJD,T4<24),FJD-IF(Q4+AQ4-AT4>24,(Q4+AQ4-AT4)-24,Q4+AQ4-AT4),IF(AND(IF(Q4+AQ4-AT4>24,(Q4+AQ4-AT4)-24,Q4+AQ4-AT4)<IJD,T4>IJD,T4<FJD),T4-IJD,0)))),IF(T4<IF(Q4+AQ4-AT4>24,(Q4+AQ4-AT4)-24,Q4+AQ4-AT4),IF(AND(IF(Q4+AQ4-AT4>24,(Q4+AQ4-AT4)-24,Q4+AQ4-AT4)>IJD,IF(Q4+AQ4-AT4>24,(Q4+AQ4-AT4)-24,Q4+AQ4-AT4)<FJD,T4>=IJD,T4<FJD),FJD-IF(Q4+AQ4-AT4>24,(Q4+AQ4-AT4)-24,Q4+AQ4-AT4)+T4-IJD,IF(AND(IF(Q4+AQ4-AT4>24,(Q4+AQ4-AT4)-24,Q4+AQ4-AT4)>=IJD,IF(Q4+AQ4-AT4>24,(Q4+AQ4-AT4)-24,Q4+AQ4-AT4)<FJD,T4<IJD),FJD-IF(Q4+AQ4-AT4>24,(Q4+AQ4-AT4)-24,Q4+AQ4-AT4),IF(AND(IF(Q4+AQ4-AT4>24,(Q4+AQ4-AT4)-24,Q4+AQ4-AT4)>FJD,T4>IJD,T4<FJD),T4-IJD,IF(AND(IF(Q4+AQ4-AT4>24,(Q4+AQ4-AT4)-24,Q4+AQ4-AT4)>FJD,T4>FJD),16,IF(AND(IF(Q4+AQ4-AT4>24,(Q4+AQ4-AT4)-24,Q4+AQ4-AT4)<IJD,T4<IJD),16,0)))))))),0) -> 0 | AV4: 0 | AW4: =X4*((1+RECARGONOCTURNA)*VALORHORAORDINARIA) -> 0 | AX4: =Z4*((1+RECARGOEXTRADIURNA)*VALORHORAORDINARIA) -> 7500 | AY4: =AA4*((1+RECARGOEXTRANOCTURNA)*VALORHORAORDINARIA) -> 0 | AZ4: 7500 | BA4: =IF(Y4>2,"Excedio el límite de horas Extras en " & Y4-LIMITEHORASEXTRAXDIA,"") -> 
A5: 90963745 | B5: Samuel | C5: Lopez | D5: 8 | E5: 14 | F5: : | G5: 00 | H5: 18 | I5: : | J5: 00 | K5: 19 | L5: : | M5: 00 | N5: 02 | O5: : | P5: 00 | Q5: 14 | R5: 18 | S5: 19 | T5: 2 | U5: 11 | V5: 8 | W5: =ROUND(AC5-AF5+AL5-AO5+AR5-AU5,1) -> 6 | X5: 2 | Y5: 3 | Z5: =ROUND(AF5+AO5+AU5,1) -> 0 | AA5: 3 | AB5: 4 | AC5: =IF(AND(H5<>"N/A",K5<>"N/A"),IF(R5>Q5,IF(AND(Q5>=IJD,R5<=FJD),R5-Q5,IF(AND(Q5<IJD,R5>FJD),FJD-IJD,IF(AND(Q5>=IJD,Q5<FJD,R5<24),FJD-Q5,IF(AND(Q5<IJD,R5>IJD,R5<FJD),R5-IJD,0)))),IF(R5<Q5,IF(AND(Q5>IJD,Q5<FJD,R5>=IJD,R5<FJD),FJD-Q5+R5-IJD,IF(AND(Q5>=IJD,Q5<FJD,R5<IJD),FJD-Q5,IF(AND(Q5>FJD,R5>IJD,R5<FJD),R5-IJD,IF(AND(Q5>FJD,R5>FJD),16,IF(AND(Q5<IJD,R5<IJD),16,0))))))),0) -> 4 | AD5: 0 | AE5: 0 | AF5: =IF(AND(H5<>"N/A",K5<>"N/A"),IF(AE5=0,0,IF(R5>IF(Q5+AB5-AE5>24,(Q5+AB5-AE5)-24,Q5+AB5-AE5),IF(AND(IF(Q5+AB5-AE5>24,(Q5+AB5-AE5)-24,Q5+AB5-AE5)>=IJD,R5<=FJD),R5-IF(Q5+AB5-AE5>24,(Q5+AB5-AE5)-24,Q5+AB5-AE5),IF(AND(IF(Q5+AB5-AE5>24,(Q5+AB5-AE5)-24,Q5+AB5-AE5)<IJD,R5>FJD),FJD-IJD,IF(AND(IF(Q5+AB5-AE5>24,(Q5+AB5-AE5)-24,Q5+AB5-AE5)>=IJD,IF(Q5+AB5-AE5>24,(Q5+AB5-AE5)-24,Q5+AB5-AE5)<FJD,R5<24),FJD-IF(Q5+AB5-AE5>24,(Q5+AB5-AE5)-24,Q5+AB5-AE5),IF(AND(IF(Q5+AB5-AE5>24,(Q5+AB5-AE5)-24,Q5+AB5-AE5)<IJD,R5>IJD,R5<FJD),R5-IJD,0)))),IF(R5<IF(Q5+AB5-AE5>24,(Q5+AB5-AE5)-24,Q5+AB5-AE5),IF(AND(IF(Q5+AB5-AE5>24,(Q5+AB5-AE5)-24,Q5+AB5-AE5)>IJD,IF(Q5+AB5-AE5>24,(Q5+AB5-AE5)-24,Q5+AB5-AE5)<FJD,R5>=IJD,R5<FJD),FJD-IF(Q5+AB5-AE5>24,(Q5+AB5-AE5)-24,Q5+AB5-AE5)+R5-IJD,IF(AND(IF(Q5+AB5-AE5>24,(Q5+AB5-AE5)-24,Q5+AB5-AE5)>=IJD,IF(Q5+AB5-AE5>24,(Q5+AB5-AE5)-24,Q5+AB5-AE5)<FJD,R5<IJD),FJD-IF(Q5+AB5-AE5>24,(Q5+AB5-AE5)-24,Q5+AB5-AE5),IF(AND(IF(Q5+AB5-AE5>24,(Q5+AB5-AE5)-24,Q5+AB5-AE5)>FJD,R5>IJD,R5<FJD),R5-IJD,IF(AND(IF(Q5+AB5-AE5>24,(Q5+AB5-AE5)-24,Q5+AB5-AE5)>FJD,R5>FJD),16,IF(AND(IF(Q5+AB5-AE5>24,(Q5+AB5-AE5)-24,Q5+AB5-AE5)<IJD,R5<IJD),16,0)))))))),0) -> 0 | AG5: 0 | AH5: 1 | AI5: =IF(AND(H5<>"N/A",K5<>"N/A"),IF(S5>R5,IF(AND(R5>=IJD,S5<FJD),S5-R5,IF(AND(R5>=IJD,S5>FJD),IF(R5>FJD,R5-FJD,FJD-R5),IF(AND(R5<IJD,S5>=IJD,S5>FJD),S5-IJD-(S5-FJD),IF(AND(R5<IJD,S5>=IJD),S5-IJD,IF(AND(R5<IJD,S5<IJD),0))))),IF(S5<R5,IF(AND(R5>=FJD,S5<=IJD),0,IF(AND(R5<FJD,S5<=IJD),FJD-R5,IF(AND(R5>FJD,S5>IJD),S5-IJD,IF(AND(R5<FJD,S5>IJD),FJD-R5+S5-IJD)))))),0) -> 1 | AJ5: 0 | AK5: 7 | AL5: =IF(AND(H5<>"N/A",K5<>"N/A"),IF(T5>S5,IF(AND(S5>=IJD,T5<=FJD),T5-S5,IF(AND(S5<IJD,T5>FJD),FJD-IJD,IF(AND(S5>=IJD,S5<FJD,T5<24),FJD-S5,IF(AND(S5<IJD,T5>IJD,T5<FJD),T5-IJD,0)))),IF(T5<S5,IF(AND(S5>IJD,S5<FJD,T5>=IJD,T5<FJD),FJD-S5+T5-IJD,IF(AND(S5>=IJD,S5<FJD,T5<IJD),FJD-S5,IF(AND(S5>FJD,T5>IJD,T5<FJD),T5-IJD,IF(AND(S5>FJD,T5>FJD),16,IF(AND(S5<IJD,T5<IJD),16,0))))))),0) -> 1.983333333 | AM5: 5.016666667 | AN5: 3 | AO5: =IF(AND(H5<>"N/A",K5<>"N/A"),IF(AN5=0,0,IF(T5>IF(S5+AK5-AN5>24,(S5+AK5-AN5)-24,S5+AK5-AN5),IF(AND(IF(S5+AK5-AN5>24,(S5+AK5-AN5)-24,S5+AK5-AN5)>=IJD,T5<=FJD),T5-IF(S5+AK5-AN5>24,(S5+AK5-AN5)-24,S5+AK5-AN5),IF(AND(IF(S5+AK5-AN5>24,(S5+AK5-AN5)-24,S5+AK5-AN5)<IJD,T5>FJD),FJD-IJD,IF(AND(IF(S5+AK5-AN5>24,(S5+AK5-AN5)-24,S5+AK5-AN5)>=IJD,IF(S5+AK5-AN5>24,(S5+AK5-AN5)-24,S5+AK5-AN5)<FJD,T5<24),FJD-IF(S5+AK5-AN5>24,(S5+AK5-AN5)-24,S5+AK5-AN5),IF(AND(IF(S5+AK5-AN5>24,(S5+AK5-AN5)-24,S5+AK5-AN5)<IJD,T5>IJD,T5<FJD),T5-IJD,0)))),IF(T5<IF(S5+AK5-AN5>24,(S5+AK5-AN5)-24,S5+AK5-AN5),IF(AND(IF(S5+AK5-AN5>24,(S5+AK5-AN5)-24,S5+AK5-AN5)>IJD,IF(S5+AK5-AN5>24,(S5+AK5-AN5)-24,S5+AK5-AN5)<FJD,T5>=IJD,T5<FJD),FJD-IF(S5+AK5-AN5>24,(S5+AK5-AN5)-24,S5+AK5-AN5)+T5-IJD,IF(AND(IF(S5+AK5-AN5>24,(S5+AK5-AN5)-24,S5+AK5-AN5)>=IJD,IF(S5+AK5-AN5>24,(S5+AK5-AN5)-24,S5+AK5-AN5)<FJD,T5<IJD),FJD-IF(S5+AK5-AN5>24,(S5+AK5-AN5)-24,S5+AK5-AN5),IF(AND(IF(S5+AK5-AN5>24,(S5+AK5-AN5)-24,S5+AK5-AN5)>FJD,T5>IJD,T5<FJD),T5-IJD,IF(AND(IF(S5+AK5-AN5>24,(S5+AK5-AN5)-24,S5+AK5-AN5)>FJD,T5>FJD),16,IF(AND(IF(S5+AK5-AN5>24,(S5+AK5-AN5)-24,S5+AK5-AN5)<IJD,T5<IJD),16,0)))))))),0) -> 0 | AP5: 3 | AQ5: 0 | AR5: =IF(AND(H5="N/A",K5="N/A"),IF(T5>Q5,IF(AND(Q5>=IJD,T5<=FJD),T5-Q5,IF(AND(Q5<IJD,T5>FJD),FJD-IJD,IF(AND(Q5>=IJD,Q5<FJD,T5<24),FJD-Q5,IF(AND(Q5<IJD,T5>IJD,T5<FJD),T5-IJD,0)))),IF(T5<Q5,IF(AND(Q5>IJD,Q5<FJD,T5>=IJD,T5<FJD),FJD-Q5+T5-IJD,IF(AND(Q5>=IJD,Q5<FJD,T5<IJD),FJD-Q5,IF(AND(Q5>FJD,T5>IJD,T5<FJD),T5-IJD,IF(AND(Q5>FJD,T5>FJD),16,IF(AND(Q5<IJD,T5<IJD),16,0))))))),0) -> 0 | AS5: 0 | AT5: 0 | AU5: =IF(AND(H5="N/A",K5="N/A"),IF(AT5=0,0,IF(T5>IF(Q5+AQ5-AT5>24,(Q5+AQ5-AT5)-24,Q5+AQ5-AT5),IF(AND(IF(Q5+AQ5-AT5>24,(Q5+AQ5-AT5)-24,Q5+AQ5-AT5)>=IJD,T5<=FJD),T5-IF(Q5+AQ5-AT5>24,(Q5+AQ5-AT5)-24,Q5+AQ5-AT5),IF(AND(IF(Q5+AQ5-AT5>24,(Q5+AQ5-AT5)-24,Q5+AQ5-AT5)<IJD,T5>FJD),FJD-IJD,IF(AND(IF(Q5+AQ5-AT5>24,(Q5+AQ5-AT5)-24,Q5+AQ5-AT5)>=IJD,IF(Q5+AQ5-AT5>24,(Q5+AQ5-AT5)-24,Q5+AQ5-AT5)<FJD,T5<24),FJD-IF(Q5+AQ5-AT5>24,(Q5+AQ5-AT5)-24,Q5+AQ5-AT5),IF(AND(IF(Q5+AQ5-AT5>24,(Q5+AQ5-AT5)-24,Q5+AQ5-AT5)<IJD,T5>IJD,T5<FJD),T5-IJD,0)))),IF(T5<IF(Q5+AQ5-AT5>24,(Q5+AQ5-AT5)-24,Q5+AQ5-AT5),IF(AND(IF(Q5+AQ5-AT5>24,(Q5+AQ5-AT5)-24,Q5+AQ5-AT5)>IJD,IF(Q5+AQ5-AT5>24,(Q5+AQ5-AT5)-24,Q5+AQ5-AT5)<FJD,T5>=IJD,T5<FJD),FJD-IF(Q5+AQ5-AT5>24,(Q5+AQ5-AT5)-24,Q5+AQ5-AT5)+T5-IJD,IF(AND(IF(Q5+AQ5-AT5>24,(Q5+AQ5-AT5)-24,Q5+AQ5-AT5)>=IJD,IF(Q5+AQ5-AT5>24,(Q5+AQ5-AT5)-24,Q5+AQ5-AT5)<FJD,T5<IJD),FJD-IF(Q5+AQ5-AT5>24,(Q5+AQ5-AT5)-24,Q5+AQ5-AT5),IF(AND(IF(Q5+AQ5-AT5>24,(Q5+AQ5-AT5)-24,Q5+AQ5-AT5)>FJD,T5>IJD,T5<FJD),T5-IJD,IF(AND(IF(Q5+AQ5-AT5>24,(Q5+AQ5-AT5)-24,Q5+AQ5-AT5)>FJD,T5>FJD),16,IF(AND(IF(Q5+AQ5-AT5>24,(Q5+AQ5-AT5)-24,Q5+AQ5-AT5)<IJD,T5<IJD),16,0)))))))),0) -> 0 | AV5: 0 | AW5: =X5*((1+RECARGONOCTURNA)*VALORHORAORDINARIA) -> 8100 | AX5: =Z5*((1+RECARGOEXTRADIURNA)*VALORHORAORDINARIA) -> 0 | AY5: =AA5*((1+RECARGOEXTRANOCTURNA)*VALORHORAORDINARIA) -> 15750 | AZ5: 23850 | BA5: =IF(Y5>2,"Excedio el límite de horas Extras en " & Y5-LIMITEHORASEXTRAXDIA,"") -> Excedio el límite de horas Extras en 1
A6: 96097193 | B6: Camilo | C6: Cifuentes | D6: 8 | E6: 08 | F6: : | G6: 00 | H6: 12 | I6: : | J6: 00 | K6: 15 | L6: : | M6: 00 | N6: 23 | O6: : | P6: 00 | Q6: 8 | R6: 12 | S6: 15 | T6: 23 | U6: 12 | V6: 8 | W6: =ROUND(AC6-AF6+AL6-AO6+AR6-AU6,1) -> 8 | X6: 0 | Y6: 4 | Z6: =ROUND(AF6+AO6+AU6,1) -> 2 | AA6: 2 | AB6: 4 | AC6: =IF(AND(H6<>"N/A",K6<>"N/A"),IF(R6>Q6,IF(AND(Q6>=IJD,R6<=FJD),R6-Q6,IF(AND(Q6<IJD,R6>FJD),FJD-IJD,IF(AND(Q6>=IJD,Q6<FJD,R6<24),FJD-Q6,IF(AND(Q6<IJD,R6>IJD,R6<FJD),R6-IJD,0)))),IF(R6<Q6,IF(AND(Q6>IJD,Q6<FJD,R6>=IJD,R6<FJD),FJD-Q6+R6-IJD,IF(AND(Q6>=IJD,Q6<FJD,R6<IJD),FJD-Q6,IF(AND(Q6>FJD,R6>IJD,R6<FJD),R6-IJD,IF(AND(Q6>FJD,R6>FJD),16,IF(AND(Q6<IJD,R6<IJD),16,0))))))),0) -> 4 | AD6: 0 | AE6: 0 | AF6: =IF(AND(H6<>"N/A",K6<>"N/A"),IF(AE6=0,0,IF(R6>IF(Q6+AB6-AE6>24,(Q6+AB6-AE6)-24,Q6+AB6-AE6),IF(AND(IF(Q6+AB6-AE6>24,(Q6+AB6-AE6)-24,Q6+AB6-AE6)>=IJD,R6<=FJD),R6-IF(Q6+AB6-AE6>24,(Q6+AB6-AE6)-24,Q6+AB6-AE6),IF(AND(IF(Q6+AB6-AE6>24,(Q6+AB6-AE6)-24,Q6+AB6-AE6)<IJD,R6>FJD),FJD-IJD,IF(AND(IF(Q6+AB6-AE6>24,(Q6+AB6-AE6)-24,Q6+AB6-AE6)>=IJD,IF(Q6+AB6-AE6>24,(Q6+AB6-AE6)-24,Q6+AB6-AE6)<FJD,R6<24),FJD-IF(Q6+AB6-AE6>24,(Q6+AB6-AE6)-24,Q6+AB6-AE6),IF(AND(IF(Q6+AB6-AE6>24,(Q6+AB6-AE6)-24,Q6+AB6-AE6)<IJD,R6>IJD,R6<FJD),R6-IJD,0)))),IF(R6<IF(Q6+AB6-AE6>24,(Q6+AB6-AE6)-24,Q6+AB6-AE6),IF(AND(IF(Q6+AB6-AE6>24,(Q6+AB6-AE6)-24,Q6+AB6-AE6)>IJD,IF(Q6+AB6-AE6>24,(Q6+AB6-AE6)-24,Q6+AB6-AE6)<FJD,R6>=IJD,R6<FJD),FJD-IF(Q6+AB6-AE6>24,(Q6+AB6-AE6)-24,Q6+AB6-AE6)+R6-IJD,IF(AND(IF(Q6+AB6-AE6>24,(Q6+AB6-AE6)-24,Q6+AB6-AE6)>=IJD,IF(Q6+AB6-AE6>24,(Q6+AB6-AE6)-24,Q6+AB6-AE6)<FJD,R6<IJD),FJD-IF(Q6+AB6-AE6>24,(Q6+AB6-AE6)-24,Q6+AB6-AE6),IF(AND(IF(Q6+AB6-AE6>24,(Q6+AB6-AE6)-24,Q6+AB6-AE6)>FJD,R6>IJD,R6<FJD),R6-IJD,IF(AND(IF(Q6+AB6-AE6>24,(Q6+AB6-AE6)-24,Q6+AB6-AE6)>FJD,R6>FJD),16,IF(AND(IF(Q6+AB6-AE6>24,(Q6+AB6-AE6)-24,Q6+AB6-AE6)<IJD,R6<IJD),16,0)))))))),0) -> 0 | AG6: 0 | AH6: 3 | AI6: =IF(AND(H6<>"N/A",K6<>"N/A"),IF(S6>R6,IF(AND(R6>=IJD,S6<FJD),S6-R6,IF(AND(R6>=IJD,S6>FJD),IF(R6>FJD,R6-FJD,FJD-R6),IF(AND(R6<IJD,S6>=IJD,S6>FJD),S6-IJD-(S6-FJD),IF(AND(R6<IJD,S6>=IJD),S6-IJD,IF(AND(R6<IJD,S6<IJD),0))))),IF(S6<R6,IF(AND(R6>=FJD,S6<=IJD),0,IF(AND(R6<FJD,S6<=IJD),FJD-R6,IF(AND(R6>FJD,S6>IJD),S6-IJD,IF(AND(R6<FJD,S6>IJD),FJD-R6+S6-IJD)))))),0) -> 3 | AJ6: 0 | AK6: 8 | AL6: =IF(AND(H6<>"N/A",K6<>"N/A"),IF(T6>S6,IF(AND(S6>=IJD,T6<=FJD),T6-S6,IF(AND(S6<IJD,T6>FJD),FJD-IJD,IF(AND(S6>=IJD,S6<FJD,T6<24),FJD-S6,IF(AND(S6<IJD,T6>IJD,T6<FJD),T6-IJD,0)))),IF(T6<S6,IF(AND(S6>IJD,S6<FJD,T6>=IJD,T6<FJD),FJD-S6+T6-IJD,IF(AND(S6>=IJD,S6<FJD,T6<IJD),FJD-S6,IF(AND(S6>FJD,T6>IJD,T6<FJD),T6-IJD,IF(AND(S6>FJD,T6>FJD),16,IF(AND(S6<IJD,T6<IJD),16,0))))))),0) -> 5.983333333 | AM6: 2.016666667 | AN6: 4 | AO6: =IF(AND(H6<>"N/A",K6<>"N/A"),IF(AN6=0,0,IF(T6>IF(S6+AK6-AN6>24,(S6+AK6-AN6)-24,S6+AK6-AN6),IF(AND(IF(S6+AK6-AN6>24,(S6+AK6-AN6)-24,S6+AK6-AN6)>=IJD,T6<=FJD),T6-IF(S6+AK6-AN6>24,(S6+AK6-AN6)-24,S6+AK6-AN6),IF(AND(IF(S6+AK6-AN6>24,(S6+AK6-AN6)-24,S6+AK6-AN6)<IJD,T6>FJD),FJD-IJD,IF(AND(IF(S6+AK6-AN6>24,(S6+AK6-AN6)-24,S6+AK6-AN6)>=IJD,IF(S6+AK6-AN6>24,(S6+AK6-AN6)-24,S6+AK6-AN6)<FJD,T6<24),FJD-IF(S6+AK6-AN6>24,(S6+AK6-AN6)-24,S6+AK6-AN6),IF(AND(IF(S6+AK6-AN6>24,(S6+AK6-AN6)-24,S6+AK6-AN6)<IJD,T6>IJD,T6<FJD),T6-IJD,0)))),IF(T6<IF(S6+AK6-AN6>24,(S6+AK6-AN6)-24,S6+AK6-AN6),IF(AND(IF(S6+AK6-AN6>24,(S6+AK6-AN6)-24,S6+AK6-AN6)>IJD,IF(S6+AK6-AN6>24,(S6+AK6-AN6)-24,S6+AK6-AN6)<FJD,T6>=IJD,T6<FJD),FJD-IF(S6+AK6-AN6>24,(S6+AK6-AN6)-24,S6+AK6-AN6)+T6-IJD,IF(AND(IF(S6+AK6-AN6>24,(S6+AK6-AN6)-24,S6+AK6-AN6)>=IJD,IF(S6+AK6-AN6>24,(S6+AK6-AN6)-24,S6+AK6-AN6)<FJD,T6<IJD),FJD-IF(S6+AK6-AN6>24,(S6+AK6-AN6)-24,S6+AK6-AN6),IF(AND(IF(S6+AK6-AN6>24,(S6+AK6-AN6)-24,S6+AK6-AN6)>FJD,T6>IJD,T6<FJD),T6-IJD,IF(AND(IF(S6+AK6-AN6>24,(S6+AK6-AN6)-24,S6+AK6-AN6)>FJD,T6>FJD),16,IF(AND(IF(S6+AK6-AN6>24,(S6+AK6-AN6)-24,S6+AK6-AN6)<IJD,T6<IJD),16,0)))))))),0) -> 1.983333333 | AP6: 2.016666667 | AQ6: 0 | AR6: =IF(AND(H6="N/A",K6="N/A"),IF(T6>Q6,IF(AND(Q6>=IJD,T6<=FJD),T6-Q6,IF(AND(Q6<IJD,T6>FJD),FJD-IJD,IF(AND(Q6>=IJD,Q6<FJD,T6<24),FJD-Q6,IF(AND(Q6<IJD,T6>IJD,T6<FJD),T6-IJD,0)))),IF(T6<Q6,IF(AND(Q6>IJD,Q6<FJD,T6>=IJD,T6<FJD),FJD-Q6+T6-IJD,IF(AND(Q6>=IJD,Q6<FJD,T6<IJD),FJD-Q6,IF(AND(Q6>FJD,T6>IJD,T6<FJD),T6-IJD,IF(AND(Q6>FJD,T6>FJD),16,IF(AND(Q6<IJD,T6<IJD),16,0))))))),0) -> 0 | AS6: 0 | AT6: 0 | AU6: =IF(AND(H6="N/A",K6="N/A"),IF(AT6=0,0,IF(T6>IF(Q6+AQ6-AT6>24,(Q6+AQ6-AT6)-24,Q6+AQ6-AT6),IF(AND(IF(Q6+AQ6-AT6>24,(Q6+AQ6-AT6)-24,Q6+AQ6-AT6)>=IJD,T6<=FJD),T6-IF(Q6+AQ6-AT6>24,(Q6+AQ6-AT6)-24,Q6+AQ6-AT6),IF(AND(IF(Q6+AQ6-AT6>24,(Q6+AQ6-AT6)-24,Q6+AQ6-AT6)<IJD,T6>FJD),FJD-IJD,IF(AND(IF(Q6+AQ6-AT6>24,(Q6+AQ6-AT6)-24,Q6+AQ6-AT6)>=IJD,IF(Q6+AQ6-AT6>24,(Q6+AQ6-AT6)-24,Q6+AQ6-AT6)<FJD,T6<24),FJD-IF(Q6+AQ6-AT6>24,(Q6+AQ6-AT6)-24,Q6+AQ6-AT6),IF(AND(IF(Q6+AQ6-AT6>24,(Q6+AQ6-AT6)-24,Q6+AQ6-AT6)<IJD,T6>IJD,T6<FJD),T6-IJD,0)))),IF(T6<IF(Q6+AQ6-AT6>24,(Q6+AQ6-AT6)-24,Q6+AQ6-AT6),IF(AND(IF(Q6+AQ6-AT6>24,(Q6+AQ6-AT6)-24,Q6+AQ6-AT6)>IJD,IF(Q6+AQ6-AT6>24,(Q6+AQ6-AT6)-24,Q6+AQ6-AT6)<FJD,T6>=IJD,T6<FJD),FJD-IF(Q6+AQ6-AT6>24,(Q6+AQ6-AT6)-24,Q6+AQ6-AT6)+T6-IJD,IF(AND(IF(Q6+AQ6-AT6>24,(Q6+AQ6-AT6)-24,Q6+AQ6-AT6)>=IJD,IF(Q6+AQ6-AT6>24,(Q6+AQ6-AT6)-24,Q6+AQ6-AT6)<FJD,T6<IJD),FJD-IF(Q6+AQ6-AT6>24,(Q6+AQ6-AT6)-24,Q6+AQ6-AT6),IF(AND(IF(Q6+AQ6-AT6>24,(Q6+AQ6-AT6)-24,Q6+AQ6-AT6)>FJD,T6>IJD,T6<FJD),T6-IJD,IF(AND(IF(Q6+AQ6-AT6>24,(Q6+AQ6-AT6)-24,Q6+AQ6-AT6)>FJD,T6>FJD),16,IF(AND(IF(Q6+AQ6-AT6>24,(Q6+AQ6-AT6)-24,Q6+AQ6-AT6)<IJD,T6<IJD),16,0)))))))),0) -> 0 | AV6: 0 | AW6: =X6*((1+RECARGONOCTURNA)*VALORHORAORDINARIA) -> 0 | AX6: =Z6*((1+RECARGOEXTRADIURNA)*VALORHORAORDINARIA) -> 7500 | AY6: =AA6*((1+RECARGOEXTRANOCTURNA)*VALORHORAORDINARIA) -> 10500 | AZ6: 18000 | BA6: =IF(Y6>2,"Excedio el límite de horas Extras en " & Y6-LIMITEHORASEXTRAXDIA,"") -> Excedio el límite de horas Extras en 2
A7: 93638537 | B7: Jhon | C7: Berrio | D7: 8 | E7: 18 | F7: : | G7: 00 | H7: N/A | I7: : | J7: N/A | K7: N/A | L7: : | M7: N/A | N7: 02 | O7: : | P7: 00 | Q7: 18 | R7: #VALUE! | S7: #VALUE! | T7: 2 | U7: 8 | V7: 8 | W7: =ROUND(AC7-AF7+AL7-AO7+AR7-AU7,1) -> 3 | X7: 5 | Y7: 0 | Z7: =ROUND(AF7+AO7+AU7,1) -> 0 | AA7: 0 | AB7: 0 | AC7: =IF(AND(H7<>"N/A",K7<>"N/A"),IF(R7>Q7,IF(AND(Q7>=IJD,R7<=FJD),R7-Q7,IF(AND(Q7<IJD,R7>FJD),FJD-IJD,IF(AND(Q7>=IJD,Q7<FJD,R7<24),FJD-Q7,IF(AND(Q7<IJD,R7>IJD,R7<FJD),R7-IJD,0)))),IF(R7<Q7,IF(AND(Q7>IJD,Q7<FJD,R7>=IJD,R7<FJD),FJD-Q7+R7-IJD,IF(AND(Q7>=IJD,Q7<FJD,R7<IJD),FJD-Q7,IF(AND(Q7>FJD,R7>IJD,R7<FJD),R7-IJD,IF(AND(Q7>FJD,R7>FJD),16,IF(AND(Q7<IJD,R7<IJD),16,0))))))),0) -> 0 | AD7: 0 | AE7: 0 | AF7: =IF(AND(H7<>"N/A",K7<>"N/A"),IF(AE7=0,0,IF(R7>IF(Q7+AB7-AE7>24,(Q7+AB7-AE7)-24,Q7+AB7-AE7),IF(AND(IF(Q7+AB7-AE7>24,(Q7+AB7-AE7)-24,Q7+AB7-AE7)>=IJD,R7<=FJD),R7-IF(Q7+AB7-AE7>24,(Q7+AB7-AE7)-24,Q7+AB7-AE7),IF(AND(IF(Q7+AB7-AE7>24,(Q7+AB7-AE7)-24,Q7+AB7-AE7)<IJD,R7>FJD),FJD-IJD,IF(AND(IF(Q7+AB7-AE7>24,(Q7+AB7-AE7)-24,Q7+AB7-AE7)>=IJD,IF(Q7+AB7-AE7>24,(Q7+AB7-AE7)-24,Q7+AB7-AE7)<FJD,R7<24),FJD-IF(Q7+AB7-AE7>24,(Q7+AB7-AE7)-24,Q7+AB7-AE7),IF(AND(IF(Q7+AB7-AE7>24,(Q7+AB7-AE7)-24,Q7+AB7-AE7)<IJD,R7>IJD,R7<FJD),R7-IJD,0)))),IF(R7<IF(Q7+AB7-AE7>24,(Q7+AB7-AE7)-24,Q7+AB7-AE7),IF(AND(IF(Q7+AB7-AE7>24,(Q7+AB7-AE7)-24,Q7+AB7-AE7)>IJD,IF(Q7+AB7-AE7>24,(Q7+AB7-AE7)-24,Q7+AB7-AE7)<FJD,R7>=IJD,R7<FJD),FJD-IF(Q7+AB7-AE7>24,(Q7+AB7-AE7)-24,Q7+AB7-AE7)+R7-IJD,IF(AND(IF(Q7+AB7-AE7>24,(Q7+AB7-AE7)-24,Q7+AB7-AE7)>=IJD,IF(Q7+AB7-AE7>24,(Q7+AB7-AE7)-24,Q7+AB7-AE7)<FJD,R7<IJD),FJD-IF(Q7+AB7-AE7>24,(Q7+AB7-AE7)-24,Q7+AB7-AE7),IF(AND(IF(Q7+AB7-AE7>24,(Q7+AB7-AE7)-24,Q7+AB7-AE7)>FJD,R7>IJD,R7<FJD),R7-IJD,IF(AND(IF(Q7+AB7-AE7>24,(Q7+AB7-AE7)-24,Q7+AB7-AE7)>FJD,R7>FJD),16,IF(AND(IF(Q7+AB7-AE7>24,(Q7+AB7-AE7)-24,Q7+AB7-AE7)<IJD,R7<IJD),16,0)))))))),0) -> 0 | AG7: 0 | AH7: 0 | AI7: =IF(AND(H7<>"N/A",K7<>"N/A"),IF(S7>R7,IF(AND(R7>=IJD,S7<FJD),S7-R7,IF(AND(R7>=IJD,S7>FJD),IF(R7>FJD,R7-FJD,FJD-R7),IF(AND(R7<IJD,S7>=IJD,S7>FJD),S7-IJD-(S7-FJD),IF(AND(R7<IJD,S7>=IJD),S7-IJD,IF(AND(R7<IJD,S7<IJD),0))))),IF(S7<R7,IF(AND(R7>=FJD,S7<=IJD),0,IF(AND(R7<FJD,S7<=IJD),FJD-R7,IF(AND(R7>FJD,S7>IJD),S7-IJD,IF(AND(R7<FJD,S7>IJD),FJD-R7+S7-IJD)))))),0) -> 0 | AJ7: 0 | AK7: 0 | AL7: =IF(AND(H7<>"N/A",K7<>"N/A"),IF(T7>S7,IF(AND(S7>=IJD,T7<=FJD),T7-S7,IF(AND(S7<IJD,T7>FJD),FJD-IJD,IF(AND(S7>=IJD,S7<FJD,T7<24),FJD-S7,IF(AND(S7<IJD,T7>IJD,T7<FJD),T7-IJD,0)))),IF(T7<S7,IF(AND(S7>IJD,S7<FJD,T7>=IJD,T7<FJD),FJD-S7+T7-IJD,IF(AND(S7>=IJD,S7<FJD,T7<IJD),FJD-S7,IF(AND(S7>FJD,T7>IJD,T7<FJD),T7-IJD,IF(AND(S7>FJD,T7>FJD),16,IF(AND(S7<IJD,T7<IJD),16,0))))))),0) -> 0 | AM7: 0 | AN7: 0 | AO7: =IF(AND(H7<>"N/A",K7<>"N/A"),IF(AN7=0,0,IF(T7>IF(S7+AK7-AN7>24,(S7+AK7-AN7)-24,S7+AK7-AN7),IF(AND(IF(S7+AK7-AN7>24,(S7+AK7-AN7)-24,S7+AK7-AN7)>=IJD,T7<=FJD),T7-IF(S7+AK7-AN7>24,(S7+AK7-AN7)-24,S7+AK7-AN7),IF(AND(IF(S7+AK7-AN7>24,(S7+AK7-AN7)-24,S7+AK7-AN7)<IJD,T7>FJD),FJD-IJD,IF(AND(IF(S7+AK7-AN7>24,(S7+AK7-AN7)-24,S7+AK7-AN7)>=IJD,IF(S7+AK7-AN7>24,(S7+AK7-AN7)-24,S7+AK7-AN7)<FJD,T7<24),FJD-IF(S7+AK7-AN7>24,(S7+AK7-AN7)-24,S7+AK7-AN7),IF(AND(IF(S7+AK7-AN7>24,(S7+AK7-AN7)-24,S7+AK7-AN7)<IJD,T7>IJD,T7<FJD),T7-IJD,0)))),IF(T7<IF(S7+AK7-AN7>24,(S7+AK7-AN7)-24,S7+AK7-AN7),IF(AND(IF(S7+AK7-AN7>24,(S7+AK7-AN7)-24,S7+AK7-AN7)>IJD,IF(S7+AK7-AN7>24,(S7+AK7-AN7)-24,S7+AK7-AN7)<FJD,T7>=IJD,T7<FJD),FJD-IF(S7+AK7-AN7>24,(S7+AK7-AN7)-24,S7+AK7-AN7)+T7-IJD,IF(AND(IF(S7+AK7-AN7>24,(S7+AK7-AN7)-24,S7+AK7-AN7)>=IJD,IF(S7+AK7-AN7>24,(S7+AK7-AN7)-24,S7+AK7-AN7)<FJD,T7<IJD),FJD-IF(S7+AK7-AN7>24,(S7+AK7-AN7)-24,S7+AK7-AN7),IF(AND(IF(S7+AK7-AN7>24,(S7+AK7-AN7)-24,S7+AK7-AN7)>FJD,T7>IJD,T7<FJD),T7-IJD,IF(AND(IF(S7+AK7-AN7>24,(S7+AK7-AN7)-24,S7+AK7-AN7)>FJD,T7>FJD),16,IF(AND(IF(S7+AK7-AN7>24,(S7+AK7-AN7)-24,S7+AK7-AN7)<IJD,T7<IJD),16,0)))))))),0) -> 0 | AP7: 0 | AQ7: 8 | AR7: =IF(AND(H7="N/A",K7="N/A"),IF(T7>Q7,IF(AND(Q7>=IJD,T7<=FJD),T7-Q7,IF(AND(Q7<IJD,T7>FJD),FJD-IJD,IF(AND(Q7>=IJD,Q7<FJD,T7<24),FJD-Q7,IF(AND(Q7<IJD,T7>IJD,T7<FJD),T7-IJD,0)))),IF(T7<Q7,IF(AND(Q7>IJD,Q7<FJD,T7>=IJD,T7<FJD),FJD-Q7+T7-IJD,IF(AND(Q7>=IJD,Q7<FJD,T7<IJD),FJD-Q7,IF(AND(Q7>FJD,T7>IJD,T7<FJD),T7-IJD,IF(AND(Q7>FJD,T7>FJD),16,IF(AND(Q7<IJD,T7<IJD),16,0))))))),0) -> 2.983333333 | AS7: 5.016666667 | AT7: 0 | AU7: =IF(AND(H7="N/A",K7="N/A"),IF(AT7=0,0,IF(T7>IF(Q7+AQ7-AT7>24,(Q7+AQ7-AT7)-24,Q7+AQ7-AT7),IF(AND(IF(Q7+AQ7-AT7>24,(Q7+AQ7-AT7)-24,Q7+AQ7-AT7)>=IJD,T7<=FJD),T7-IF(Q7+AQ7-AT7>24,(Q7+AQ7-AT7)-24,Q7+AQ7-AT7),IF(AND(IF(Q7+AQ7-AT7>24,(Q7+AQ7-AT7)-24,Q7+AQ7-AT7)<IJD,T7>FJD),FJD-IJD,IF(AND(IF(Q7+AQ7-AT7>24,(Q7+AQ7-AT7)-24,Q7+AQ7-AT7)>=IJD,IF(Q7+AQ7-AT7>24,(Q7+AQ7-AT7)-24,Q7+AQ7-AT7)<FJD,T7<24),FJD-IF(Q7+AQ7-AT7>24,(Q7+AQ7-AT7)-24,Q7+AQ7-AT7),IF(AND(IF(Q7+AQ7-AT7>24,(Q7+AQ7-AT7)-24,Q7+AQ7-AT7)<IJD,T7>IJD,T7<FJD),T7-IJD,0)))),IF(T7<IF(Q7+AQ7-AT7>24,(Q7+AQ7-AT7)-24,Q7+AQ7-AT7),IF(AND(IF(Q7+AQ7-AT7>24,(Q7+AQ7-AT7)-24,Q7+AQ7-AT7)>IJD,IF(Q7+AQ7-AT7>24,(Q7+AQ7-AT7)-24,Q7+AQ7-AT7)<FJD,T7>=IJD,T7<FJD),FJD-IF(Q7+AQ7-AT7>24,(Q7+AQ7-AT7)-24,Q7+AQ7-AT7)+T7-IJD,IF(AND(IF(Q7+AQ7-AT7>24,(Q7+AQ7-AT7)-24,Q7+AQ7-AT7)>=IJD,IF(Q7+AQ7-AT7>24,(Q7+AQ7-AT7)-24,Q7+AQ7-AT7)<FJD,T7<IJD),FJD-IF(Q7+AQ7-AT7>24,(Q7+AQ7-AT7)-24,Q7+AQ7-AT7),IF(AND(IF(Q7+AQ7-AT7>24,(Q7+AQ7-AT7)-24,Q7+AQ7-AT7)>FJD,T7>IJD,T7<FJD),T7-IJD,IF(AND(IF(Q7+AQ7-AT7>24,(Q7+AQ7-AT7)-24,Q7+AQ7-AT7)>FJD,T7>FJD),16,IF(AND(IF(Q7+AQ7-AT7>24,(Q7+AQ7-AT7)-24,Q7+AQ7-AT7)<IJD,T7<IJD),16,0)))))))),0) -> 0 | AV7: 0 | AW7: =X7*((1+RECARGONOCTURNA)*VALORHORAORDINARIA) -> 20250 | AX7: =Z7*((1+RECARGOEXTRADIURNA)*VALORHORAORDINARIA) -> 0 | AY7: =AA7*((1+RECARGOEXTRANOCTURNA)*VALORHORAORDINARIA) -> 0 | AZ7: 20250 | BA7: =IF(Y7>2,"Excedio el límite de horas Extras en " & Y7-LIMITEHORASEXTRAXDIA,"") -> 
A8: 98702520 | B8: Esteban | C8: Mira | D8: 8 | E8: 22 | F8: : | G8: 00 | H8: N/A | I8: : | J8: N/A | K8: N/A | L8: : | M8: N/A | N8: 08 | O8: : | P8: 00 | Q8: 22 | R8: #VALUE! | S8: #VALUE! | T8: 8 | U8: 10 | V8: 8 | W8: =ROUND(AC8-AF8+AL8-AO8+AR8-AU8,1) -> 0 | X8: 8 | Y8: 2 | Z8: =ROUND(AF8+AO8+AU8,1) -> 2 | AA8: 0 | AB8: 0 | AC8: =IF(AND(H8<>"N/A",K8<>"N/A"),IF(R8>Q8,IF(AND(Q8>=IJD,R8<=FJD),R8-Q8,IF(AND(Q8<IJD,R8>FJD),FJD-IJD,IF(AND(Q8>=IJD,Q8<FJD,R8<24),FJD-Q8,IF(AND(Q8<IJD,R8>IJD,R8<FJD),R8-IJD,0)))),IF(R8<Q8,IF(AND(Q8>IJD,Q8<FJD,R8>=IJD,R8<FJD),FJD-Q8+R8-IJD,IF(AND(Q8>=IJD,Q8<FJD,R8<IJD),FJD-Q8,IF(AND(Q8>FJD,R8>IJD,R8<FJD),R8-IJD,IF(AND(Q8>FJD,R8>FJD),16,IF(AND(Q8<IJD,R8<IJD),16,0))))))),0) -> 0 | AD8: 0 | AE8: 0 | AF8: =IF(AND(H8<>"N/A",K8<>"N/A"),IF(AE8=0,0,IF(R8>IF(Q8+AB8-AE8>24,(Q8+AB8-AE8)-24,Q8+AB8-AE8),IF(AND(IF(Q8+AB8-AE8>24,(Q8+AB8-AE8)-24,Q8+AB8-AE8)>=IJD,R8<=FJD),R8-IF(Q8+AB8-AE8>24,(Q8+AB8-AE8)-24,Q8+AB8-AE8),IF(AND(IF(Q8+AB8-AE8>24,(Q8+AB8-AE8)-24,Q8+AB8-AE8)<IJD,R8>FJD),FJD-IJD,IF(AND(IF(Q8+AB8-AE8>24,(Q8+AB8-AE8)-24,Q8+AB8-AE8)>=IJD,IF(Q8+AB8-AE8>24,(Q8+AB8-AE8)-24,Q8+AB8-AE8)<FJD,R8<24),FJD-IF(Q8+AB8-AE8>24,(Q8+AB8-AE8)-24,Q8+AB8-AE8),IF(AND(IF(Q8+AB8-AE8>24,(Q8+AB8-AE8)-24,Q8+AB8-AE8)<IJD,R8>IJD,R8<FJD),R8-IJD,0)))),IF(R8<IF(Q8+AB8-AE8>24,(Q8+AB8-AE8)-24,Q8+AB8-AE8),IF(AND(IF(Q8+AB8-AE8>24,(Q8+AB8-AE8)-24,Q8+AB8-AE8)>IJD,IF(Q8+AB8-AE8>24,(Q8+AB8-AE8)-24,Q8+AB8-AE8)<FJD,R8>=IJD,R8<FJD),FJD-IF(Q8+AB8-AE8>24,(Q8+AB8-AE8)-24,Q8+AB8-AE8)+R8-IJD,IF(AND(IF(Q8+AB8-AE8>24,(Q8+AB8-AE8)-24,Q8+AB8-AE8)>=IJD,IF(Q8+AB8-AE8>24,(Q8+AB8-AE8)-24,Q8+AB8-AE8)<FJD,R8<IJD),FJD-IF(Q8+AB8-AE8>24,(Q8+AB8-AE8)-24,Q8+AB8-AE8),IF(AND(IF(Q8+AB8-AE8>24,(Q8+AB8-AE8)-24,Q8+AB8-AE8)>FJD,R8>IJD,R8<FJD),R8-IJD,IF(AND(IF(Q8+AB8-AE8>24,(Q8+AB8-AE8)-24,Q8+AB8-AE8)>FJD,R8>FJD),16,IF(AND(IF(Q8+AB8-AE8>24,(Q8+AB8-AE8)-24,Q8+AB8-AE8)<IJD,R8<IJD),16,0)))))))),0) -> 0 | AG8: 0 | AH8: 0 | AI8: =IF(AND(H8<>"N/A",K8<>"N/A"),IF(S8>R8,IF(AND(R8>=IJD,S8<FJD),S8-R8,IF(AND(R8>=IJD,S8>FJD),IF(R8>FJD,R8-FJD,FJD-R8),IF(AND(R8<IJD,S8>=IJD,S8>FJD),S8-IJD-(S8-FJD),IF(AND(R8<IJD,S8>=IJD),S8-IJD,IF(AND(R8<IJD,S8<IJD),0))))),IF(S8<R8,IF(AND(R8>=FJD,S8<=IJD),0,IF(AND(R8<FJD,S8<=IJD),FJD-R8,IF(AND(R8>FJD,S8>IJD),S8-IJD,IF(AND(R8<FJD,S8>IJD),FJD-R8+S8-IJD)))))),0) -> 0 | AJ8: 0 | AK8: 0 | AL8: =IF(AND(H8<>"N/A",K8<>"N/A"),IF(T8>S8,IF(AND(S8>=IJD,T8<=FJD),T8-S8,IF(AND(S8<IJD,T8>FJD),FJD-IJD,IF(AND(S8>=IJD,S8<FJD,T8<24),FJD-S8,IF(AND(S8<IJD,T8>IJD,T8<FJD),T8-IJD,0)))),IF(T8<S8,IF(AND(S8>IJD,S8<FJD,T8>=IJD,T8<FJD),FJD-S8+T8-IJD,IF(AND(S8>=IJD,S8<FJD,T8<IJD),FJD-S8,IF(AND(S8>FJD,T8>IJD,T8<FJD),T8-IJD,IF(AND(S8>FJD,T8>FJD),16,IF(AND(S8<IJD,T8<IJD),16,0))))))),0) -> 0 | AM8: 0 | AN8: 0 | AO8: =IF(AND(H8<>"N/A",K8<>"N/A"),IF(AN8=0,0,IF(T8>IF(S8+AK8-AN8>24,(S8+AK8-AN8)-24,S8+AK8-AN8),IF(AND(IF(S8+AK8-AN8>24,(S8+AK8-AN8)-24,S8+AK8-AN8)>=IJD,T8<=FJD),T8-IF(S8+AK8-AN8>24,(S8+AK8-AN8)-24,S8+AK8-AN8),IF(AND(IF(S8+AK8-AN8>24,(S8+AK8-AN8)-24,S8+AK8-AN8)<IJD,T8>FJD),FJD-IJD,IF(AND(IF(S8+AK8-AN8>24,(S8+AK8-AN8)-24,S8+AK8-AN8)>=IJD,IF(S8+AK8-AN8>24,(S8+AK8-AN8)-24,S8+AK8-AN8)<FJD,T8<24),FJD-IF(S8+AK8-AN8>24,(S8+AK8-AN8)-24,S8+AK8-AN8),IF(AND(IF(S8+AK8-AN8>24,(S8+AK8-AN8)-24,S8+AK8-AN8)<IJD,T8>IJD,T8<FJD),T8-IJD,0)))),IF(T8<IF(S8+AK8-AN8>24,(S8+AK8-AN8)-24,S8+AK8-AN8),IF(AND(IF(S8+AK8-AN8>24,(S8+AK8-AN8)-24,S8+AK8-AN8)>IJD,IF(S8+AK8-AN8>24,(S8+AK8-AN8)-24,S8+AK8-AN8)<FJD,T8>=IJD,T8<FJD),FJD-IF(S8+AK8-AN8>24,(S8+AK8-AN8)-24,S8+AK8-AN8)+T8-IJD,IF(AND(IF(S8+AK8-AN8>24,(S8+AK8-AN8)-24,S8+AK8-AN8)>=IJD,IF(S8+AK8-AN8>24,(S8+AK8-AN8)-24,S8+AK8-AN8)<FJD,T8<IJD),FJD-IF(S8+AK8-AN8>24,(S8+AK8-AN8)-24,S8+AK8-AN8),IF(AND(IF(S8+AK8-AN8>24,(S8+AK8-AN8)-24,S8+AK8-AN8)>FJD,T8>IJD,T8<FJD),T8-IJD,IF(AND(IF(S8+AK8-AN8>24,(S8+AK8-AN8)-24,S8+AK8-AN8)>FJD,T8>FJD),16,IF(AND(IF(S8+AK8-AN8>24,(S8+AK8-AN8)-24,S8+AK8-AN8)<IJD,T8<IJD),16,0)))))))),0) -> 0 | AP8: 0 | AQ8: 10 | AR8: =IF(AND(H8="N/A",K8="N/A"),IF(T8>Q8,IF(AND(Q8>=IJD,T8<=FJD),T8-Q8,IF(AND(Q8<IJD,T8>FJD),FJD-IJD,IF(AND(Q8>=IJD,Q8<FJD,T8<24),FJD-Q8,IF(AND(Q8<IJD,T8>IJD,T8<FJD),T8-IJD,0)))),IF(T8<Q8,IF(AND(Q8>IJD,Q8<FJD,T8>=IJD,T8<FJD),FJD-Q8+T8-IJD,IF(AND(Q8>=IJD,Q8<FJD,T8<IJD),FJD-Q8,IF(AND(Q8>FJD,T8>IJD,T8<FJD),T8-IJD,IF(AND(Q8>FJD,T8>FJD),16,IF(AND(Q8<IJD,T8<IJD),16,0))))))),0) -> 2 | AS8: 8 | AT8: 2 | AU8: =IF(AND(H8="N/A",K8="N/A"),IF(AT8=0,0,IF(T8>IF(Q8+AQ8-AT8>24,(Q8+AQ8-AT8)-24,Q8+AQ8-AT8),IF(AND(IF(Q8+AQ8-AT8>24,(Q8+AQ8-AT8)-24,Q8+AQ8-AT8)>=IJD,T8<=FJD),T8-IF(Q8+AQ8-AT8>24,(Q8+AQ8-AT8)-24,Q8+AQ8-AT8),IF(AND(IF(Q8+AQ8-AT8>24,(Q8+AQ8-AT8)-24,Q8+AQ8-AT8)<IJD,T8>FJD),FJD-IJD,IF(AND(IF(Q8+AQ8-AT8>24,(Q8+AQ8-AT8)-24,Q8+AQ8-AT8)>=IJD,IF(Q8+AQ8-AT8>24,(Q8+AQ8-AT8)-24,Q8+AQ8-AT8)<FJD,T8<24),FJD-IF(Q8+AQ8-AT8>24,(Q8+AQ8-AT8)-24,Q8+AQ8-AT8),IF(AND(IF(Q8+AQ8-AT8>24,(Q8+AQ8-AT8)-24,Q8+AQ8-AT8)<IJD,T8>IJD,T8<FJD),T8-IJD,0)))),IF(T8<IF(Q8+AQ8-AT8>24,(Q8+AQ8-AT8)-24,Q8+AQ8-AT8),IF(AND(IF(Q8+AQ8-AT8>24,(Q8+AQ8-AT8)-24,Q8+AQ8-AT8)>IJD,IF(Q8+AQ8-AT8>24,(Q8+AQ8-AT8)-24,Q8+AQ8-AT8)<FJD,T8>=IJD,T8<FJD),FJD-IF(Q8+AQ8-AT8>24,(Q8+AQ8-AT8)-24,Q8+AQ8-AT8)+T8-IJD,IF(AND(IF(Q8+AQ8-AT8>24,(Q8+AQ8-AT8)-24,Q8+AQ8-AT8)>=IJD,IF(Q8+AQ8-AT8>24,(Q8+AQ8-AT8)-24,Q8+AQ8-AT8)<FJD,T8<IJD),FJD-IF(Q8+AQ8-AT8>24,(Q8+AQ8-AT8)-24,Q8+AQ8-AT8),IF(AND(IF(Q8+AQ8-AT8>24,(Q8+AQ8-AT8)-24,Q8+AQ8-AT8)>FJD,T8>IJD,T8<FJD),T8-IJD,IF(AND(IF(Q8+AQ8-AT8>24,(Q8+AQ8-AT8)-24,Q8+AQ8-AT8)>FJD,T8>FJD),16,IF(AND(IF(Q8+AQ8-AT8>24,(Q8+AQ8-AT8)-24,Q8+AQ8-AT8)<IJD,T8<IJD),16,0)))))))),0) -> 2 | AV8: 0 | AW8: =X8*((1+RECARGONOCTURNA)*VALORHORAORDINARIA) -> 32400 | AX8: =Z8*((1+RECARGOEXTRADIURNA)*VALORHORAORDINARIA) -> 7500 | AY8: =AA8*((1+RECARGOEXTRANOCTURNA)*VALORHORAORDINARIA) -> 0 | AZ8: 39900 | BA8: =IF(Y8>2,"Excedio el límite de horas Extras en " & Y8-LIMITEHORASEXTRAXDIA,"") -> 
A9: 95721889 | B9: Johana | C9: Aristizabal | D9: 8 | E9: 08 | F9: : | G9: 00 | H9: 12 | I9: : | J9: 00 | K9: 14 | L9: : | M9: 00 | N9: 18 | O9: : | P9: 00 | Q9: 8 | R9: 12 | S9: 14 | T9: 18 | U9: 8 | V9: 8 | W9: =ROUND(AC9-AF9+AL9-AO9+AR9-AU9,1) -> 8 | X9: 0 | Y9: 0 | Z9: =ROUND(AF9+AO9+AU9,1) -> 0 | AA9: 0 | AB9: 4 | AC9: =IF(AND(H9<>"N/A",K9<>"N/A"),IF(R9>Q9,IF(AND(Q9>=IJD,R9<=FJD),R9-Q9,IF(AND(Q9<IJD,R9>FJD),FJD-IJD,IF(AND(Q9>=IJD,Q9<FJD,R9<24),FJD-Q9,IF(AND(Q9<IJD,R9>IJD,R9<FJD),R9-IJD,0)))),IF(R9<Q9,IF(AND(Q9>IJD,Q9<FJD,R9>=IJD,R9<FJD),FJD-Q9+R9-IJD,IF(AND(Q9>=IJD,Q9<FJD,R9<IJD),FJD-Q9,IF(AND(Q9>FJD,R9>IJD,R9<FJD),R9-IJD,IF(AND(Q9>FJD,R9>FJD),16,IF(AND(Q9<IJD,R9<IJD),16,0))))))),0) -> 4 | AD9: 0 | AE9: 0 | AF9: =IF(AND(H9<>"N/A",K9<>"N/A"),IF(AE9=0,0,IF(R9>IF(Q9+AB9-AE9>24,(Q9+AB9-AE9)-24,Q9+AB9-AE9),IF(AND(IF(Q9+AB9-AE9>24,(Q9+AB9-AE9)-24,Q9+AB9-AE9)>=IJD,R9<=FJD),R9-IF(Q9+AB9-AE9>24,(Q9+AB9-AE9)-24,Q9+AB9-AE9),IF(AND(IF(Q9+AB9-AE9>24,(Q9+AB9-AE9)-24,Q9+AB9-AE9)<IJD,R9>FJD),FJD-IJD,IF(AND(IF(Q9+AB9-AE9>24,(Q9+AB9-AE9)-24,Q9+AB9-AE9)>=IJD,IF(Q9+AB9-AE9>24,(Q9+AB9-AE9)-24,Q9+AB9-AE9)<FJD,R9<24),FJD-IF(Q9+AB9-AE9>24,(Q9+AB9-AE9)-24,Q9+AB9-AE9),IF(AND(IF(Q9+AB9-AE9>24,(Q9+AB9-AE9)-24,Q9+AB9-AE9)<IJD,R9>IJD,R9<FJD),R9-IJD,0)))),IF(R9<IF(Q9+AB9-AE9>24,(Q9+AB9-AE9)-24,Q9+AB9-AE9),IF(AND(IF(Q9+AB9-AE9>24,(Q9+AB9-AE9)-24,Q9+AB9-AE9)>IJD,IF(Q9+AB9-AE9>24,(Q9+AB9-AE9)-24,Q9+AB9-AE9)<FJD,R9>=IJD,R9<FJD),FJD-IF(Q9+AB9-AE9>24,(Q9+AB9-AE9)-24,Q9+AB9-AE9)+R9-IJD,IF(AND(IF(Q9+AB9-AE9>24,(Q9+AB9-AE9)-24,Q9+AB9-AE9)>=IJD,IF(Q9+AB9-AE9>24,(Q9+AB9-AE9)-24,Q9+AB9-AE9)<FJD,R9<IJD),FJD-IF(Q9+AB9-AE9>24,(Q9+AB9-AE9)-24,Q9+AB9-AE9),IF(AND(IF(Q9+AB9-AE9>24,(Q9+AB9-AE9)-24,Q9+AB9-AE9)>FJD,R9>IJD,R9<FJD),R9-IJD,IF(AND(IF(Q9+AB9-AE9>24,(Q9+AB9-AE9)-24,Q9+AB9-AE9)>FJD,R9>FJD),16,IF(AND(IF(Q9+AB9-AE9>24,(Q9+AB9-AE9)-24,Q9+AB9-AE9)<IJD,R9<IJD),16,0)))))))),0) -> 0 | AG9: 0 | AH9: 2 | AI9: =IF(AND(H9<>"N/A",K9<>"N/A"),IF(S9>R9,IF(AND(R9>=IJD,S9<FJD),S9-R9,IF(AND(R9>=IJD,S9>FJD),IF(R9>FJD,R9-FJD,FJD-R9),IF(AND(R9<IJD,S9>=IJD,S9>FJD),S9-IJD-(S9-FJD),IF(AND(R9<IJD,S9>=IJD),S9-IJD,IF(AND(R9<IJD,S9<IJD),0))))),IF(S9<R9,IF(AND(R9>=FJD,S9<=IJD),0,IF(AND(R9<FJD,S9<=IJD),FJD-R9,IF(AND(R9>FJD,S9>IJD),S9-IJD,IF(AND(R9<FJD,S9>IJD),FJD-R9+S9-IJD)))))),0) -> 2 | AJ9: 0 | AK9: 4 | AL9: =IF(AND(H9<>"N/A",K9<>"N/A"),IF(T9>S9,IF(AND(S9>=IJD,T9<=FJD),T9-S9,IF(AND(S9<IJD,T9>FJD),FJD-IJD,IF(AND(S9>=IJD,S9<FJD,T9<24),FJD-S9,IF(AND(S9<IJD,T9>IJD,T9<FJD),T9-IJD,0)))),IF(T9<S9,IF(AND(S9>IJD,S9<FJD,T9>=IJD,T9<FJD),FJD-S9+T9-IJD,IF(AND(S9>=IJD,S9<FJD,T9<IJD),FJD-S9,IF(AND(S9>FJD,T9>IJD,T9<FJD),T9-IJD,IF(AND(S9>FJD,T9>FJD),16,IF(AND(S9<IJD,T9<IJD),16,0))))))),0) -> 4 | AM9: 0 | AN9: 0 | AO9: =IF(AND(H9<>"N/A",K9<>"N/A"),IF(AN9=0,0,IF(T9>IF(S9+AK9-AN9>24,(S9+AK9-AN9)-24,S9+AK9-AN9),IF(AND(IF(S9+AK9-AN9>24,(S9+AK9-AN9)-24,S9+AK9-AN9)>=IJD,T9<=FJD),T9-IF(S9+AK9-AN9>24,(S9+AK9-AN9)-24,S9+AK9-AN9),IF(AND(IF(S9+AK9-AN9>24,(S9+AK9-AN9)-24,S9+AK9-AN9)<IJD,T9>FJD),FJD-IJD,IF(AND(IF(S9+AK9-AN9>24,(S9+AK9-AN9)-24,S9+AK9-AN9)>=IJD,IF(S9+AK9-AN9>24,(S9+AK9-AN9)-24,S9+AK9-AN9)<FJD,T9<24),FJD-IF(S9+AK9-AN9>24,(S9+AK9-AN9)-24,S9+AK9-AN9),IF(AND(IF(S9+AK9-AN9>24,(S9+AK9-AN9)-24,S9+AK9-AN9)<IJD,T9>IJD,T9<FJD),T9-IJD,0)))),IF(T9<IF(S9+AK9-AN9>24,(S9+AK9-AN9)-24,S9+AK9-AN9),IF(AND(IF(S9+AK9-AN9>24,(S9+AK9-AN9)-24,S9+AK9-AN9)>IJD,IF(S9+AK9-AN9>24,(S9+AK9-AN9)-24,S9+AK9-AN9)<FJD,T9>=IJD,T9<FJD),FJD-IF(S9+AK9-AN9>24,(S9+AK9-AN9)-24,S9+AK9-AN9)+T9-IJD,IF(AND(IF(S9+AK9-AN9>24,(S9+AK9-AN9)-24,S9+AK9-AN9)>=IJD,IF(S9+AK9-AN9>24,(S9+AK9-AN9)-24,S9+AK9-AN9)<FJD,T9<IJD),FJD-IF(S9+AK9-AN9>24,(S9+AK9-AN9)-24,S9+AK9-AN9),IF(AND(IF(S9+AK9-AN9>24,(S9+AK9-AN9)-24,S9+AK9-AN9)>FJD,T9>IJD,T9<FJD),T9-IJD,IF(AND(IF(S9+AK9-AN9>24,(S9+AK9-AN9)-24,S9+AK9-AN9)>FJD,T9>FJD),16,IF(AND(IF(S9+AK9-AN9>24,(S9+AK9-AN9)-24,S9+AK9-AN9)<IJD,T9<IJD),16,0)))))))),0) -> 0 | AP9: 0 | AQ9: 0 | AR9: =IF(AND(H9="N/A",K9="N/A"),IF(T9>Q9,IF(AND(Q9>=IJD,T9<=FJD),T9-Q9,IF(AND(Q9<IJD,T9>FJD),FJD-IJD,IF(AND(Q9>=IJD,Q9<FJD,T9<24),FJD-Q9,IF(AND(Q9<IJD,T9>IJD,T9<FJD),T9-IJD,0)))),IF(T9<Q9,IF(AND(Q9>IJD,Q9<FJD,T9>=IJD,T9<FJD),FJD-Q9+T9-IJD,IF(AND(Q9>=IJD,Q9<FJD,T9<IJD),FJD-Q9,IF(AND(Q9>FJD,T9>IJD,T9<FJD),T9-IJD,IF(AND(Q9>FJD,T9>FJD),16,IF(AND(Q9<IJD,T9<IJD),16,0))))))),0) -> 0 | AS9: 0 | AT9: 0 | AU9: =IF(AND(H9="N/A",K9="N/A"),IF(AT9=0,0,IF(T9>IF(Q9+AQ9-AT9>24,(Q9+AQ9-AT9)-24,Q9+AQ9-AT9),IF(AND(IF(Q9+AQ9-AT9>24,(Q9+AQ9-AT9)-24,Q9+AQ9-AT9)>=IJD,T9<=FJD),T9-IF(Q9+AQ9-AT9>24,(Q9+AQ9-AT9)-24,Q9+AQ9-AT9),IF(AND(IF(Q9+AQ9-AT9>24,(Q9+AQ9-AT9)-24,Q9+AQ9-AT9)<IJD,T9>FJD),FJD-IJD,IF(AND(IF(Q9+AQ9-AT9>24,(Q9+AQ9-AT9)-24,Q9+AQ9-AT9)>=IJD,IF(Q9+AQ9-AT9>24,(Q9+AQ9-AT9)-24,Q9+AQ9-AT9)<FJD,T9<24),FJD-IF(Q9+AQ9-AT9>24,(Q9+AQ9-AT9)-24,Q9+AQ9-AT9),IF(AND(IF(Q9+AQ9-AT9>24,(Q9+AQ9-AT9)-24,Q9+AQ9-AT9)<IJD,T9>IJD,T9<FJD),T9-IJD,0)))),IF(T9<IF(Q9+AQ9-AT9>24,(Q9+AQ9-AT9)-24,Q9+AQ9-AT9),IF(AND(IF(Q9+AQ9-AT9>24,(Q9+AQ9-AT9)-24,Q9+AQ9-AT9)>IJD,IF(Q9+AQ9-AT9>24,(Q9+AQ9-AT9)-24,Q9+AQ9-AT9)<FJD,T9>=IJD,T9<FJD),FJD-IF(Q9+AQ9-AT9>24,(Q9+AQ9-AT9)-24,Q9+AQ9-AT9)+T9-IJD,IF(AND(IF(Q9+AQ9-AT9>24,(Q9+AQ9-AT9)-24,Q9+AQ9-AT9)>=IJD,IF(Q9+AQ9-AT9>24,(Q9+AQ9-AT9)-24,Q9+AQ9-AT9)<FJD,T9<IJD),FJD-IF(Q9+AQ9-AT9>24,(Q9+AQ9-AT9)-24,Q9+AQ9-AT9),IF(AND(IF(Q9+AQ9-AT9>24,(Q9+AQ9-AT9)-24,Q9+AQ9-AT9)>FJD,T9>IJD,T9<FJD),T9-IJD,IF(AND(IF(Q9+AQ9-AT9>24,(Q9+AQ9-AT9)-24,Q9+AQ9-AT9)>FJD,T9>FJD),16,IF(AND(IF(Q9+AQ9-AT9>24,(Q9+AQ9-AT9)-24,Q9+AQ9-AT9)<IJD,T9<IJD),16,0)))))))),0) -> 0 | AV9: 0 | AW9: =X9*((1+RECARGONOCTURNA)*VALORHORAORDINARIA) -> 0 | AX9: =Z9*((1+RECARGOEXTRADIURNA)*VALORHORAORDINARIA) -> 0 | AY9: =AA9*((1+RECARGOEXTRANOCTURNA)*VALORHORAORDINARIA) -> 0 | AZ9: 0 | BA9: =IF(Y9>2,"Excedio el límite de horas Extras en " & Y9-LIMITEHORASEXTRAXDIA,"") -> 
A10: 92722045 | B10: Jose | C10: Contreras | D10: 8 | E10: 08 | F10: : | G10: 00 | H10: 12 | I10: : | J10: 00 | K10: 14 | L10: : | M10: 00 | N10: 20 | O10: : | P10: 00 | Q10: 8 | R10: 12 | S10: 14 | T10: 20 | U10: 10 | V10: 8 | W10: =ROUND(AC10-AF10+AL10-AO10+AR10-AU10,1) -> 8 | X10: 0 | Y10: 2 | Z10: =ROUND(AF10+AO10+AU10,1) -> 2 | AA10: 0 | AB10: 4 | AC10: =IF(AND(H10<>"N/A",K10<>"N/A"),IF(R10>Q10,IF(AND(Q10>=IJD,R10<=FJD),R10-Q10,IF(AND(Q10<IJD,R10>FJD),FJD-IJD,IF(AND(Q10>=IJD,Q10<FJD,R10<24),FJD-Q10,IF(AND(Q10<IJD,R10>IJD,R10<FJD),R10-IJD,0)))),IF(R10<Q10,IF(AND(Q10>IJD,Q10<FJD,R10>=IJD,R10<FJD),FJD-Q10+R10-IJD,IF(AND(Q10>=IJD,Q10<FJD,R10<IJD),FJD-Q10,IF(AND(Q10>FJD,R10>IJD,R10<FJD),R10-IJD,IF(AND(Q10>FJD,R10>FJD),16,IF(AND(Q10<IJD,R10<IJD),16,0))))))),0) -> 4 | AD10: 0 | AE10: 0 | AF10: =IF(AND(H10<>"N/A",K10<>"N/A"),IF(AE10=0,0,IF(R10>IF(Q10+AB10-AE10>24,(Q10+AB10-AE10)-24,Q10+AB10-AE10),IF(AND(IF(Q10+AB10-AE10>24,(Q10+AB10-AE10)-24,Q10+AB10-AE10)>=IJD,R10<=FJD),R10-IF(Q10+AB10-AE10>24,(Q10+AB10-AE10)-24,Q10+AB10-AE10),IF(AND(IF(Q10+AB10-AE10>24,(Q10+AB10-AE10)-24,Q10+AB10-AE10)<IJD,R10>FJD),FJD-IJD,IF(AND(IF(Q10+AB10-AE10>24,(Q10+AB10-AE10)-24,Q10+AB10-AE10)>=IJD,IF(Q10+AB10-AE10>24,(Q10+AB10-AE10)-24,Q10+AB10-AE10)<FJD,R10<24),FJD-IF(Q10+AB10-AE10>24,(Q10+AB10-AE10)-24,Q10+AB10-AE10),IF(AND(IF(Q10+AB10-AE10>24,(Q10+AB10-AE10)-24,Q10+AB10-AE10)<IJD,R10>IJD,R10<FJD),R10-IJD,0)))),IF(R10<IF(Q10+AB10-AE10>24,(Q10+AB10-AE10)-24,Q10+AB10-AE10),IF(AND(IF(Q10+AB10-AE10>24,(Q10+AB10-AE10)-24,Q10+AB10-AE10)>IJD,IF(Q10+AB10-AE10>24,(Q10+AB10-AE10)-24,Q10+AB10-AE10)<FJD,R10>=IJD,R10<FJD),FJD-IF(Q10+AB10-AE10>24,(Q10+AB10-AE10)-24,Q10+AB10-AE10)+R10-IJD,IF(AND(IF(Q10+AB10-AE10>24,(Q10+AB10-AE10)-24,Q10+AB10-AE10)>=IJD,IF(Q10+AB10-AE10>24,(Q10+AB10-AE10)-24,Q10+AB10-AE10)<FJD,R10<IJD),FJD-IF(Q10+AB10-AE10>24,(Q10+AB10-AE10)-24,Q10+AB10-AE10),IF(AND(IF(Q10+AB10-AE10>24,(Q10+AB10-AE10)-24,Q10+AB10-AE10)>FJD,R10>IJD,R10<FJD),R10-IJD,IF(AND(IF(Q10+AB10-AE10>24,(Q10+AB10-AE10)-24,Q10+AB10-AE10)>FJD,R10>FJD),16,IF(AND(IF(Q10+AB10-AE10>24,(Q10+AB10-AE10)-24,Q10+AB10-AE10)<IJD,R10<IJD),16,0)))))))),0) -> 0 | AG10: 0 | AH10: 2 | AI10: =IF(AND(H10<>"N/A",K10<>"N/A"),IF(S10>R10,IF(AND(R10>=IJD,S10<FJD),S10-R10,IF(AND(R10>=IJD,S10>FJD),IF(R10>FJD,R10-FJD,FJD-R10),IF(AND(R10<IJD,S10>=IJD,S10>FJD),S10-IJD-(S10-FJD),IF(AND(R10<IJD,S10>=IJD),S10-IJD,IF(AND(R10<IJD,S10<IJD),0))))),IF(S10<R10,IF(AND(R10>=FJD,S10<=IJD),0,IF(AND(R10<FJD,S10<=IJD),FJD-R10,IF(AND(R10>FJD,S10>IJD),S10-IJD,IF(AND(R10<FJD,S10>IJD),FJD-R10+S10-IJD)))))),0) -> 2 | AJ10: 0 | AK10: 6 | AL10: =IF(AND(H10<>"N/A",K10<>"N/A"),IF(T10>S10,IF(AND(S10>=IJD,T10<=FJD),T10-S10,IF(AND(S10<IJD,T10>FJD),FJD-IJD,IF(AND(S10>=IJD,S10<FJD,T10<24),FJD-S10,IF(AND(S10<IJD,T10>IJD,T10<FJD),T10-IJD,0)))),IF(T10<S10,IF(AND(S10>IJD,S10<FJD,T10>=IJD,T10<FJD),FJD-S10+T10-IJD,IF(AND(S10>=IJD,S10<FJD,T10<IJD),FJD-S10,IF(AND(S10>FJD,T10>IJD,T10<FJD),T10-IJD,IF(AND(S10>FJD,T10>FJD),16,IF(AND(S10<IJD,T10<IJD),16,0))))))),0) -> 6 | AM10: 0 | AN10: 2 | AO10: =IF(AND(H10<>"N/A",K10<>"N/A"),IF(AN10=0,0,IF(T10>IF(S10+AK10-AN10>24,(S10+AK10-AN10)-24,S10+AK10-AN10),IF(AND(IF(S10+AK10-AN10>24,(S10+AK10-AN10)-24,S10+AK10-AN10)>=IJD,T10<=FJD),T10-IF(S10+AK10-AN10>24,(S10+AK10-AN10)-24,S10+AK10-AN10),IF(AND(IF(S10+AK10-AN10>24,(S10+AK10-AN10)-24,S10+AK10-AN10)<IJD,T10>FJD),FJD-IJD,IF(AND(IF(S10+AK10-AN10>24,(S10+AK10-AN10)-24,S10+AK10-AN10)>=IJD,IF(S10+AK10-AN10>24,(S10+AK10-AN10)-24,S10+AK10-AN10)<FJD,T10<24),FJD-IF(S10+AK10-AN10>24,(S10+AK10-AN10)-24,S10+AK10-AN10),IF(AND(IF(S10+AK10-AN10>24,(S10+AK10-AN10)-24,S10+AK10-AN10)<IJD,T10>IJD,T10<FJD),T10-IJD,0)))),IF(T10<IF(S10+AK10-AN10>24,(S10+AK10-AN10)-24,S10+AK10-AN10),IF(AND(IF(S10+AK10-AN10>24,(S10+AK10-AN10)-24,S10+AK10-AN10)>IJD,IF(S10+AK10-AN10>24,(S10+AK10-AN10)-24,S10+AK10-AN10)<FJD,T10>=IJD,T10<FJD),FJD-IF(S10+AK10-AN10>24,(S10+AK10-AN10)-24,S10+AK10-AN10)+T10-IJD,IF(AND(IF(S10+AK10-AN10>24,(S10+AK10-AN10)-24,S10+AK10-AN10)>=IJD,IF(S10+AK10-AN10>24,(S10+AK10-AN10)-24,S10+AK10-AN10)<FJD,T10<IJD),FJD-IF(S10+AK10-AN10>24,(S10+AK10-AN10)-24,S10+AK10-AN10),IF(AND(IF(S10+AK10-AN10>24,(S10+AK10-AN10)-24,S10+AK10-AN10)>FJD,T10>IJD,T10<FJD),T10-IJD,IF(AND(IF(S10+AK10-AN10>24,(S10+AK10-AN10)-24,S10+AK10-AN10)>FJD,T10>FJD),16,IF(AND(IF(S10+AK10-AN10>24,(S10+AK10-AN10)-24,S10+AK10-AN10)<IJD,T10<IJD),16,0)))))))),0) -> 2 | AP10: 0 | AQ10: 0 | AR10: =IF(AND(H10="N/A",K10="N/A"),IF(T10>Q10,IF(AND(Q10>=IJD,T10<=FJD),T10-Q10,IF(AND(Q10<IJD,T10>FJD),FJD-IJD,IF(AND(Q10>=IJD,Q10<FJD,T10<24),FJD-Q10,IF(AND(Q10<IJD,T10>IJD,T10<FJD),T10-IJD,0)))),IF(T10<Q10,IF(AND(Q10>IJD,Q10<FJD,T10>=IJD,T10<FJD),FJD-Q10+T10-IJD,IF(AND(Q10>=IJD,Q10<FJD,T10<IJD),FJD-Q10,IF(AND(Q10>FJD,T10>IJD,T10<FJD),T10-IJD,IF(AND(Q10>FJD,T10>FJD),16,IF(AND(Q10<IJD,T10<IJD),16,0))))))),0) -> 0 | AS10: 0 | AT10: 0 | AU10: =IF(AND(H10="N/A",K10="N/A"),IF(AT10=0,0,IF(T10>IF(Q10+AQ10-AT10>24,(Q10+AQ10-AT10)-24,Q10+AQ10-AT10),IF(AND(IF(Q10+AQ10-AT10>24,(Q10+AQ10-AT10)-24,Q10+AQ10-AT10)>=IJD,T10<=FJD),T10-IF(Q10+AQ10-AT10>24,(Q10+AQ10-AT10)-24,Q10+AQ10-AT10),IF(AND(IF(Q10+AQ10-AT10>24,(Q10+AQ10-AT10)-24,Q10+AQ10-AT10)<IJD,T10>FJD),FJD-IJD,IF(AND(IF(Q10+AQ10-AT10>24,(Q10+AQ10-AT10)-24,Q10+AQ10-AT10)>=IJD,IF(Q10+AQ10-AT10>24,(Q10+AQ10-AT10)-24,Q10+AQ10-AT10)<FJD,T10<24),FJD-IF(Q10+AQ10-AT10>24,(Q10+AQ10-AT10)-24,Q10+AQ10-AT10),IF(AND(IF(Q10+AQ10-AT10>24,(Q10+AQ10-AT10)-24,Q10+AQ10-AT10)<IJD,T10>IJD,T10<FJD),T10-IJD,0)))),IF(T10<IF(Q10+AQ10-AT10>24,(Q10+AQ10-AT10)-24,Q10+AQ10-AT10),IF(AND(IF(Q10+AQ10-AT10>24,(Q10+AQ10-AT10)-24,Q10+AQ10-AT10)>IJD,IF(Q10+AQ10-AT10>24,(Q10+AQ10-AT10)-24,Q10+AQ10-AT10)<FJD,T10>=IJD,T10<FJD),FJD-IF(Q10+AQ10-AT10>24,(Q10+AQ10-AT10)-24,Q10+AQ10-AT10)+T10-IJD,IF(AND(IF(Q10+AQ10-AT10>24,(Q10+AQ10-AT10)-24,Q10+AQ10-AT10)>=IJD,IF(Q10+AQ10-AT10>24,(Q10+AQ10-AT10)-24,Q10+AQ10-AT10)<FJD,T10<IJD),FJD-IF(Q10+AQ10-AT10>24,(Q10+AQ10-AT10)-24,Q10+AQ10-AT10),IF(AND(IF(Q10+AQ10-AT10>24,(Q10+AQ10-AT10)-24,Q10+AQ10-AT10)>FJD,T10>IJD,T10<FJD),T10-IJD,IF(AND(IF(Q10+AQ10-AT10>24,(Q10+AQ10-AT10)-24,Q10+AQ10-AT10)>FJD,T10>FJD),16,IF(AND(IF(Q10+AQ10-AT10>24,(Q10+AQ10-AT10)-24,Q10+AQ10-AT10)<IJD,T10<IJD),16,0)))))))),0) -> 0 | AV10: 0 | AW10: =X10*((1+RECARGONOCTURNA)*VALORHORAORDINARIA) -> 0 | AX10: =Z10*((1+RECARGOEXTRADIURNA)*VALORHORAORDINARIA) -> 7500 | AY10: =AA10*((1+RECARGOEXTRANOCTURNA)*VALORHORAORDINARIA) -> 0 | AZ10: 7500 | BA10: =IF(Y10>2,"Excedio el límite de horas Extras en " & Y10-LIMITEHORASEXTRAXDIA,"") -> 
A11: 97527365 | B11: Mauricio | C11: Gutierrez | D11: 8 | E11: 14 | F11: : | G11: 00 | H11: 18 | I11: : | J11: 00 | K11: 19 | L11: : | M11: 00 | N11: 01 | O11: : | P11: 00 | Q11: 14 | R11: 18 | S11: 19 | T11: 1 | U11: 10 | V11: 8 | W11: =ROUND(AC11-AF11+AL11-AO11+AR11-AU11,1) -> 6 | X11: 2 | Y11: 2 | Z11: =ROUND(AF11+AO11+AU11,1) -> 0 | AA11: 2 | AB11: 4 | AC11: =IF(AND(H11<>"N/A",K11<>"N/A"),IF(R11>Q11,IF(AND(Q11>=IJD,R11<=FJD),R11-Q11,IF(AND(Q11<IJD,R11>FJD),FJD-IJD,IF(AND(Q11>=IJD,Q11<FJD,R11<24),FJD-Q11,IF(AND(Q11<IJD,R11>IJD,R11<FJD),R11-IJD,0)))),IF(R11<Q11,IF(AND(Q11>IJD,Q11<FJD,R11>=IJD,R11<FJD),FJD-Q11+R11-IJD,IF(AND(Q11>=IJD,Q11<FJD,R11<IJD),FJD-Q11,IF(AND(Q11>FJD,R11>IJD,R11<FJD),R11-IJD,IF(AND(Q11>FJD,R11>FJD),16,IF(AND(Q11<IJD,R11<IJD),16,0))))))),0) -> 4 | AD11: 0 | AE11: 0 | AF11: =IF(AND(H11<>"N/A",K11<>"N/A"),IF(AE11=0,0,IF(R11>IF(Q11+AB11-AE11>24,(Q11+AB11-AE11)-24,Q11+AB11-AE11),IF(AND(IF(Q11+AB11-AE11>24,(Q11+AB11-AE11)-24,Q11+AB11-AE11)>=IJD,R11<=FJD),R11-IF(Q11+AB11-AE11>24,(Q11+AB11-AE11)-24,Q11+AB11-AE11),IF(AND(IF(Q11+AB11-AE11>24,(Q11+AB11-AE11)-24,Q11+AB11-AE11)<IJD,R11>FJD),FJD-IJD,IF(AND(IF(Q11+AB11-AE11>24,(Q11+AB11-AE11)-24,Q11+AB11-AE11)>=IJD,IF(Q11+AB11-AE11>24,(Q11+AB11-AE11)-24,Q11+AB11-AE11)<FJD,R11<24),FJD-IF(Q11+AB11-AE11>24,(Q11+AB11-AE11)-24,Q11+AB11-AE11),IF(AND(IF(Q11+AB11-AE11>24,(Q11+AB11-AE11)-24,Q11+AB11-AE11)<IJD,R11>IJD,R11<FJD),R11-IJD,0)))),IF(R11<IF(Q11+AB11-AE11>24,(Q11+AB11-AE11)-24,Q11+AB11-AE11),IF(AND(IF(Q11+AB11-AE11>24,(Q11+AB11-AE11)-24,Q11+AB11-AE11)>IJD,IF(Q11+AB11-AE11>24,(Q11+AB11-AE11)-24,Q11+AB11-AE11)<FJD,R11>=IJD,R11<FJD),FJD-IF(Q11+AB11-AE11>24,(Q11+AB11-AE11)-24,Q11+AB11-AE11)+R11-IJD,IF(AND(IF(Q11+AB11-AE11>24,(Q11+AB11-AE11)-24,Q11+AB11-AE11)>=IJD,IF(Q11+AB11-AE11>24,(Q11+AB11-AE11)-24,Q11+AB11-AE11)<FJD,R11<IJD),FJD-IF(Q11+AB11-AE11>24,(Q11+AB11-AE11)-24,Q11+AB11-AE11),IF(AND(IF(Q11+AB11-AE11>24,(Q11+AB11-AE11)-24,Q11+AB11-AE11)>FJD,R11>IJD,R11<FJD),R11-IJD,IF(AND(IF(Q11+AB11-AE11>24,(Q11+AB11-AE11)-24,Q11+AB11-AE11)>FJD,R11>FJD),16,IF(AND(IF(Q11+AB11-AE11>24,(Q11+AB11-AE11)-24,Q11+AB11-AE11)<IJD,R11<IJD),16,0)))))))),0) -> 0 | AG11: 0 | AH11: 1 | AI11: =IF(AND(H11<>"N/A",K11<>"N/A"),IF(S11>R11,IF(AND(R11>=IJD,S11<FJD),S11-R11,IF(AND(R11>=IJD,S11>FJD),IF(R11>FJD,R11-FJD,FJD-R11),IF(AND(R11<IJD,S11>=IJD,S11>FJD),S11-IJD-(S11-FJD),IF(AND(R11<IJD,S11>=IJD),S11-IJD,IF(AND(R11<IJD,S11<IJD),0))))),IF(S11<R11,IF(AND(R11>=FJD,S11<=IJD),0,IF(AND(R11<FJD,S11<=IJD),FJD-R11,IF(AND(R11>FJD,S11>IJD),S11-IJD,IF(AND(R11<FJD,S11>IJD),FJD-R11+S11-IJD)))))),0) -> 1 | AJ11: 0 | AK11: 6 | AL11: =IF(AND(H11<>"N/A",K11<>"N/A"),IF(T11>S11,IF(AND(S11>=IJD,T11<=FJD),T11-S11,IF(AND(S11<IJD,T11>FJD),FJD-IJD,IF(AND(S11>=IJD,S11<FJD,T11<24),FJD-S11,IF(AND(S11<IJD,T11>IJD,T11<FJD),T11-IJD,0)))),IF(T11<S11,IF(AND(S11>IJD,S11<FJD,T11>=IJD,T11<FJD),FJD-S11+T11-IJD,IF(AND(S11>=IJD,S11<FJD,T11<IJD),FJD-S11,IF(AND(S11>FJD,T11>IJD,T11<FJD),T11-IJD,IF(AND(S11>FJD,T11>FJD),16,IF(AND(S11<IJD,T11<IJD),16,0))))))),0) -> 1.983333333 | AM11: 4.016666667 | AN11: 2 | AO11: =IF(AND(H11<>"N/A",K11<>"N/A"),IF(AN11=0,0,IF(T11>IF(S11+AK11-AN11>24,(S11+AK11-AN11)-24,S11+AK11-AN11),IF(AND(IF(S11+AK11-AN11>24,(S11+AK11-AN11)-24,S11+AK11-AN11)>=IJD,T11<=FJD),T11-IF(S11+AK11-AN11>24,(S11+AK11-AN11)-24,S11+AK11-AN11),IF(AND(IF(S11+AK11-AN11>24,(S11+AK11-AN11)-24,S11+AK11-AN11)<IJD,T11>FJD),FJD-IJD,IF(AND(IF(S11+AK11-AN11>24,(S11+AK11-AN11)-24,S11+AK11-AN11)>=IJD,IF(S11+AK11-AN11>24,(S11+AK11-AN11)-24,S11+AK11-AN11)<FJD,T11<24),FJD-IF(S11+AK11-AN11>24,(S11+AK11-AN11)-24,S11+AK11-AN11),IF(AND(IF(S11+AK11-AN11>24,(S11+AK11-AN11)-24,S11+AK11-AN11)<IJD,T11>IJD,T11<FJD),T11-IJD,0)))),IF(T11<IF(S11+AK11-AN11>24,(S11+AK11-AN11)-24,S11+AK11-AN11),IF(AND(IF(S11+AK11-AN11>24,(S11+AK11-AN11)-24,S11+AK11-AN11)>IJD,IF(S11+AK11-AN11>24,(S11+AK11-AN11)-24,S11+AK11-AN11)<FJD,T11>=IJD,T11<FJD),FJD-IF(S11+AK11-AN11>24,(S11+AK11-AN11)-24,S11+AK11-AN11)+T11-IJD,IF(AND(IF(S11+AK11-AN11>24,(S11+AK11-AN11)-24,S11+AK11-AN11)>=IJD,IF(S11+AK11-AN11>24,(S11+AK11-AN11)-24,S11+AK11-AN11)<FJD,T11<IJD),FJD-IF(S11+AK11-AN11>24,(S11+AK11-AN11)-24,S11+AK11-AN11),IF(AND(IF(S11+AK11-AN11>24,(S11+AK11-AN11)-24,S11+AK11-AN11)>FJD,T11>IJD,T11<FJD),T11-IJD,IF(AND(IF(S11+AK11-AN11>24,(S11+AK11-AN11)-24,S11+AK11-AN11)>FJD,T11>FJD),16,IF(AND(IF(S11+AK11-AN11>24,(S11+AK11-AN11)-24,S11+AK11-AN11)<IJD,T11<IJD),16,0)))))))),0) -> 0 | AP11: 2 | AQ11: 0 | AR11: =IF(AND(H11="N/A",K11="N/A"),IF(T11>Q11,IF(AND(Q11>=IJD,T11<=FJD),T11-Q11,IF(AND(Q11<IJD,T11>FJD),FJD-IJD,IF(AND(Q11>=IJD,Q11<FJD,T11<24),FJD-Q11,IF(AND(Q11<IJD,T11>IJD,T11<FJD),T11-IJD,0)))),IF(T11<Q11,IF(AND(Q11>IJD,Q11<FJD,T11>=IJD,T11<FJD),FJD-Q11+T11-IJD,IF(AND(Q11>=IJD,Q11<FJD,T11<IJD),FJD-Q11,IF(AND(Q11>FJD,T11>IJD,T11<FJD),T11-IJD,IF(AND(Q11>FJD,T11>FJD),16,IF(AND(Q11<IJD,T11<IJD),16,0))))))),0) -> 0 | AS11: 0 | AT11: 0 | AU11: =IF(AND(H11="N/A",K11="N/A"),IF(AT11=0,0,IF(T11>IF(Q11+AQ11-AT11>24,(Q11+AQ11-AT11)-24,Q11+AQ11-AT11),IF(AND(IF(Q11+AQ11-AT11>24,(Q11+AQ11-AT11)-24,Q11+AQ11-AT11)>=IJD,T11<=FJD),T11-IF(Q11+AQ11-AT11>24,(Q11+AQ11-AT11)-24,Q11+AQ11-AT11),IF(AND(IF(Q11+AQ11-AT11>24,(Q11+AQ11-AT11)-24,Q11+AQ11-AT11)<IJD,T11>FJD),FJD-IJD,IF(AND(IF(Q11+AQ11-AT11>24,(Q11+AQ11-AT11)-24,Q11+AQ11-AT11)>=IJD,IF(Q11+AQ11-AT11>24,(Q11+AQ11-AT11)-24,Q11+AQ11-AT11)<FJD,T11<24),FJD-IF(Q11+AQ11-AT11>24,(Q11+AQ11-AT11)-24,Q11+AQ11-AT11),IF(AND(IF(Q11+AQ11-AT11>24,(Q11+AQ11-AT11)-24,Q11+AQ11-AT11)<IJD,T11>IJD,T11<FJD),T11-IJD,0)))),IF(T11<IF(Q11+AQ11-AT11>24,(Q11+AQ11-AT11)-24,Q11+AQ11-AT11),IF(AND(IF(Q11+AQ11-AT11>24,(Q11+AQ11-AT11)-24,Q11+AQ11-AT11)>IJD,IF(Q11+AQ11-AT11>24,(Q11+AQ11-AT11)-24,Q11+AQ11-AT11)<FJD,T11>=IJD,T11<FJD),FJD-IF(Q11+AQ11-AT11>24,(Q11+AQ11-AT11)-24,Q11+AQ11-AT11)+T11-IJD,IF(AND(IF(Q11+AQ11-AT11>24,(Q11+AQ11-AT11)-24,Q11+AQ11-AT11)>=IJD,IF(Q11+AQ11-AT11>24,(Q11+AQ11-AT11)-24,Q11+AQ11-AT11)<FJD,T11<IJD),FJD-IF(Q11+AQ11-AT11>24,(Q11+AQ11-AT11)-24,Q11+AQ11-AT11),IF(AND(IF(Q11+AQ11-AT11>24,(Q11+AQ11-AT11)-24,Q11+AQ11-AT11)>FJD,T11>IJD,T11<FJD),T11-IJD,IF(AND(IF(Q11+AQ11-AT11>24,(Q11+AQ11-AT11)-24,Q11+AQ11-AT11)>FJD,T11>FJD),16,IF(AND(IF(Q11+AQ11-AT11>24,(Q11+AQ11-AT11)-24,Q11+AQ11-AT11)<IJD,T11<IJD),16,0)))))))),0) -> 0 | AV11: 0 | AW11: =X11*((1+RECARGONOCTURNA)*VALORHORAORDINARIA) -> 8100 | AX11: =Z11*((1+RECARGOEXTRADIURNA)*VALORHORAORDINARIA) -> 0 | AY11: =AA11*((1+RECARGOEXTRANOCTURNA)*VALORHORAORDINARIA) -> 10500 | AZ11: 18600 | BA11: =IF(Y11>2,"Excedio el límite de horas Extras en " & Y11-LIMITEHORASEXTRAXDIA,"") -> 
A12: 97070960 | B12: Maryi | C12: Alvarez | D12: 8 | E12: 08 | F12: : | G12: 00 | H12: 12 | I12: : | J12: 00 | K12: 15 | L12: : | M12: 00 | N12: 23 | O12: : | P12: 00 | Q12: 8 | R12: 12 | S12: 15 | T12: 23 | U12: 12 | V12: 8 | W12: =ROUND(AC12-AF12+AL12-AO12+AR12-AU12,1) -> 8 | X12: 0 | Y12: 4 | Z12: =ROUND(AF12+AO12+AU12,1) -> 2 | AA12: 2 | AB12: 4 | AC12: =IF(AND(H12<>"N/A",K12<>"N/A"),IF(R12>Q12,IF(AND(Q12>=IJD,R12<=FJD),R12-Q12,IF(AND(Q12<IJD,R12>FJD),FJD-IJD,IF(AND(Q12>=IJD,Q12<FJD,R12<24),FJD-Q12,IF(AND(Q12<IJD,R12>IJD,R12<FJD),R12-IJD,0)))),IF(R12<Q12,IF(AND(Q12>IJD,Q12<FJD,R12>=IJD,R12<FJD),FJD-Q12+R12-IJD,IF(AND(Q12>=IJD,Q12<FJD,R12<IJD),FJD-Q12,IF(AND(Q12>FJD,R12>IJD,R12<FJD),R12-IJD,IF(AND(Q12>FJD,R12>FJD),16,IF(AND(Q12<IJD,R12<IJD),16,0))))))),0) -> 4 | AD12: 0 | AE12: 0 | AF12: =IF(AND(H12<>"N/A",K12<>"N/A"),IF(AE12=0,0,IF(R12>IF(Q12+AB12-AE12>24,(Q12+AB12-AE12)-24,Q12+AB12-AE12),IF(AND(IF(Q12+AB12-AE12>24,(Q12+AB12-AE12)-24,Q12+AB12-AE12)>=IJD,R12<=FJD),R12-IF(Q12+AB12-AE12>24,(Q12+AB12-AE12)-24,Q12+AB12-AE12),IF(AND(IF(Q12+AB12-AE12>24,(Q12+AB12-AE12)-24,Q12+AB12-AE12)<IJD,R12>FJD),FJD-IJD,IF(AND(IF(Q12+AB12-AE12>24,(Q12+AB12-AE12)-24,Q12+AB12-AE12)>=IJD,IF(Q12+AB12-AE12>24,(Q12+AB12-AE12)-24,Q12+AB12-AE12)<FJD,R12<24),FJD-IF(Q12+AB12-AE12>24,(Q12+AB12-AE12)-24,Q12+AB12-AE12),IF(AND(IF(Q12+AB12-AE12>24,(Q12+AB12-AE12)-24,Q12+AB12-AE12)<IJD,R12>IJD,R12<FJD),R12-IJD,0)))),IF(R12<IF(Q12+AB12-AE12>24,(Q12+AB12-AE12)-24,Q12+AB12-AE12),IF(AND(IF(Q12+AB12-AE12>24,(Q12+AB12-AE12)-24,Q12+AB12-AE12)>IJD,IF(Q12+AB12-AE12>24,(Q12+AB12-AE12)-24,Q12+AB12-AE12)<FJD,R12>=IJD,R12<FJD),FJD-IF(Q12+AB12-AE12>24,(Q12+AB12-AE12)-24,Q12+AB12-AE12)+R12-IJD,IF(AND(IF(Q12+AB12-AE12>24,(Q12+AB12-AE12)-24,Q12+AB12-AE12)>=IJD,IF(Q12+AB12-AE12>24,(Q12+AB12-AE12)-24,Q12+AB12-AE12)<FJD,R12<IJD),FJD-IF(Q12+AB12-AE12>24,(Q12+AB12-AE12)-24,Q12+AB12-AE12),IF(AND(IF(Q12+AB12-AE12>24,(Q12+AB12-AE12)-24,Q12+AB12-AE12)>FJD,R12>IJD,R12<FJD),R12-IJD,IF(AND(IF(Q12+AB12-AE12>24,(Q12+AB12-AE12)-24,Q12+AB12-AE12)>FJD,R12>FJD),16,IF(AND(IF(Q12+AB12-AE12>24,(Q12+AB12-AE12)-24,Q12+AB12-AE12)<IJD,R12<IJD),16,0)))))))),0) -> 0 | AG12: 0 | AH12: 3 | AI12: =IF(AND(H12<>"N/A",K12<>"N/A"),IF(S12>R12,IF(AND(R12>=IJD,S12<FJD),S12-R12,IF(AND(R12>=IJD,S12>FJD),IF(R12>FJD,R12-FJD,FJD-R12),IF(AND(R12<IJD,S12>=IJD,S12>FJD),S12-IJD-(S12-FJD),IF(AND(R12<IJD,S12>=IJD),S12-IJD,IF(AND(R12<IJD,S12<IJD),0))))),IF(S12<R12,IF(AND(R12>=FJD,S12<=IJD),0,IF(AND(R12<FJD,S12<=IJD),FJD-R12,IF(AND(R12>FJD,S12>IJD),S12-IJD,IF(AND(R12<FJD,S12>IJD),FJD-R12+S12-IJD)))))),0) -> 3 | AJ12: 0 | AK12: 8 | AL12: =IF(AND(H12<>"N/A",K12<>"N/A"),IF(T12>S12,IF(AND(S12>=IJD,T12<=FJD),T12-S12,IF(AND(S12<IJD,T12>FJD),FJD-IJD,IF(AND(S12>=IJD,S12<FJD,T12<24),FJD-S12,IF(AND(S12<IJD,T12>IJD,T12<FJD),T12-IJD,0)))),IF(T12<S12,IF(AND(S12>IJD,S12<FJD,T12>=IJD,T12<FJD),FJD-S12+T12-IJD,IF(AND(S12>=IJD,S12<FJD,T12<IJD),FJD-S12,IF(AND(S12>FJD,T12>IJD,T12<FJD),T12-IJD,IF(AND(S12>FJD,T12>FJD),16,IF(AND(S12<IJD,T12<IJD),16,0))))))),0) -> 5.983333333 | AM12: 2.016666667 | AN12: 4 | AO12: =IF(AND(H12<>"N/A",K12<>"N/A"),IF(AN12=0,0,IF(T12>IF(S12+AK12-AN12>24,(S12+AK12-AN12)-24,S12+AK12-AN12),IF(AND(IF(S12+AK12-AN12>24,(S12+AK12-AN12)-24,S12+AK12-AN12)>=IJD,T12<=FJD),T12-IF(S12+AK12-AN12>24,(S12+AK12-AN12)-24,S12+AK12-AN12),IF(AND(IF(S12+AK12-AN12>24,(S12+AK12-AN12)-24,S12+AK12-AN12)<IJD,T12>FJD),FJD-IJD,IF(AND(IF(S12+AK12-AN12>24,(S12+AK12-AN12)-24,S12+AK12-AN12)>=IJD,IF(S12+AK12-AN12>24,(S12+AK12-AN12)-24,S12+AK12-AN12)<FJD,T12<24),FJD-IF(S12+AK12-AN12>24,(S12+AK12-AN12)-24,S12+AK12-AN12),IF(AND(IF(S12+AK12-AN12>24,(S12+AK12-AN12)-24,S12+AK12-AN12)<IJD,T12>IJD,T12<FJD),T12-IJD,0)))),IF(T12<IF(S12+AK12-AN12>24,(S12+AK12-AN12)-24,S12+AK12-AN12),IF(AND(IF(S12+AK12-AN12>24,(S12+AK12-AN12)-24,S12+AK12-AN12)>IJD,IF(S12+AK12-AN12>24,(S12+AK12-AN12)-24,S12+AK12-AN12)<FJD,T12>=IJD,T12<FJD),FJD-IF(S12+AK12-AN12>24,(S12+AK12-AN12)-24,S12+AK12-AN12)+T12-IJD,IF(AND(IF(S12+AK12-AN12>24,(S12+AK12-AN12)-24,S12+AK12-AN12)>=IJD,IF(S12+AK12-AN12>24,(S12+AK12-AN12)-24,S12+AK12-AN12)<FJD,T12<IJD),FJD-IF(S12+AK12-AN12>24,(S12+AK12-AN12)-24,S12+AK12-AN12),IF(AND(IF(S12+AK12-AN12>24,(S12+AK12-AN12)-24,S12+AK12-AN12)>FJD,T12>IJD,T12<FJD),T12-IJD,IF(AND(IF(S12+AK12-AN12>24,(S12+AK12-AN12)-24,S12+AK12-AN12)>FJD,T12>FJD),16,IF(AND(IF(S12+AK12-AN12>24,(S12+AK12-AN12)-24,S12+AK12-AN12)<IJD,T12<IJD),16,0)))))))),0) -> 1.983333333 | AP12: 2.016666667 | AQ12: 0 | AR12: =IF(AND(H12="N/A",K12="N/A"),IF(T12>Q12,IF(AND(Q12>=IJD,T12<=FJD),T12-Q12,IF(AND(Q12<IJD,T12>FJD),FJD-IJD,IF(AND(Q12>=IJD,Q12<FJD,T12<24),FJD-Q12,IF(AND(Q12<IJD,T12>IJD,T12<FJD),T12-IJD,0)))),IF(T12<Q12,IF(AND(Q12>IJD,Q12<FJD,T12>=IJD,T12<FJD),FJD-Q12+T12-IJD,IF(AND(Q12>=IJD,Q12<FJD,T12<IJD),FJD-Q12,IF(AND(Q12>FJD,T12>IJD,T12<FJD),T12-IJD,IF(AND(Q12>FJD,T12>FJD),16,IF(AND(Q12<IJD,T12<IJD),16,0))))))),0) -> 0 | AS12: 0 | AT12: 0 | AU12: =IF(AND(H12="N/A",K12="N/A"),IF(AT12=0,0,IF(T12>IF(Q12+AQ12-AT12>24,(Q12+AQ12-AT12)-24,Q12+AQ12-AT12),IF(AND(IF(Q12+AQ12-AT12>24,(Q12+AQ12-AT12)-24,Q12+AQ12-AT12)>=IJD,T12<=FJD),T12-IF(Q12+AQ12-AT12>24,(Q12+AQ12-AT12)-24,Q12+AQ12-AT12),IF(AND(IF(Q12+AQ12-AT12>24,(Q12+AQ12-AT12)-24,Q12+AQ12-AT12)<IJD,T12>FJD),FJD-IJD,IF(AND(IF(Q12+AQ12-AT12>24,(Q12+AQ12-AT12)-24,Q12+AQ12-AT12)>=IJD,IF(Q12+AQ12-AT12>24,(Q12+AQ12-AT12)-24,Q12+AQ12-AT12)<FJD,T12<24),FJD-IF(Q12+AQ12-AT12>24,(Q12+AQ12-AT12)-24,Q12+AQ12-AT12),IF(AND(IF(Q12+AQ12-AT12>24,(Q12+AQ12-AT12)-24,Q12+AQ12-AT12)<IJD,T12>IJD,T12<FJD),T12-IJD,0)))),IF(T12<IF(Q12+AQ12-AT12>24,(Q12+AQ12-AT12)-24,Q12+AQ12-AT12),IF(AND(IF(Q12+AQ12-AT12>24,(Q12+AQ12-AT12)-24,Q12+AQ12-AT12)>IJD,IF(Q12+AQ12-AT12>24,(Q12+AQ12-AT12)-24,Q12+AQ12-AT12)<FJD,T12>=IJD,T12<FJD),FJD-IF(Q12+AQ12-AT12>24,(Q12+AQ12-AT12)-24,Q12+AQ12-AT12)+T12-IJD,IF(AND(IF(Q12+AQ12-AT12>24,(Q12+AQ12-AT12)-24,Q12+AQ12-AT12)>=IJD,IF(Q12+AQ12-AT12>24,(Q12+AQ12-AT12)-24,Q12+AQ12-AT12)<FJD,T12<IJD),FJD-IF(Q12+AQ12-AT12>24,(Q12+AQ12-AT12)-24,Q12+AQ12-AT12),IF(AND(IF(Q12+AQ12-AT12>24,(Q12+AQ12-AT12)-24,Q12+AQ12-AT12)>FJD,T12>IJD,T12<FJD),T12-IJD,IF(AND(IF(Q12+AQ12-AT12>24,(Q12+AQ12-AT12)-24,Q12+AQ12-AT12)>FJD,T12>FJD),16,IF(AND(IF(Q12+AQ12-AT12>24,(Q12+AQ12-AT12)-24,Q12+AQ12-AT12)<IJD,T12<IJD),16,0)))))))),0) -> 0 | AV12: 0 | AW12: =X12*((1+RECARGONOCTURNA)*VALORHORAORDINARIA) -> 0 | AX12: =Z12*((1+RECARGOEXTRADIURNA)*VALORHORAORDINARIA) -> 7500 | AY12: =AA12*((1+RECARGOEXTRANOCTURNA)*VALORHORAORDINARIA) -> 10500 | AZ12: 18000 | BA12: =IF(Y12>2,"Excedio el límite de horas Extras en " & Y12-LIMITEHORASEXTRAXDIA,"") -> Excedio el límite de horas Extras en 2
A13: 94144851 | B13: Diana | C13: Escobar | D13: 8 | E13: 18 | F13: : | G13: 00 | H13: N/A | I13: : | J13: N/A | K13: N/A | L13: : | M13: N/A | N13: 02 | O13: : | P13: 00 | Q13: 18 | R13: #VALUE! | S13: #VALUE! | T13: 2 | U13: 8 | V13: 8 | W13: =ROUND(AC13-AF13+AL13-AO13+AR13-AU13,1) -> 3 | X13: 5 | Y13: 0 | Z13: =ROUND(AF13+AO13+AU13,1) -> 0 | AA13: 0 | AB13: 0 | AC13: =IF(AND(H13<>"N/A",K13<>"N/A"),IF(R13>Q13,IF(AND(Q13>=IJD,R13<=FJD),R13-Q13,IF(AND(Q13<IJD,R13>FJD),FJD-IJD,IF(AND(Q13>=IJD,Q13<FJD,R13<24),FJD-Q13,IF(AND(Q13<IJD,R13>IJD,R13<FJD),R13-IJD,0)))),IF(R13<Q13,IF(AND(Q13>IJD,Q13<FJD,R13>=IJD,R13<FJD),FJD-Q13+R13-IJD,IF(AND(Q13>=IJD,Q13<FJD,R13<IJD),FJD-Q13,IF(AND(Q13>FJD,R13>IJD,R13<FJD),R13-IJD,IF(AND(Q13>FJD,R13>FJD),16,IF(AND(Q13<IJD,R13<IJD),16,0))))))),0) -> 0 | AD13: 0 | AE13: 0 | AF13: =IF(AND(H13<>"N/A",K13<>"N/A"),IF(AE13=0,0,IF(R13>IF(Q13+AB13-AE13>24,(Q13+AB13-AE13)-24,Q13+AB13-AE13),IF(AND(IF(Q13+AB13-AE13>24,(Q13+AB13-AE13)-24,Q13+AB13-AE13)>=IJD,R13<=FJD),R13-IF(Q13+AB13-AE13>24,(Q13+AB13-AE13)-24,Q13+AB13-AE13),IF(AND(IF(Q13+AB13-AE13>24,(Q13+AB13-AE13)-24,Q13+AB13-AE13)<IJD,R13>FJD),FJD-IJD,IF(AND(IF(Q13+AB13-AE13>24,(Q13+AB13-AE13)-24,Q13+AB13-AE13)>=IJD,IF(Q13+AB13-AE13>24,(Q13+AB13-AE13)-24,Q13+AB13-AE13)<FJD,R13<24),FJD-IF(Q13+AB13-AE13>24,(Q13+AB13-AE13)-24,Q13+AB13-AE13),IF(AND(IF(Q13+AB13-AE13>24,(Q13+AB13-AE13)-24,Q13+AB13-AE13)<IJD,R13>IJD,R13<FJD),R13-IJD,0)))),IF(R13<IF(Q13+AB13-AE13>24,(Q13+AB13-AE13)-24,Q13+AB13-AE13),IF(AND(IF(Q13+AB13-AE13>24,(Q13+AB13-AE13)-24,Q13+AB13-AE13)>IJD,IF(Q13+AB13-AE13>24,(Q13+AB13-AE13)-24,Q13+AB13-AE13)<FJD,R13>=IJD,R13<FJD),FJD-IF(Q13+AB13-AE13>24,(Q13+AB13-AE13)-24,Q13+AB13-AE13)+R13-IJD,IF(AND(IF(Q13+AB13-AE13>24,(Q13+AB13-AE13)-24,Q13+AB13-AE13)>=IJD,IF(Q13+AB13-AE13>24,(Q13+AB13-AE13)-24,Q13+AB13-AE13)<FJD,R13<IJD),FJD-IF(Q13+AB13-AE13>24,(Q13+AB13-AE13)-24,Q13+AB13-AE13),IF(AND(IF(Q13+AB13-AE13>24,(Q13+AB13-AE13)-24,Q13+AB13-AE13)>FJD,R13>IJD,R13<FJD),R13-IJD,IF(AND(IF(Q13+AB13-AE13>24,(Q13+AB13-AE13)-24,Q13+AB13-AE13)>FJD,R13>FJD),16,IF(AND(IF(Q13+AB13-AE13>24,(Q13+AB13-AE13)-24,Q13+AB13-AE13)<IJD,R13<IJD),16,0)))))))),0) -> 0 | AG13: 0 | AH13: 0 | AI13: =IF(AND(H13<>"N/A",K13<>"N/A"),IF(S13>R13,IF(AND(R13>=IJD,S13<FJD),S13-R13,IF(AND(R13>=IJD,S13>FJD),IF(R13>FJD,R13-FJD,FJD-R13),IF(AND(R13<IJD,S13>=IJD,S13>FJD),S13-IJD-(S13-FJD),IF(AND(R13<IJD,S13>=IJD),S13-IJD,IF(AND(R13<IJD,S13<IJD),0))))),IF(S13<R13,IF(AND(R13>=FJD,S13<=IJD),0,IF(AND(R13<FJD,S13<=IJD),FJD-R13,IF(AND(R13>FJD,S13>IJD),S13-IJD,IF(AND(R13<FJD,S13>IJD),FJD-R13+S13-IJD)))))),0) -> 0 | AJ13: 0 | AK13: 0 | AL13: =IF(AND(H13<>"N/A",K13<>"N/A"),IF(T13>S13,IF(AND(S13>=IJD,T13<=FJD),T13-S13,IF(AND(S13<IJD,T13>FJD),FJD-IJD,IF(AND(S13>=IJD,S13<FJD,T13<24),FJD-S13,IF(AND(S13<IJD,T13>IJD,T13<FJD),T13-IJD,0)))),IF(T13<S13,IF(AND(S13>IJD,S13<FJD,T13>=IJD,T13<FJD),FJD-S13+T13-IJD,IF(AND(S13>=IJD,S13<FJD,T13<IJD),FJD-S13,IF(AND(S13>FJD,T13>IJD,T13<FJD),T13-IJD,IF(AND(S13>FJD,T13>FJD),16,IF(AND(S13<IJD,T13<IJD),16,0))))))),0) -> 0 | AM13: 0 | AN13: 0 | AO13: =IF(AND(H13<>"N/A",K13<>"N/A"),IF(AN13=0,0,IF(T13>IF(S13+AK13-AN13>24,(S13+AK13-AN13)-24,S13+AK13-AN13),IF(AND(IF(S13+AK13-AN13>24,(S13+AK13-AN13)-24,S13+AK13-AN13)>=IJD,T13<=FJD),T13-IF(S13+AK13-AN13>24,(S13+AK13-AN13)-24,S13+AK13-AN13),IF(AND(IF(S13+AK13-AN13>24,(S13+AK13-AN13)-24,S13+AK13-AN13)<IJD,T13>FJD),FJD-IJD,IF(AND(IF(S13+AK13-AN13>24,(S13+AK13-AN13)-24,S13+AK13-AN13)>=IJD,IF(S13+AK13-AN13>24,(S13+AK13-AN13)-24,S13+AK13-AN13)<FJD,T13<24),FJD-IF(S13+AK13-AN13>24,(S13+AK13-AN13)-24,S13+AK13-AN13),IF(AND(IF(S13+AK13-AN13>24,(S13+AK13-AN13)-24,S13+AK13-AN13)<IJD,T13>IJD,T13<FJD),T13-IJD,0)))),IF(T13<IF(S13+AK13-AN13>24,(S13+AK13-AN13)-24,S13+AK13-AN13),IF(AND(IF(S13+AK13-AN13>24,(S13+AK13-AN13)-24,S13+AK13-AN13)>IJD,IF(S13+AK13-AN13>24,(S13+AK13-AN13)-24,S13+AK13-AN13)<FJD,T13>=IJD,T13<FJD),FJD-IF(S13+AK13-AN13>24,(S13+AK13-AN13)-24,S13+AK13-AN13)+T13-IJD,IF(AND(IF(S13+AK13-AN13>24,(S13+AK13-AN13)-24,S13+AK13-AN13)>=IJD,IF(S13+AK13-AN13>24,(S13+AK13-AN13)-24,S13+AK13-AN13)<FJD,T13<IJD),FJD-IF(S13+AK13-AN13>24,(S13+AK13-AN13)-24,S13+AK13-AN13),IF(AND(IF(S13+AK13-AN13>24,(S13+AK13-AN13)-24,S13+AK13-AN13)>FJD,T13>IJD,T13<FJD),T13-IJD,IF(AND(IF(S13+AK13-AN13>24,(S13+AK13-AN13)-24,S13+AK13-AN13)>FJD,T13>FJD),16,IF(AND(IF(S13+AK13-AN13>24,(S13+AK13-AN13)-24,S13+AK13-AN13)<IJD,T13<IJD),16,0)))))))),0) -> 0 | AP13: 0 | AQ13: 8 | AR13: =IF(AND(H13="N/A",K13="N/A"),IF(T13>Q13,IF(AND(Q13>=IJD,T13<=FJD),T13-Q13,IF(AND(Q13<IJD,T13>FJD),FJD-IJD,IF(AND(Q13>=IJD,Q13<FJD,T13<24),FJD-Q13,IF(AND(Q13<IJD,T13>IJD,T13<FJD),T13-IJD,0)))),IF(T13<Q13,IF(AND(Q13>IJD,Q13<FJD,T13>=IJD,T13<FJD),FJD-Q13+T13-IJD,IF(AND(Q13>=IJD,Q13<FJD,T13<IJD),FJD-Q13,IF(AND(Q13>FJD,T13>IJD,T13<FJD),T13-IJD,IF(AND(Q13>FJD,T13>FJD),16,IF(AND(Q13<IJD,T13<IJD),16,0))))))),0) -> 2.983333333 | AS13: 5.016666667 | AT13: 0 | AU13: =IF(AND(H13="N/A",K13="N/A"),IF(AT13=0,0,IF(T13>IF(Q13+AQ13-AT13>24,(Q13+AQ13-AT13)-24,Q13+AQ13-AT13),IF(AND(IF(Q13+AQ13-AT13>24,(Q13+AQ13-AT13)-24,Q13+AQ13-AT13)>=IJD,T13<=FJD),T13-IF(Q13+AQ13-AT13>24,(Q13+AQ13-AT13)-24,Q13+AQ13-AT13),IF(AND(IF(Q13+AQ13-AT13>24,(Q13+AQ13-AT13)-24,Q13+AQ13-AT13)<IJD,T13>FJD),FJD-IJD,IF(AND(IF(Q13+AQ13-AT13>24,(Q13+AQ13-AT13)-24,Q13+AQ13-AT13)>=IJD,IF(Q13+AQ13-AT13>24,(Q13+AQ13-AT13)-24,Q13+AQ13-AT13)<FJD,T13<24),FJD-IF(Q13+AQ13-AT13>24,(Q13+AQ13-AT13)-24,Q13+AQ13-AT13),IF(AND(IF(Q13+AQ13-AT13>24,(Q13+AQ13-AT13)-24,Q13+AQ13-AT13)<IJD,T13>IJD,T13<FJD),T13-IJD,0)))),IF(T13<IF(Q13+AQ13-AT13>24,(Q13+AQ13-AT13)-24,Q13+AQ13-AT13),IF(AND(IF(Q13+AQ13-AT13>24,(Q13+AQ13-AT13)-24,Q13+AQ13-AT13)>IJD,IF(Q13+AQ13-AT13>24,(Q13+AQ13-AT13)-24,Q13+AQ13-AT13)<FJD,T13>=IJD,T13<FJD),FJD-IF(Q13+AQ13-AT13>24,(Q13+AQ13-AT13)-24,Q13+AQ13-AT13)+T13-IJD,IF(AND(IF(Q13+AQ13-AT13>24,(Q13+AQ13-AT13)-24,Q13+AQ13-AT13)>=IJD,IF(Q13+AQ13-AT13>24,(Q13+AQ13-AT13)-24,Q13+AQ13-AT13)<FJD,T13<IJD),FJD-IF(Q13+AQ13-AT13>24,(Q13+AQ13-AT13)-24,Q13+AQ13-AT13),IF(AND(IF(Q13+AQ13-AT13>24,(Q13+AQ13-AT13)-24,Q13+AQ13-AT13)>FJD,T13>IJD,T13<FJD),T13-IJD,IF(AND(IF(Q13+AQ13-AT13>24,(Q13+AQ13-AT13)-24,Q13+AQ13-AT13)>FJD,T13>FJD),16,IF(AND(IF(Q13+AQ13-AT13>24,(Q13+AQ13-AT13)-24,Q13+AQ13-AT13)<IJD,T13<IJD),16,0)))))))),0) -> 0 | AV13: 0 | AW13: =X13*((1+RECARGONOCTURNA)*VALORHORAORDINARIA) -> 20250 | AX13: =Z13*((1+RECARGOEXTRADIURNA)*VALORHORAORDINARIA) -> 0 | AY13: =AA13*((1+RECARGOEXTRANOCTURNA)*VALORHORAORDINARIA) -> 0 | AZ13: 20250 | BA13: =IF(Y13>2,"Excedio el límite de horas Extras en " & Y13-LIMITEHORASEXTRAXDIA,"") -> 
A14: 92931162 | B14: Andres | C14: Lopez | D14: 8 | E14: 22 | F14: : | G14: 00 | H14: N/A | I14: : | J14: N/A | K14: N/A | L14: : | M14: N/A | N14: 08 | O14: : | P14: 00 | Q14: 22 | R14: #VALUE! | S14: #VALUE! | T14: 8 | U14: 10 | V14: 8 | W14: =ROUND(AC14-AF14+AL14-AO14+AR14-AU14,1) -> 0 | X14: 8 | Y14: 2 | Z14: =ROUND(AF14+AO14+AU14,1) -> 2 | AA14: 0 | AB14: 0 | AC14: =IF(AND(H14<>"N/A",K14<>"N/A"),IF(R14>Q14,IF(AND(Q14>=IJD,R14<=FJD),R14-Q14,IF(AND(Q14<IJD,R14>FJD),FJD-IJD,IF(AND(Q14>=IJD,Q14<FJD,R14<24),FJD-Q14,IF(AND(Q14<IJD,R14>IJD,R14<FJD),R14-IJD,0)))),IF(R14<Q14,IF(AND(Q14>IJD,Q14<FJD,R14>=IJD,R14<FJD),FJD-Q14+R14-IJD,IF(AND(Q14>=IJD,Q14<FJD,R14<IJD),FJD-Q14,IF(AND(Q14>FJD,R14>IJD,R14<FJD),R14-IJD,IF(AND(Q14>FJD,R14>FJD),16,IF(AND(Q14<IJD,R14<IJD),16,0))))))),0) -> 0 | AD14: 0 | AE14: 0 | AF14: =IF(AND(H14<>"N/A",K14<>"N/A"),IF(AE14=0,0,IF(R14>IF(Q14+AB14-AE14>24,(Q14+AB14-AE14)-24,Q14+AB14-AE14),IF(AND(IF(Q14+AB14-AE14>24,(Q14+AB14-AE14)-24,Q14+AB14-AE14)>=IJD,R14<=FJD),R14-IF(Q14+AB14-AE14>24,(Q14+AB14-AE14)-24,Q14+AB14-AE14),IF(AND(IF(Q14+AB14-AE14>24,(Q14+AB14-AE14)-24,Q14+AB14-AE14)<IJD,R14>FJD),FJD-IJD,IF(AND(IF(Q14+AB14-AE14>24,(Q14+AB14-AE14)-24,Q14+AB14-AE14)>=IJD,IF(Q14+AB14-AE14>24,(Q14+AB14-AE14)-24,Q14+AB14-AE14)<FJD,R14<24),FJD-IF(Q14+AB14-AE14>24,(Q14+AB14-AE14)-24,Q14+AB14-AE14),IF(AND(IF(Q14+AB14-AE14>24,(Q14+AB14-AE14)-24,Q14+AB14-AE14)<IJD,R14>IJD,R14<FJD),R14-IJD,0)))),IF(R14<IF(Q14+AB14-AE14>24,(Q14+AB14-AE14)-24,Q14+AB14-AE14),IF(AND(IF(Q14+AB14-AE14>24,(Q14+AB14-AE14)-24,Q14+AB14-AE14)>IJD,IF(Q14+AB14-AE14>24,(Q14+AB14-AE14)-24,Q14+AB14-AE14)<FJD,R14>=IJD,R14<FJD),FJD-IF(Q14+AB14-AE14>24,(Q14+AB14-AE14)-24,Q14+AB14-AE14)+R14-IJD,IF(AND(IF(Q14+AB14-AE14>24,(Q14+AB14-AE14)-24,Q14+AB14-AE14)>=IJD,IF(Q14+AB14-AE14>24,(Q14+AB14-AE14)-24,Q14+AB14-AE14)<FJD,R14<IJD),FJD-IF(Q14+AB14-AE14>24,(Q14+AB14-AE14)-24,Q14+AB14-AE14),IF(AND(IF(Q14+AB14-AE14>24,(Q14+AB14-AE14)-24,Q14+AB14-AE14)>FJD,R14>IJD,R14<FJD),R14-IJD,IF(AND(IF(Q14+AB14-AE14>24,(Q14+AB14-AE14)-24,Q14+AB14-AE14)>FJD,R14>FJD),16,IF(AND(IF(Q14+AB14-AE14>24,(Q14+AB14-AE14)-24,Q14+AB14-AE14)<IJD,R14<IJD),16,0)))))))),0) -> 0 | AG14: 0 | AH14: 0 | AI14: =IF(AND(H14<>"N/A",K14<>"N/A"),IF(S14>R14,IF(AND(R14>=IJD,S14<FJD),S14-R14,IF(AND(R14>=IJD,S14>FJD),IF(R14>FJD,R14-FJD,FJD-R14),IF(AND(R14<IJD,S14>=IJD,S14>FJD),S14-IJD-(S14-FJD),IF(AND(R14<IJD,S14>=IJD),S14-IJD,IF(AND(R14<IJD,S14<IJD),0))))),IF(S14<R14,IF(AND(R14>=FJD,S14<=IJD),0,IF(AND(R14<FJD,S14<=IJD),FJD-R14,IF(AND(R14>FJD,S14>IJD),S14-IJD,IF(AND(R14<FJD,S14>IJD),FJD-R14+S14-IJD)))))),0) -> 0 | AJ14: 0 | AK14: 0 | AL14: =IF(AND(H14<>"N/A",K14<>"N/A"),IF(T14>S14,IF(AND(S14>=IJD,T14<=FJD),T14-S14,IF(AND(S14<IJD,T14>FJD),FJD-IJD,IF(AND(S14>=IJD,S14<FJD,T14<24),FJD-S14,IF(AND(S14<IJD,T14>IJD,T14<FJD),T14-IJD,0)))),IF(T14<S14,IF(AND(S14>IJD,S14<FJD,T14>=IJD,T14<FJD),FJD-S14+T14-IJD,IF(AND(S14>=IJD,S14<FJD,T14<IJD),FJD-S14,IF(AND(S14>FJD,T14>IJD,T14<FJD),T14-IJD,IF(AND(S14>FJD,T14>FJD),16,IF(AND(S14<IJD,T14<IJD),16,0))))))),0) -> 0 | AM14: 0 | AN14: 0 | AO14: =IF(AND(H14<>"N/A",K14<>"N/A"),IF(AN14=0,0,IF(T14>IF(S14+AK14-AN14>24,(S14+AK14-AN14)-24,S14+AK14-AN14),IF(AND(IF(S14+AK14-AN14>24,(S14+AK14-AN14)-24,S14+AK14-AN14)>=IJD,T14<=FJD),T14-IF(S14+AK14-AN14>24,(S14+AK14-AN14)-24,S14+AK14-AN14),IF(AND(IF(S14+AK14-AN14>24,(S14+AK14-AN14)-24,S14+AK14-AN14)<IJD,T14>FJD),FJD-IJD,IF(AND(IF(S14+AK14-AN14>24,(S14+AK14-AN14)-24,S14+AK14-AN14)>=IJD,IF(S14+AK14-AN14>24,(S14+AK14-AN14)-24,S14+AK14-AN14)<FJD,T14<24),FJD-IF(S14+AK14-AN14>24,(S14+AK14-AN14)-24,S14+AK14-AN14),IF(AND(IF(S14+AK14-AN14>24,(S14+AK14-AN14)-24,S14+AK14-AN14)<IJD,T14>IJD,T14<FJD),T14-IJD,0)))),IF(T14<IF(S14+AK14-AN14>24,(S14+AK14-AN14)-24,S14+AK14-AN14),IF(AND(IF(S14+AK14-AN14>24,(S14+AK14-AN14)-24,S14+AK14-AN14)>IJD,IF(S14+AK14-AN14>24,(S14+AK14-AN14)-24,S14+AK14-AN14)<FJD,T14>=IJD,T14<FJD),FJD-IF(S14+AK14-AN14>24,(S14+AK14-AN14)-24,S14+AK14-AN14)+T14-IJD,IF(AND(IF(S14+AK14-AN14>24,(S14+AK14-AN14)-24,S14+AK14-AN14)>=IJD,IF(S14+AK14-AN14>24,(S14+AK14-AN14)-24,S14+AK14-AN14)<FJD,T14<IJD),FJD-IF(S14+AK14-AN14>24,(S14+AK14-AN14)-24,S14+AK14-AN14),IF(AND(IF(S14+AK14-AN14>24,(S14+AK14-AN14)-24,S14+AK14-AN14)>FJD,T14>IJD,T14<FJD),T14-IJD,IF(AND(IF(S14+AK14-AN14>24,(S14+AK14-AN14)-24,S14+AK14-AN14)>FJD,T14>FJD),16,IF(AND(IF(S14+AK14-AN14>24,(S14+AK14-AN14)-24,S14+AK14-AN14)<IJD,T14<IJD),16,0)))))))),0) -> 0 | AP14: 0 | AQ14: 10 | AR14: =IF(AND(H14="N/A",K14="N/A"),IF(T14>Q14,IF(AND(Q14>=IJD,T14<=FJD),T14-Q14,IF(AND(Q14<IJD,T14>FJD),FJD-IJD,IF(AND(Q14>=IJD,Q14<FJD,T14<24),FJD-Q14,IF(AND(Q14<IJD,T14>IJD,T14<FJD),T14-IJD,0)))),IF(T14<Q14,IF(AND(Q14>IJD,Q14<FJD,T14>=IJD,T14<FJD),FJD-Q14+T14-IJD,IF(AND(Q14>=IJD,Q14<FJD,T14<IJD),FJD-Q14,IF(AND(Q14>FJD,T14>IJD,T14<FJD),T14-IJD,IF(AND(Q14>FJD,T14>FJD),16,IF(AND(Q14<IJD,T14<IJD),16,0))))))),0) -> 2 | AS14: 8 | AT14: 2 | AU14: =IF(AND(H14="N/A",K14="N/A"),IF(AT14=0,0,IF(T14>IF(Q14+AQ14-AT14>24,(Q14+AQ14-AT14)-24,Q14+AQ14-AT14),IF(AND(IF(Q14+AQ14-AT14>24,(Q14+AQ14-AT14)-24,Q14+AQ14-AT14)>=IJD,T14<=FJD),T14-IF(Q14+AQ14-AT14>24,(Q14+AQ14-AT14)-24,Q14+AQ14-AT14),IF(AND(IF(Q14+AQ14-AT14>24,(Q14+AQ14-AT14)-24,Q14+AQ14-AT14)<IJD,T14>FJD),FJD-IJD,IF(AND(IF(Q14+AQ14-AT14>24,(Q14+AQ14-AT14)-24,Q14+AQ14-AT14)>=IJD,IF(Q14+AQ14-AT14>24,(Q14+AQ14-AT14)-24,Q14+AQ14-AT14)<FJD,T14<24),FJD-IF(Q14+AQ14-AT14>24,(Q14+AQ14-AT14)-24,Q14+AQ14-AT14),IF(AND(IF(Q14+AQ14-AT14>24,(Q14+AQ14-AT14)-24,Q14+AQ14-AT14)<IJD,T14>IJD,T14<FJD),T14-IJD,0)))),IF(T14<IF(Q14+AQ14-AT14>24,(Q14+AQ14-AT14)-24,Q14+AQ14-AT14),IF(AND(IF(Q14+AQ14-AT14>24,(Q14+AQ14-AT14)-24,Q14+AQ14-AT14)>IJD,IF(Q14+AQ14-AT14>24,(Q14+AQ14-AT14)-24,Q14+AQ14-AT14)<FJD,T14>=IJD,T14<FJD),FJD-IF(Q14+AQ14-AT14>24,(Q14+AQ14-AT14)-24,Q14+AQ14-AT14)+T14-IJD,IF(AND(IF(Q14+AQ14-AT14>24,(Q14+AQ14-AT14)-24,Q14+AQ14-AT14)>=IJD,IF(Q14+AQ14-AT14>24,(Q14+AQ14-AT14)-24,Q14+AQ14-AT14)<FJD,T14<IJD),FJD-IF(Q14+AQ14-AT14>24,(Q14+AQ14-AT14)-24,Q14+AQ14-AT14),IF(AND(IF(Q14+AQ14-AT14>24,(Q14+AQ14-AT14)-24,Q14+AQ14-AT14)>FJD,T14>IJD,T14<FJD),T14-IJD,IF(AND(IF(Q14+AQ14-AT14>24,(Q14+AQ14-AT14)-24,Q14+AQ14-AT14)>FJD,T14>FJD),16,IF(AND(IF(Q14+AQ14-AT14>24,(Q14+AQ14-AT14)-24,Q14+AQ14-AT14)<IJD,T14<IJD),16,0)))))))),0) -> 2 | AV14: 0 | AW14: =X14*((1+RECARGONOCTURNA)*VALORHORAORDINARIA) -> 32400 | AX14: =Z14*((1+RECARGOEXTRADIURNA)*VALORHORAORDINARIA) -> 7500 | AY14: =AA14*((1+RECARGOEXTRANOCTURNA)*VALORHORAORDINARIA) -> 0 | AZ14: 39900 | BA14: =IF(Y14>2,"Excedio el límite de horas Extras en " & Y14-LIMITEHORASEXTRAXDIA,"") -> 
A15: 96554557 | B15: David | C15: Bedoya | D15: 8 | E15: 08 | F15: : | G15: 00 | H15: 12 | I15: : | J15: 00 | K15: 14 | L15: : | M15: 00 | N15: 18 | O15: : | P15: 00 | Q15: 8 | R15: 12 | S15: 14 | T15: 18 | U15: 8 | V15: 8 | W15: =ROUND(AC15-AF15+AL15-AO15+AR15-AU15,1) -> 8 | X15: 0 | Y15: 0 | Z15: =ROUND(AF15+AO15+AU15,1) -> 0 | AA15: 0 | AB15: 4 | AC15: =IF(AND(H15<>"N/A",K15<>"N/A"),IF(R15>Q15,IF(AND(Q15>=IJD,R15<=FJD),R15-Q15,IF(AND(Q15<IJD,R15>FJD),FJD-IJD,IF(AND(Q15>=IJD,Q15<FJD,R15<24),FJD-Q15,IF(AND(Q15<IJD,R15>IJD,R15<FJD),R15-IJD,0)))),IF(R15<Q15,IF(AND(Q15>IJD,Q15<FJD,R15>=IJD,R15<FJD),FJD-Q15+R15-IJD,IF(AND(Q15>=IJD,Q15<FJD,R15<IJD),FJD-Q15,IF(AND(Q15>FJD,R15>IJD,R15<FJD),R15-IJD,IF(AND(Q15>FJD,R15>FJD),16,IF(AND(Q15<IJD,R15<IJD),16,0))))))),0) -> 4 | AD15: 0 | AE15: 0 | AF15: =IF(AND(H15<>"N/A",K15<>"N/A"),IF(AE15=0,0,IF(R15>IF(Q15+AB15-AE15>24,(Q15+AB15-AE15)-24,Q15+AB15-AE15),IF(AND(IF(Q15+AB15-AE15>24,(Q15+AB15-AE15)-24,Q15+AB15-AE15)>=IJD,R15<=FJD),R15-IF(Q15+AB15-AE15>24,(Q15+AB15-AE15)-24,Q15+AB15-AE15),IF(AND(IF(Q15+AB15-AE15>24,(Q15+AB15-AE15)-24,Q15+AB15-AE15)<IJD,R15>FJD),FJD-IJD,IF(AND(IF(Q15+AB15-AE15>24,(Q15+AB15-AE15)-24,Q15+AB15-AE15)>=IJD,IF(Q15+AB15-AE15>24,(Q15+AB15-AE15)-24,Q15+AB15-AE15)<FJD,R15<24),FJD-IF(Q15+AB15-AE15>24,(Q15+AB15-AE15)-24,Q15+AB15-AE15),IF(AND(IF(Q15+AB15-AE15>24,(Q15+AB15-AE15)-24,Q15+AB15-AE15)<IJD,R15>IJD,R15<FJD),R15-IJD,0)))),IF(R15<IF(Q15+AB15-AE15>24,(Q15+AB15-AE15)-24,Q15+AB15-AE15),IF(AND(IF(Q15+AB15-AE15>24,(Q15+AB15-AE15)-24,Q15+AB15-AE15)>IJD,IF(Q15+AB15-AE15>24,(Q15+AB15-AE15)-24,Q15+AB15-AE15)<FJD,R15>=IJD,R15<FJD),FJD-IF(Q15+AB15-AE15>24,(Q15+AB15-AE15)-24,Q15+AB15-AE15)+R15-IJD,IF(AND(IF(Q15+AB15-AE15>24,(Q15+AB15-AE15)-24,Q15+AB15-AE15)>=IJD,IF(Q15+AB15-AE15>24,(Q15+AB15-AE15)-24,Q15+AB15-AE15)<FJD,R15<IJD),FJD-IF(Q15+AB15-AE15>24,(Q15+AB15-AE15)-24,Q15+AB15-AE15),IF(AND(IF(Q15+AB15-AE15>24,(Q15+AB15-AE15)-24,Q15+AB15-AE15)>FJD,R15>IJD,R15<FJD),R15-IJD,IF(AND(IF(Q15+AB15-AE15>24,(Q15+AB15-AE15)-24,Q15+AB15-AE15)>FJD,R15>FJD),16,IF(AND(IF(Q15+AB15-AE15>24,(Q15+AB15-AE15)-24,Q15+AB15-AE15)<IJD,R15<IJD),16,0)))))))),0) -> 0 | AG15: 0 | AH15: 2 | AI15: =IF(AND(H15<>"N/A",K15<>"N/A"),IF(S15>R15,IF(AND(R15>=IJD,S15<FJD),S15-R15,IF(AND(R15>=IJD,S15>FJD),IF(R15>FJD,R15-FJD,FJD-R15),IF(AND(R15<IJD,S15>=IJD,S15>FJD),S15-IJD-(S15-FJD),IF(AND(R15<IJD,S15>=IJD),S15-IJD,IF(AND(R15<IJD,S15<IJD),0))))),IF(S15<R15,IF(AND(R15>=FJD,S15<=IJD),0,IF(AND(R15<FJD,S15<=IJD),FJD-R15,IF(AND(R15>FJD,S15>IJD),S15-IJD,IF(AND(R15<FJD,S15>IJD),FJD-R15+S15-IJD)))))),0) -> 2 | AJ15: 0 | AK15: 4 | AL15: =IF(AND(H15<>"N/A",K15<>"N/A"),IF(T15>S15,IF(AND(S15>=IJD,T15<=FJD),T15-S15,IF(AND(S15<IJD,T15>FJD),FJD-IJD,IF(AND(S15>=IJD,S15<FJD,T15<24),FJD-S15,IF(AND(S15<IJD,T15>IJD,T15<FJD),T15-IJD,0)))),IF(T15<S15,IF(AND(S15>IJD,S15<FJD,T15>=IJD,T15<FJD),FJD-S15+T15-IJD,IF(AND(S15>=IJD,S15<FJD,T15<IJD),FJD-S15,IF(AND(S15>FJD,T15>IJD,T15<FJD),T15-IJD,IF(AND(S15>FJD,T15>FJD),16,IF(AND(S15<IJD,T15<IJD),16,0))))))),0) -> 4 | AM15: 0 | AN15: 0 | AO15: =IF(AND(H15<>"N/A",K15<>"N/A"),IF(AN15=0,0,IF(T15>IF(S15+AK15-AN15>24,(S15+AK15-AN15)-24,S15+AK15-AN15),IF(AND(IF(S15+AK15-AN15>24,(S15+AK15-AN15)-24,S15+AK15-AN15)>=IJD,T15<=FJD),T15-IF(S15+AK15-AN15>24,(S15+AK15-AN15)-24,S15+AK15-AN15),IF(AND(IF(S15+AK15-AN15>24,(S15+AK15-AN15)-24,S15+AK15-AN15)<IJD,T15>FJD),FJD-IJD,IF(AND(IF(S15+AK15-AN15>24,(S15+AK15-AN15)-24,S15+AK15-AN15)>=IJD,IF(S15+AK15-AN15>24,(S15+AK15-AN15)-24,S15+AK15-AN15)<FJD,T15<24),FJD-IF(S15+AK15-AN15>24,(S15+AK15-AN15)-24,S15+AK15-AN15),IF(AND(IF(S15+AK15-AN15>24,(S15+AK15-AN15)-24,S15+AK15-AN15)<IJD,T15>IJD,T15<FJD),T15-IJD,0)))),IF(T15<IF(S15+AK15-AN15>24,(S15+AK15-AN15)-24,S15+AK15-AN15),IF(AND(IF(S15+AK15-AN15>24,(S15+AK15-AN15)-24,S15+AK15-AN15)>IJD,IF(S15+AK15-AN15>24,(S15+AK15-AN15)-24,S15+AK15-AN15)<FJD,T15>=IJD,T15<FJD),FJD-IF(S15+AK15-AN15>24,(S15+AK15-AN15)-24,S15+AK15-AN15)+T15-IJD,IF(AND(IF(S15+AK15-AN15>24,(S15+AK15-AN15)-24,S15+AK15-AN15)>=IJD,IF(S15+AK15-AN15>24,(S15+AK15-AN15)-24,S15+AK15-AN15)<FJD,T15<IJD),FJD-IF(S15+AK15-AN15>24,(S15+AK15-AN15)-24,S15+AK15-AN15),IF(AND(IF(S15+AK15-AN15>24,(S15+AK15-AN15)-24,S15+AK15-AN15)>FJD,T15>IJD,T15<FJD),T15-IJD,IF(AND(IF(S15+AK15-AN15>24,(S15+AK15-AN15)-24,S15+AK15-AN15)>FJD,T15>FJD),16,IF(AND(IF(S15+AK15-AN15>24,(S15+AK15-AN15)-24,S15+AK15-AN15)<IJD,T15<IJD),16,0)))))))),0) -> 0 | AP15: 0 | AQ15: 0 | AR15: =IF(AND(H15="N/A",K15="N/A"),IF(T15>Q15,IF(AND(Q15>=IJD,T15<=FJD),T15-Q15,IF(AND(Q15<IJD,T15>FJD),FJD-IJD,IF(AND(Q15>=IJD,Q15<FJD,T15<24),FJD-Q15,IF(AND(Q15<IJD,T15>IJD,T15<FJD),T15-IJD,0)))),IF(T15<Q15,IF(AND(Q15>IJD,Q15<FJD,T15>=IJD,T15<FJD),FJD-Q15+T15-IJD,IF(AND(Q15>=IJD,Q15<FJD,T15<IJD),FJD-Q15,IF(AND(Q15>FJD,T15>IJD,T15<FJD),T15-IJD,IF(AND(Q15>FJD,T15>FJD),16,IF(AND(Q15<IJD,T15<IJD),16,0))))))),0) -> 0 | AS15: 0 | AT15: 0 | AU15: =IF(AND(H15="N/A",K15="N/A"),IF(AT15=0,0,IF(T15>IF(Q15+AQ15-AT15>24,(Q15+AQ15-AT15)-24,Q15+AQ15-AT15),IF(AND(IF(Q15+AQ15-AT15>24,(Q15+AQ15-AT15)-24,Q15+AQ15-AT15)>=IJD,T15<=FJD),T15-IF(Q15+AQ15-AT15>24,(Q15+AQ15-AT15)-24,Q15+AQ15-AT15),IF(AND(IF(Q15+AQ15-AT15>24,(Q15+AQ15-AT15)-24,Q15+AQ15-AT15)<IJD,T15>FJD),FJD-IJD,IF(AND(IF(Q15+AQ15-AT15>24,(Q15+AQ15-AT15)-24,Q15+AQ15-AT15)>=IJD,IF(Q15+AQ15-AT15>24,(Q15+AQ15-AT15)-24,Q15+AQ15-AT15)<FJD,T15<24),FJD-IF(Q15+AQ15-AT15>24,(Q15+AQ15-AT15)-24,Q15+AQ15-AT15),IF(AND(IF(Q15+AQ15-AT15>24,(Q15+AQ15-AT15)-24,Q15+AQ15-AT15)<IJD,T15>IJD,T15<FJD),T15-IJD,0)))),IF(T15<IF(Q15+AQ15-AT15>24,(Q15+AQ15-AT15)-24,Q15+AQ15-AT15),IF(AND(IF(Q15+AQ15-AT15>24,(Q15+AQ15-AT15)-24,Q15+AQ15-AT15)>IJD,IF(Q15+AQ15-AT15>24,(Q15+AQ15-AT15)-24,Q15+AQ15-AT15)<FJD,T15>=IJD,T15<FJD),FJD-IF(Q15+AQ15-AT15>24,(Q15+AQ15-AT15)-24,Q15+AQ15-AT15)+T15-IJD,IF(AND(IF(Q15+AQ15-AT15>24,(Q15+AQ15-AT15)-24,Q15+AQ15-AT15)>=IJD,IF(Q15+AQ15-AT15>24,(Q15+AQ15-AT15)-24,Q15+AQ15-AT15)<FJD,T15<IJD),FJD-IF(Q15+AQ15-AT15>24,(Q15+AQ15-AT15)-24,Q15+AQ15-AT15),IF(AND(IF(Q15+AQ15-AT15>24,(Q15+AQ15-AT15)-24,Q15+AQ15-AT15)>FJD,T15>IJD,T15<FJD),T15-IJD,IF(AND(IF(Q15+AQ15-AT15>24,(Q15+AQ15-AT15)-24,Q15+AQ15-AT15)>FJD,T15>FJD),16,IF(AND(IF(Q15+AQ15-AT15>24,(Q15+AQ15-AT15)-24,Q15+AQ15-AT15)<IJD,T15<IJD),16,0)))))))),0) -> 0 | AV15: 0 | AW15: =X15*((1+RECARGONOCTURNA)*VALORHORAORDINARIA) -> 0 | AX15: =Z15*((1+RECARGOEXTRADIURNA)*VALORHORAORDINARIA) -> 0 | AY15: =AA15*((1+RECARGOEXTRANOCTURNA)*VALORHORAORDINARIA) -> 0 | AZ15: 0 | BA15: =IF(Y15>2,"Excedio el límite de horas Extras en " & Y15-LIMITEHORASEXTRAXDIA,"") -> 
A16: 92456336 | B16: Cindi | C16: Lopera | D16: 8 | E16: 08 | F16: : | G16: 00 | H16: 12 | I16: : | J16: 00 | K16: 14 | L16: : | M16: 00 | N16: 20 | O16: : | P16: 00 | Q16: 8 | R16: 12 | S16: 14 | T16: 20 | U16: 10 | V16: 8 | W16: =ROUND(AC16-AF16+AL16-AO16+AR16-AU16,1) -> 8 | X16: 0 | Y16: 2 | Z16: =ROUND(AF16+AO16+AU16,1) -> 2 | AA16: 0 | AB16: 4 | AC16: =IF(AND(H16<>"N/A",K16<>"N/A"),IF(R16>Q16,IF(AND(Q16>=IJD,R16<=FJD),R16-Q16,IF(AND(Q16<IJD,R16>FJD),FJD-IJD,IF(AND(Q16>=IJD,Q16<FJD,R16<24),FJD-Q16,IF(AND(Q16<IJD,R16>IJD,R16<FJD),R16-IJD,0)))),IF(R16<Q16,IF(AND(Q16>IJD,Q16<FJD,R16>=IJD,R16<FJD),FJD-Q16+R16-IJD,IF(AND(Q16>=IJD,Q16<FJD,R16<IJD),FJD-Q16,IF(AND(Q16>FJD,R16>IJD,R16<FJD),R16-IJD,IF(AND(Q16>FJD,R16>FJD),16,IF(AND(Q16<IJD,R16<IJD),16,0))))))),0) -> 4 | AD16: 0 | AE16: 0 | AF16: =IF(AND(H16<>"N/A",K16<>"N/A"),IF(AE16=0,0,IF(R16>IF(Q16+AB16-AE16>24,(Q16+AB16-AE16)-24,Q16+AB16-AE16),IF(AND(IF(Q16+AB16-AE16>24,(Q16+AB16-AE16)-24,Q16+AB16-AE16)>=IJD,R16<=FJD),R16-IF(Q16+AB16-AE16>24,(Q16+AB16-AE16)-24,Q16+AB16-AE16),IF(AND(IF(Q16+AB16-AE16>24,(Q16+AB16-AE16)-24,Q16+AB16-AE16)<IJD,R16>FJD),FJD-IJD,IF(AND(IF(Q16+AB16-AE16>24,(Q16+AB16-AE16)-24,Q16+AB16-AE16)>=IJD,IF(Q16+AB16-AE16>24,(Q16+AB16-AE16)-24,Q16+AB16-AE16)<FJD,R16<24),FJD-IF(Q16+AB16-AE16>24,(Q16+AB16-AE16)-24,Q16+AB16-AE16),IF(AND(IF(Q16+AB16-AE16>24,(Q16+AB16-AE16)-24,Q16+AB16-AE16)<IJD,R16>IJD,R16<FJD),R16-IJD,0)))),IF(R16<IF(Q16+AB16-AE16>24,(Q16+AB16-AE16)-24,Q16+AB16-AE16),IF(AND(IF(Q16+AB16-AE16>24,(Q16+AB16-AE16)-24,Q16+AB16-AE16)>IJD,IF(Q16+AB16-AE16>24,(Q16+AB16-AE16)-24,Q16+AB16-AE16)<FJD,R16>=IJD,R16<FJD),FJD-IF(Q16+AB16-AE16>24,(Q16+AB16-AE16)-24,Q16+AB16-AE16)+R16-IJD,IF(AND(IF(Q16+AB16-AE16>24,(Q16+AB16-AE16)-24,Q16+AB16-AE16)>=IJD,IF(Q16+AB16-AE16>24,(Q16+AB16-AE16)-24,Q16+AB16-AE16)<FJD,R16<IJD),FJD-IF(Q16+AB16-AE16>24,(Q16+AB16-AE16)-24,Q16+AB16-AE16),IF(AND(IF(Q16+AB16-AE16>24,(Q16+AB16-AE16)-24,Q16+AB16-AE16)>FJD,R16>IJD,R16<FJD),R16-IJD,IF(AND(IF(Q16+AB16-AE16>24,(Q16+AB16-AE16)-24,Q16+AB16-AE16)>FJD,R16>FJD),16,IF(AND(IF(Q16+AB16-AE16>24,(Q16+AB16-AE16)-24,Q16+AB16-AE16)<IJD,R16<IJD),16,0)))))))),0) -> 0 | AG16: 0 | AH16: 2 | AI16: =IF(AND(H16<>"N/A",K16<>"N/A"),IF(S16>R16,IF(AND(R16>=IJD,S16<FJD),S16-R16,IF(AND(R16>=IJD,S16>FJD),IF(R16>FJD,R16-FJD,FJD-R16),IF(AND(R16<IJD,S16>=IJD,S16>FJD),S16-IJD-(S16-FJD),IF(AND(R16<IJD,S16>=IJD),S16-IJD,IF(AND(R16<IJD,S16<IJD),0))))),IF(S16<R16,IF(AND(R16>=FJD,S16<=IJD),0,IF(AND(R16<FJD,S16<=IJD),FJD-R16,IF(AND(R16>FJD,S16>IJD),S16-IJD,IF(AND(R16<FJD,S16>IJD),FJD-R16+S16-IJD)))))),0) -> 2 | AJ16: 0 | AK16: 6 | AL16: =IF(AND(H16<>"N/A",K16<>"N/A"),IF(T16>S16,IF(AND(S16>=IJD,T16<=FJD),T16-S16,IF(AND(S16<IJD,T16>FJD),FJD-IJD,IF(AND(S16>=IJD,S16<FJD,T16<24),FJD-S16,IF(AND(S16<IJD,T16>IJD,T16<FJD),T16-IJD,0)))),IF(T16<S16,IF(AND(S16>IJD,S16<FJD,T16>=IJD,T16<FJD),FJD-S16+T16-IJD,IF(AND(S16>=IJD,S16<FJD,T16<IJD),FJD-S16,IF(AND(S16>FJD,T16>IJD,T16<FJD),T16-IJD,IF(AND(S16>FJD,T16>FJD),16,IF(AND(S16<IJD,T16<IJD),16,0))))))),0) -> 6 | AM16: 0 | AN16: 2 | AO16: =IF(AND(H16<>"N/A",K16<>"N/A"),IF(AN16=0,0,IF(T16>IF(S16+AK16-AN16>24,(S16+AK16-AN16)-24,S16+AK16-AN16),IF(AND(IF(S16+AK16-AN16>24,(S16+AK16-AN16)-24,S16+AK16-AN16)>=IJD,T16<=FJD),T16-IF(S16+AK16-AN16>24,(S16+AK16-AN16)-24,S16+AK16-AN16),IF(AND(IF(S16+AK16-AN16>24,(S16+AK16-AN16)-24,S16+AK16-AN16)<IJD,T16>FJD),FJD-IJD,IF(AND(IF(S16+AK16-AN16>24,(S16+AK16-AN16)-24,S16+AK16-AN16)>=IJD,IF(S16+AK16-AN16>24,(S16+AK16-AN16)-24,S16+AK16-AN16)<FJD,T16<24),FJD-IF(S16+AK16-AN16>24,(S16+AK16-AN16)-24,S16+AK16-AN16),IF(AND(IF(S16+AK16-AN16>24,(S16+AK16-AN16)-24,S16+AK16-AN16)<IJD,T16>IJD,T16<FJD),T16-IJD,0)))),IF(T16<IF(S16+AK16-AN16>24,(S16+AK16-AN16)-24,S16+AK16-AN16),IF(AND(IF(S16+AK16-AN16>24,(S16+AK16-AN16)-24,S16+AK16-AN16)>IJD,IF(S16+AK16-AN16>24,(S16+AK16-AN16)-24,S16+AK16-AN16)<FJD,T16>=IJD,T16<FJD),FJD-IF(S16+AK16-AN16>24,(S16+AK16-AN16)-24,S16+AK16-AN16)+T16-IJD,IF(AND(IF(S16+AK16-AN16>24,(S16+AK16-AN16)-24,S16+AK16-AN16)>=IJD,IF(S16+AK16-AN16>24,(S16+AK16-AN16)-24,S16+AK16-AN16)<FJD,T16<IJD),FJD-IF(S16+AK16-AN16>24,(S16+AK16-AN16)-24,S16+AK16-AN16),IF(AND(IF(S16+AK16-AN16>24,(S16+AK16-AN16)-24,S16+AK16-AN16)>FJD,T16>IJD,T16<FJD),T16-IJD,IF(AND(IF(S16+AK16-AN16>24,(S16+AK16-AN16)-24,S16+AK16-AN16)>FJD,T16>FJD),16,IF(AND(IF(S16+AK16-AN16>24,(S16+AK16-AN16)-24,S16+AK16-AN16)<IJD,T16<IJD),16,0)))))))),0) -> 2 | AP16: 0 | AQ16: 0 | AR16: =IF(AND(H16="N/A",K16="N/A"),IF(T16>Q16,IF(AND(Q16>=IJD,T16<=FJD),T16-Q16,IF(AND(Q16<IJD,T16>FJD),FJD-IJD,IF(AND(Q16>=IJD,Q16<FJD,T16<24),FJD-Q16,IF(AND(Q16<IJD,T16>IJD,T16<FJD),T16-IJD,0)))),IF(T16<Q16,IF(AND(Q16>IJD,Q16<FJD,T16>=IJD,T16<FJD),FJD-Q16+T16-IJD,IF(AND(Q16>=IJD,Q16<FJD,T16<IJD),FJD-Q16,IF(AND(Q16>FJD,T16>IJD,T16<FJD),T16-IJD,IF(AND(Q16>FJD,T16>FJD),16,IF(AND(Q16<IJD,T16<IJD),16,0))))))),0) -> 0 | AS16: 0 | AT16: 0 | AU16: =IF(AND(H16="N/A",K16="N/A"),IF(AT16=0,0,IF(T16>IF(Q16+AQ16-AT16>24,(Q16+AQ16-AT16)-24,Q16+AQ16-AT16),IF(AND(IF(Q16+AQ16-AT16>24,(Q16+AQ16-AT16)-24,Q16+AQ16-AT16)>=IJD,T16<=FJD),T16-IF(Q16+AQ16-AT16>24,(Q16+AQ16-AT16)-24,Q16+AQ16-AT16),IF(AND(IF(Q16+AQ16-AT16>24,(Q16+AQ16-AT16)-24,Q16+AQ16-AT16)<IJD,T16>FJD),FJD-IJD,IF(AND(IF(Q16+AQ16-AT16>24,(Q16+AQ16-AT16)-24,Q16+AQ16-AT16)>=IJD,IF(Q16+AQ16-AT16>24,(Q16+AQ16-AT16)-24,Q16+AQ16-AT16)<FJD,T16<24),FJD-IF(Q16+AQ16-AT16>24,(Q16+AQ16-AT16)-24,Q16+AQ16-AT16),IF(AND(IF(Q16+AQ16-AT16>24,(Q16+AQ16-AT16)-24,Q16+AQ16-AT16)<IJD,T16>IJD,T16<FJD),T16-IJD,0)))),IF(T16<IF(Q16+AQ16-AT16>24,(Q16+AQ16-AT16)-24,Q16+AQ16-AT16),IF(AND(IF(Q16+AQ16-AT16>24,(Q16+AQ16-AT16)-24,Q16+AQ16-AT16)>IJD,IF(Q16+AQ16-AT16>24,(Q16+AQ16-AT16)-24,Q16+AQ16-AT16)<FJD,T16>=IJD,T16<FJD),FJD-IF(Q16+AQ16-AT16>24,(Q16+AQ16-AT16)-24,Q16+AQ16-AT16)+T16-IJD,IF(AND(IF(Q16+AQ16-AT16>24,(Q16+AQ16-AT16)-24,Q16+AQ16-AT16)>=IJD,IF(Q16+AQ16-AT16>24,(Q16+AQ16-AT16)-24,Q16+AQ16-AT16)<FJD,T16<IJD),FJD-IF(Q16+AQ16-AT16>24,(Q16+AQ16-AT16)-24,Q16+AQ16-AT16),IF(AND(IF(Q16+AQ16-AT16>24,(Q16+AQ16-AT16)-24,Q16+AQ16-AT16)>FJD,T16>IJD,T16<FJD),T16-IJD,IF(AND(IF(Q16+AQ16-AT16>24,(Q16+AQ16-AT16)-24,Q16+AQ16-AT16)>FJD,T16>FJD),16,IF(AND(IF(Q16+AQ16-AT16>24,(Q16+AQ16-AT16)-24,Q16+AQ16-AT16)<IJD,T16<IJD),16,0)))))))),0) -> 0 | AV16: 0 | AW16: =X16*((1+RECARGONOCTURNA)*VALORHORAORDINARIA) -> 0 | AX16: =Z16*((1+RECARGOEXTRADIURNA)*VALORHORAORDINARIA) -> 7500 | AY16: =AA16*((1+RECARGOEXTRANOCTURNA)*VALORHORAORDINARIA) -> 0 | AZ16: 7500 | BA16: =IF(Y16>2,"Excedio el límite de horas Extras en " & Y16-LIMITEHORASEXTRAXDIA,"") -> 
A17: 95807147 | B17: Gladys | C17: Ospina | D17: 8 | E17: 14 | F17: : | G17: 00 | H17: 18 | I17: : | J17: 00 | K17: 19 | L17: : | M17: 00 | N17: 00 | O17: : | P17: 00 | Q17: 14 | R17: 18 | S17: 19 | T17: 0 | U17: 9 | V17: 8 | W17: =ROUND(AC17-AF17+AL17-AO17+AR17-AU17,1) -> 6 | X17: 2 | Y17: 1 | Z17: =ROUND(AF17+AO17+AU17,1) -> 0 | AA17: 1 | AB17: 4 | AC17: =IF(AND(H17<>"N/A",K17<>"N/A"),IF(R17>Q17,IF(AND(Q17>=IJD,R17<=FJD),R17-Q17,IF(AND(Q17<IJD,R17>FJD),FJD-IJD,IF(AND(Q17>=IJD,Q17<FJD,R17<24),FJD-Q17,IF(AND(Q17<IJD,R17>IJD,R17<FJD),R17-IJD,0)))),IF(R17<Q17,IF(AND(Q17>IJD,Q17<FJD,R17>=IJD,R17<FJD),FJD-Q17+R17-IJD,IF(AND(Q17>=IJD,Q17<FJD,R17<IJD),FJD-Q17,IF(AND(Q17>FJD,R17>IJD,R17<FJD),R17-IJD,IF(AND(Q17>FJD,R17>FJD),16,IF(AND(Q17<IJD,R17<IJD),16,0))))))),0) -> 4 | AD17: 0 | AE17: 0 | AF17: =IF(AND(H17<>"N/A",K17<>"N/A"),IF(AE17=0,0,IF(R17>IF(Q17+AB17-AE17>24,(Q17+AB17-AE17)-24,Q17+AB17-AE17),IF(AND(IF(Q17+AB17-AE17>24,(Q17+AB17-AE17)-24,Q17+AB17-AE17)>=IJD,R17<=FJD),R17-IF(Q17+AB17-AE17>24,(Q17+AB17-AE17)-24,Q17+AB17-AE17),IF(AND(IF(Q17+AB17-AE17>24,(Q17+AB17-AE17)-24,Q17+AB17-AE17)<IJD,R17>FJD),FJD-IJD,IF(AND(IF(Q17+AB17-AE17>24,(Q17+AB17-AE17)-24,Q17+AB17-AE17)>=IJD,IF(Q17+AB17-AE17>24,(Q17+AB17-AE17)-24,Q17+AB17-AE17)<FJD,R17<24),FJD-IF(Q17+AB17-AE17>24,(Q17+AB17-AE17)-24,Q17+AB17-AE17),IF(AND(IF(Q17+AB17-AE17>24,(Q17+AB17-AE17)-24,Q17+AB17-AE17)<IJD,R17>IJD,R17<FJD),R17-IJD,0)))),IF(R17<IF(Q17+AB17-AE17>24,(Q17+AB17-AE17)-24,Q17+AB17-AE17),IF(AND(IF(Q17+AB17-AE17>24,(Q17+AB17-AE17)-24,Q17+AB17-AE17)>IJD,IF(Q17+AB17-AE17>24,(Q17+AB17-AE17)-24,Q17+AB17-AE17)<FJD,R17>=IJD,R17<FJD),FJD-IF(Q17+AB17-AE17>24,(Q17+AB17-AE17)-24,Q17+AB17-AE17)+R17-IJD,IF(AND(IF(Q17+AB17-AE17>24,(Q17+AB17-AE17)-24,Q17+AB17-AE17)>=IJD,IF(Q17+AB17-AE17>24,(Q17+AB17-AE17)-24,Q17+AB17-AE17)<FJD,R17<IJD),FJD-IF(Q17+AB17-AE17>24,(Q17+AB17-AE17)-24,Q17+AB17-AE17),IF(AND(IF(Q17+AB17-AE17>24,(Q17+AB17-AE17)-24,Q17+AB17-AE17)>FJD,R17>IJD,R17<FJD),R17-IJD,IF(AND(IF(Q17+AB17-AE17>24,(Q17+AB17-AE17)-24,Q17+AB17-AE17)>FJD,R17>FJD),16,IF(AND(IF(Q17+AB17-AE17>24,(Q17+AB17-AE17)-24,Q17+AB17-AE17)<IJD,R17<IJD),16,0)))))))),0) -> 0 | AG17: 0 | AH17: 1 | AI17: =IF(AND(H17<>"N/A",K17<>"N/A"),IF(S17>R17,IF(AND(R17>=IJD,S17<FJD),S17-R17,IF(AND(R17>=IJD,S17>FJD),IF(R17>FJD,R17-FJD,FJD-R17),IF(AND(R17<IJD,S17>=IJD,S17>FJD),S17-IJD-(S17-FJD),IF(AND(R17<IJD,S17>=IJD),S17-IJD,IF(AND(R17<IJD,S17<IJD),0))))),IF(S17<R17,IF(AND(R17>=FJD,S17<=IJD),0,IF(AND(R17<FJD,S17<=IJD),FJD-R17,IF(AND(R17>FJD,S17>IJD),S17-IJD,IF(AND(R17<FJD,S17>IJD),FJD-R17+S17-IJD)))))),0) -> 1 | AJ17: 0 | AK17: 5 | AL17: =IF(AND(H17<>"N/A",K17<>"N/A"),IF(T17>S17,IF(AND(S17>=IJD,T17<=FJD),T17-S17,IF(AND(S17<IJD,T17>FJD),FJD-IJD,IF(AND(S17>=IJD,S17<FJD,T17<24),FJD-S17,IF(AND(S17<IJD,T17>IJD,T17<FJD),T17-IJD,0)))),IF(T17<S17,IF(AND(S17>IJD,S17<FJD,T17>=IJD,T17<FJD),FJD-S17+T17-IJD,IF(AND(S17>=IJD,S17<FJD,T17<IJD),FJD-S17,IF(AND(S17>FJD,T17>IJD,T17<FJD),T17-IJD,IF(AND(S17>FJD,T17>FJD),16,IF(AND(S17<IJD,T17<IJD),16,0))))))),0) -> 1.983333333 | AM17: 3.016666667 | AN17: 1 | AO17: =IF(AND(H17<>"N/A",K17<>"N/A"),IF(AN17=0,0,IF(T17>IF(S17+AK17-AN17>24,(S17+AK17-AN17)-24,S17+AK17-AN17),IF(AND(IF(S17+AK17-AN17>24,(S17+AK17-AN17)-24,S17+AK17-AN17)>=IJD,T17<=FJD),T17-IF(S17+AK17-AN17>24,(S17+AK17-AN17)-24,S17+AK17-AN17),IF(AND(IF(S17+AK17-AN17>24,(S17+AK17-AN17)-24,S17+AK17-AN17)<IJD,T17>FJD),FJD-IJD,IF(AND(IF(S17+AK17-AN17>24,(S17+AK17-AN17)-24,S17+AK17-AN17)>=IJD,IF(S17+AK17-AN17>24,(S17+AK17-AN17)-24,S17+AK17-AN17)<FJD,T17<24),FJD-IF(S17+AK17-AN17>24,(S17+AK17-AN17)-24,S17+AK17-AN17),IF(AND(IF(S17+AK17-AN17>24,(S17+AK17-AN17)-24,S17+AK17-AN17)<IJD,T17>IJD,T17<FJD),T17-IJD,0)))),IF(T17<IF(S17+AK17-AN17>24,(S17+AK17-AN17)-24,S17+AK17-AN17),IF(AND(IF(S17+AK17-AN17>24,(S17+AK17-AN17)-24,S17+AK17-AN17)>IJD,IF(S17+AK17-AN17>24,(S17+AK17-AN17)-24,S17+AK17-AN17)<FJD,T17>=IJD,T17<FJD),FJD-IF(S17+AK17-AN17>24,(S17+AK17-AN17)-24,S17+AK17-AN17)+T17-IJD,IF(AND(IF(S17+AK17-AN17>24,(S17+AK17-AN17)-24,S17+AK17-AN17)>=IJD,IF(S17+AK17-AN17>24,(S17+AK17-AN17)-24,S17+AK17-AN17)<FJD,T17<IJD),FJD-IF(S17+AK17-AN17>24,(S17+AK17-AN17)-24,S17+AK17-AN17),IF(AND(IF(S17+AK17-AN17>24,(S17+AK17-AN17)-24,S17+AK17-AN17)>FJD,T17>IJD,T17<FJD),T17-IJD,IF(AND(IF(S17+AK17-AN17>24,(S17+AK17-AN17)-24,S17+AK17-AN17)>FJD,T17>FJD),16,IF(AND(IF(S17+AK17-AN17>24,(S17+AK17-AN17)-24,S17+AK17-AN17)<IJD,T17<IJD),16,0)))))))),0) -> 0 | AP17: 1 | AQ17: 0 | AR17: =IF(AND(H17="N/A",K17="N/A"),IF(T17>Q17,IF(AND(Q17>=IJD,T17<=FJD),T17-Q17,IF(AND(Q17<IJD,T17>FJD),FJD-IJD,IF(AND(Q17>=IJD,Q17<FJD,T17<24),FJD-Q17,IF(AND(Q17<IJD,T17>IJD,T17<FJD),T17-IJD,0)))),IF(T17<Q17,IF(AND(Q17>IJD,Q17<FJD,T17>=IJD,T17<FJD),FJD-Q17+T17-IJD,IF(AND(Q17>=IJD,Q17<FJD,T17<IJD),FJD-Q17,IF(AND(Q17>FJD,T17>IJD,T17<FJD),T17-IJD,IF(AND(Q17>FJD,T17>FJD),16,IF(AND(Q17<IJD,T17<IJD),16,0))))))),0) -> 0 | AS17: 0 | AT17: 0 | AU17: =IF(AND(H17="N/A",K17="N/A"),IF(AT17=0,0,IF(T17>IF(Q17+AQ17-AT17>24,(Q17+AQ17-AT17)-24,Q17+AQ17-AT17),IF(AND(IF(Q17+AQ17-AT17>24,(Q17+AQ17-AT17)-24,Q17+AQ17-AT17)>=IJD,T17<=FJD),T17-IF(Q17+AQ17-AT17>24,(Q17+AQ17-AT17)-24,Q17+AQ17-AT17),IF(AND(IF(Q17+AQ17-AT17>24,(Q17+AQ17-AT17)-24,Q17+AQ17-AT17)<IJD,T17>FJD),FJD-IJD,IF(AND(IF(Q17+AQ17-AT17>24,(Q17+AQ17-AT17)-24,Q17+AQ17-AT17)>=IJD,IF(Q17+AQ17-AT17>24,(Q17+AQ17-AT17)-24,Q17+AQ17-AT17)<FJD,T17<24),FJD-IF(Q17+AQ17-AT17>24,(Q17+AQ17-AT17)-24,Q17+AQ17-AT17),IF(AND(IF(Q17+AQ17-AT17>24,(Q17+AQ17-AT17)-24,Q17+AQ17-AT17)<IJD,T17>IJD,T17<FJD),T17-IJD,0)))),IF(T17<IF(Q17+AQ17-AT17>24,(Q17+AQ17-AT17)-24,Q17+AQ17-AT17),IF(AND(IF(Q17+AQ17-AT17>24,(Q17+AQ17-AT17)-24,Q17+AQ17-AT17)>IJD,IF(Q17+AQ17-AT17>24,(Q17+AQ17-AT17)-24,Q17+AQ17-AT17)<FJD,T17>=IJD,T17<FJD),FJD-IF(Q17+AQ17-AT17>24,(Q17+AQ17-AT17)-24,Q17+AQ17-AT17)+T17-IJD,IF(AND(IF(Q17+AQ17-AT17>24,(Q17+AQ17-AT17)-24,Q17+AQ17-AT17)>=IJD,IF(Q17+AQ17-AT17>24,(Q17+AQ17-AT17)-24,Q17+AQ17-AT17)<FJD,T17<IJD),FJD-IF(Q17+AQ17-AT17>24,(Q17+AQ17-AT17)-24,Q17+AQ17-AT17),IF(AND(IF(Q17+AQ17-AT17>24,(Q17+AQ17-AT17)-24,Q17+AQ17-AT17)>FJD,T17>IJD,T17<FJD),T17-IJD,IF(AND(IF(Q17+AQ17-AT17>24,(Q17+AQ17-AT17)-24,Q17+AQ17-AT17)>FJD,T17>FJD),16,IF(AND(IF(Q17+AQ17-AT17>24,(Q17+AQ17-AT17)-24,Q17+AQ17-AT17)<IJD,T17<IJD),16,0)))))))),0) -> 0 | AV17: 0 | AW17: =X17*((1+RECARGONOCTURNA)*VALORHORAORDINARIA) -> 8100 | AX17: =Z17*((1+RECARGOEXTRADIURNA)*VALORHORAORDINARIA) -> 0 | AY17: =AA17*((1+RECARGOEXTRANOCTURNA)*VALORHORAORDINARIA) -> 5250 | AZ17: 13350 | BA17: =IF(Y17>2,"Excedio el límite de horas Extras en " & Y17-LIMITEHORASEXTRAXDIA,"") -> 
A18: 92963879 | B18: Laura | C18: Zapata | D18: 8 | E18: 08 | F18: : | G18: 00 | H18: 12 | I18: : | J18: 00 | K18: 15 | L18: : | M18: 00 | N18: 23 | O18: : | P18: 00 | Q18: 8 | R18: 12 | S18: 15 | T18: 23 | U18: 12 | V18: 8 | W18: =ROUND(AC18-AF18+AL18-AO18+AR18-AU18,1) -> 8 | X18: 0 | Y18: 4 | Z18: =ROUND(AF18+AO18+AU18,1) -> 2 | AA18: 2 | AB18: 4 | AC18: =IF(AND(H18<>"N/A",K18<>"N/A"),IF(R18>Q18,IF(AND(Q18>=IJD,R18<=FJD),R18-Q18,IF(AND(Q18<IJD,R18>FJD),FJD-IJD,IF(AND(Q18>=IJD,Q18<FJD,R18<24),FJD-Q18,IF(AND(Q18<IJD,R18>IJD,R18<FJD),R18-IJD,0)))),IF(R18<Q18,IF(AND(Q18>IJD,Q18<FJD,R18>=IJD,R18<FJD),FJD-Q18+R18-IJD,IF(AND(Q18>=IJD,Q18<FJD,R18<IJD),FJD-Q18,IF(AND(Q18>FJD,R18>IJD,R18<FJD),R18-IJD,IF(AND(Q18>FJD,R18>FJD),16,IF(AND(Q18<IJD,R18<IJD),16,0))))))),0) -> 4 | AD18: 0 | AE18: 0 | AF18: =IF(AND(H18<>"N/A",K18<>"N/A"),IF(AE18=0,0,IF(R18>IF(Q18+AB18-AE18>24,(Q18+AB18-AE18)-24,Q18+AB18-AE18),IF(AND(IF(Q18+AB18-AE18>24,(Q18+AB18-AE18)-24,Q18+AB18-AE18)>=IJD,R18<=FJD),R18-IF(Q18+AB18-AE18>24,(Q18+AB18-AE18)-24,Q18+AB18-AE18),IF(AND(IF(Q18+AB18-AE18>24,(Q18+AB18-AE18)-24,Q18+AB18-AE18)<IJD,R18>FJD),FJD-IJD,IF(AND(IF(Q18+AB18-AE18>24,(Q18+AB18-AE18)-24,Q18+AB18-AE18)>=IJD,IF(Q18+AB18-AE18>24,(Q18+AB18-AE18)-24,Q18+AB18-AE18)<FJD,R18<24),FJD-IF(Q18+AB18-AE18>24,(Q18+AB18-AE18)-24,Q18+AB18-AE18),IF(AND(IF(Q18+AB18-AE18>24,(Q18+AB18-AE18)-24,Q18+AB18-AE18)<IJD,R18>IJD,R18<FJD),R18-IJD,0)))),IF(R18<IF(Q18+AB18-AE18>24,(Q18+AB18-AE18)-24,Q18+AB18-AE18),IF(AND(IF(Q18+AB18-AE18>24,(Q18+AB18-AE18)-24,Q18+AB18-AE18)>IJD,IF(Q18+AB18-AE18>24,(Q18+AB18-AE18)-24,Q18+AB18-AE18)<FJD,R18>=IJD,R18<FJD),FJD-IF(Q18+AB18-AE18>24,(Q18+AB18-AE18)-24,Q18+AB18-AE18)+R18-IJD,IF(AND(IF(Q18+AB18-AE18>24,(Q18+AB18-AE18)-24,Q18+AB18-AE18)>=IJD,IF(Q18+AB18-AE18>24,(Q18+AB18-AE18)-24,Q18+AB18-AE18)<FJD,R18<IJD),FJD-IF(Q18+AB18-AE18>24,(Q18+AB18-AE18)-24,Q18+AB18-AE18),IF(AND(IF(Q18+AB18-AE18>24,(Q18+AB18-AE18)-24,Q18+AB18-AE18)>FJD,R18>IJD,R18<FJD),R18-IJD,IF(AND(IF(Q18+AB18-AE18>24,(Q18+AB18-AE18)-24,Q18+AB18-AE18)>FJD,R18>FJD),16,IF(AND(IF(Q18+AB18-AE18>24,(Q18+AB18-AE18)-24,Q18+AB18-AE18)<IJD,R18<IJD),16,0)))))))),0) -> 0 | AG18: 0 | AH18: 3 | AI18: =IF(AND(H18<>"N/A",K18<>"N/A"),IF(S18>R18,IF(AND(R18>=IJD,S18<FJD),S18-R18,IF(AND(R18>=IJD,S18>FJD),IF(R18>FJD,R18-FJD,FJD-R18),IF(AND(R18<IJD,S18>=IJD,S18>FJD),S18-IJD-(S18-FJD),IF(AND(R18<IJD,S18>=IJD),S18-IJD,IF(AND(R18<IJD,S18<IJD),0))))),IF(S18<R18,IF(AND(R18>=FJD,S18<=IJD),0,IF(AND(R18<FJD,S18<=IJD),FJD-R18,IF(AND(R18>FJD,S18>IJD),S18-IJD,IF(AND(R18<FJD,S18>IJD),FJD-R18+S18-IJD)))))),0) -> 3 | AJ18: 0 | AK18: 8 | AL18: =IF(AND(H18<>"N/A",K18<>"N/A"),IF(T18>S18,IF(AND(S18>=IJD,T18<=FJD),T18-S18,IF(AND(S18<IJD,T18>FJD),FJD-IJD,IF(AND(S18>=IJD,S18<FJD,T18<24),FJD-S18,IF(AND(S18<IJD,T18>IJD,T18<FJD),T18-IJD,0)))),IF(T18<S18,IF(AND(S18>IJD,S18<FJD,T18>=IJD,T18<FJD),FJD-S18+T18-IJD,IF(AND(S18>=IJD,S18<FJD,T18<IJD),FJD-S18,IF(AND(S18>FJD,T18>IJD,T18<FJD),T18-IJD,IF(AND(S18>FJD,T18>FJD),16,IF(AND(S18<IJD,T18<IJD),16,0))))))),0) -> 5.983333333 | AM18: 2.016666667 | AN18: 4 | AO18: =IF(AND(H18<>"N/A",K18<>"N/A"),IF(AN18=0,0,IF(T18>IF(S18+AK18-AN18>24,(S18+AK18-AN18)-24,S18+AK18-AN18),IF(AND(IF(S18+AK18-AN18>24,(S18+AK18-AN18)-24,S18+AK18-AN18)>=IJD,T18<=FJD),T18-IF(S18+AK18-AN18>24,(S18+AK18-AN18)-24,S18+AK18-AN18),IF(AND(IF(S18+AK18-AN18>24,(S18+AK18-AN18)-24,S18+AK18-AN18)<IJD,T18>FJD),FJD-IJD,IF(AND(IF(S18+AK18-AN18>24,(S18+AK18-AN18)-24,S18+AK18-AN18)>=IJD,IF(S18+AK18-AN18>24,(S18+AK18-AN18)-24,S18+AK18-AN18)<FJD,T18<24),FJD-IF(S18+AK18-AN18>24,(S18+AK18-AN18)-24,S18+AK18-AN18),IF(AND(IF(S18+AK18-AN18>24,(S18+AK18-AN18)-24,S18+AK18-AN18)<IJD,T18>IJD,T18<FJD),T18-IJD,0)))),IF(T18<IF(S18+AK18-AN18>24,(S18+AK18-AN18)-24,S18+AK18-AN18),IF(AND(IF(S18+AK18-AN18>24,(S18+AK18-AN18)-24,S18+AK18-AN18)>IJD,IF(S18+AK18-AN18>24,(S18+AK18-AN18)-24,S18+AK18-AN18)<FJD,T18>=IJD,T18<FJD),FJD-IF(S18+AK18-AN18>24,(S18+AK18-AN18)-24,S18+AK18-AN18)+T18-IJD,IF(AND(IF(S18+AK18-AN18>24,(S18+AK18-AN18)-24,S18+AK18-AN18)>=IJD,IF(S18+AK18-AN18>24,(S18+AK18-AN18)-24,S18+AK18-AN18)<FJD,T18<IJD),FJD-IF(S18+AK18-AN18>24,(S18+AK18-AN18)-24,S18+AK18-AN18),IF(AND(IF(S18+AK18-AN18>24,(S18+AK18-AN18)-24,S18+AK18-AN18)>FJD,T18>IJD,T18<FJD),T18-IJD,IF(AND(IF(S18+AK18-AN18>24,(S18+AK18-AN18)-24,S18+AK18-AN18)>FJD,T18>FJD),16,IF(AND(IF(S18+AK18-AN18>24,(S18+AK18-AN18)-24,S18+AK18-AN18)<IJD,T18<IJD),16,0)))))))),0) -> 1.983333333 | AP18: 2.016666667 | AQ18: 0 | AR18: =IF(AND(H18="N/A",K18="N/A"),IF(T18>Q18,IF(AND(Q18>=IJD,T18<=FJD),T18-Q18,IF(AND(Q18<IJD,T18>FJD),FJD-IJD,IF(AND(Q18>=IJD,Q18<FJD,T18<24),FJD-Q18,IF(AND(Q18<IJD,T18>IJD,T18<FJD),T18-IJD,0)))),IF(T18<Q18,IF(AND(Q18>IJD,Q18<FJD,T18>=IJD,T18<FJD),FJD-Q18+T18-IJD,IF(AND(Q18>=IJD,Q18<FJD,T18<IJD),FJD-Q18,IF(AND(Q18>FJD,T18>IJD,T18<FJD),T18-IJD,IF(AND(Q18>FJD,T18>FJD),16,IF(AND(Q18<IJD,T18<IJD),16,0))))))),0) -> 0 | AS18: 0 | AT18: 0 | AU18: =IF(AND(H18="N/A",K18="N/A"),IF(AT18=0,0,IF(T18>IF(Q18+AQ18-AT18>24,(Q18+AQ18-AT18)-24,Q18+AQ18-AT18),IF(AND(IF(Q18+AQ18-AT18>24,(Q18+AQ18-AT18)-24,Q18+AQ18-AT18)>=IJD,T18<=FJD),T18-IF(Q18+AQ18-AT18>24,(Q18+AQ18-AT18)-24,Q18+AQ18-AT18),IF(AND(IF(Q18+AQ18-AT18>24,(Q18+AQ18-AT18)-24,Q18+AQ18-AT18)<IJD,T18>FJD),FJD-IJD,IF(AND(IF(Q18+AQ18-AT18>24,(Q18+AQ18-AT18)-24,Q18+AQ18-AT18)>=IJD,IF(Q18+AQ18-AT18>24,(Q18+AQ18-AT18)-24,Q18+AQ18-AT18)<FJD,T18<24),FJD-IF(Q18+AQ18-AT18>24,(Q18+AQ18-AT18)-24,Q18+AQ18-AT18),IF(AND(IF(Q18+AQ18-AT18>24,(Q18+AQ18-AT18)-24,Q18+AQ18-AT18)<IJD,T18>IJD,T18<FJD),T18-IJD,0)))),IF(T18<IF(Q18+AQ18-AT18>24,(Q18+AQ18-AT18)-24,Q18+AQ18-AT18),IF(AND(IF(Q18+AQ18-AT18>24,(Q18+AQ18-AT18)-24,Q18+AQ18-AT18)>IJD,IF(Q18+AQ18-AT18>24,(Q18+AQ18-AT18)-24,Q18+AQ18-AT18)<FJD,T18>=IJD,T18<FJD),FJD-IF(Q18+AQ18-AT18>24,(Q18+AQ18-AT18)-24,Q18+AQ18-AT18)+T18-IJD,IF(AND(IF(Q18+AQ18-AT18>24,(Q18+AQ18-AT18)-24,Q18+AQ18-AT18)>=IJD,IF(Q18+AQ18-AT18>24,(Q18+AQ18-AT18)-24,Q18+AQ18-AT18)<FJD,T18<IJD),FJD-IF(Q18+AQ18-AT18>24,(Q18+AQ18-AT18)-24,Q18+AQ18-AT18),IF(AND(IF(Q18+AQ18-AT18>24,(Q18+AQ18-AT18)-24,Q18+AQ18-AT18)>FJD,T18>IJD,T18<FJD),T18-IJD,IF(AND(IF(Q18+AQ18-AT18>24,(Q18+AQ18-AT18)-24,Q18+AQ18-AT18)>FJD,T18>FJD),16,IF(AND(IF(Q18+AQ18-AT18>24,(Q18+AQ18-AT18)-24,Q18+AQ18-AT18)<IJD,T18<IJD),16,0)))))))),0) -> 0 | AV18: 0 | AW18: =X18*((1+RECARGONOCTURNA)*VALORHORAORDINARIA) -> 0 | AX18: =Z18*((1+RECARGOEXTRADIURNA)*VALORHORAORDINARIA) -> 7500 | AY18: =AA18*((1+RECARGOEXTRANOCTURNA)*VALORHORAORDINARIA) -> 10500 | AZ18: 18000 | BA18: =IF(Y18>2,"Excedio el límite de horas Extras en " & Y18-LIMITEHORASEXTRAXDIA,"") -> Excedio el límite de horas Extras en 2
A19: 94180411 | B19: Carlos | C19: Muñoz | D19: 8 | E19: 18 | F19: : | G19: 00 | H19: N/A | I19: : | J19: N/A | K19: N/A | L19: : | M19: N/A | N19: 02 | O19: : | P19: 00 | Q19: 18 | R19: #VALUE! | S19: #VALUE! | T19: 2 | U19: 8 | V19: 8 | W19: =ROUND(AC19-AF19+AL19-AO19+AR19-AU19,1) -> 3 | X19: 5 | Y19: 0 | Z19: =ROUND(AF19+AO19+AU19,1) -> 0 | AA19: 0 | AB19: 0 | AC19: =IF(AND(H19<>"N/A",K19<>"N/A"),IF(R19>Q19,IF(AND(Q19>=IJD,R19<=FJD),R19-Q19,IF(AND(Q19<IJD,R19>FJD),FJD-IJD,IF(AND(Q19>=IJD,Q19<FJD,R19<24),FJD-Q19,IF(AND(Q19<IJD,R19>IJD,R19<FJD),R19-IJD,0)))),IF(R19<Q19,IF(AND(Q19>IJD,Q19<FJD,R19>=IJD,R19<FJD),FJD-Q19+R19-IJD,IF(AND(Q19>=IJD,Q19<FJD,R19<IJD),FJD-Q19,IF(AND(Q19>FJD,R19>IJD,R19<FJD),R19-IJD,IF(AND(Q19>FJD,R19>FJD),16,IF(AND(Q19<IJD,R19<IJD),16,0))))))),0) -> 0 | AD19: 0 | AE19: 0 | AF19: =IF(AND(H19<>"N/A",K19<>"N/A"),IF(AE19=0,0,IF(R19>IF(Q19+AB19-AE19>24,(Q19+AB19-AE19)-24,Q19+AB19-AE19),IF(AND(IF(Q19+AB19-AE19>24,(Q19+AB19-AE19)-24,Q19+AB19-AE19)>=IJD,R19<=FJD),R19-IF(Q19+AB19-AE19>24,(Q19+AB19-AE19)-24,Q19+AB19-AE19),IF(AND(IF(Q19+AB19-AE19>24,(Q19+AB19-AE19)-24,Q19+AB19-AE19)<IJD,R19>FJD),FJD-IJD,IF(AND(IF(Q19+AB19-AE19>24,(Q19+AB19-AE19)-24,Q19+AB19-AE19)>=IJD,IF(Q19+AB19-AE19>24,(Q19+AB19-AE19)-24,Q19+AB19-AE19)<FJD,R19<24),FJD-IF(Q19+AB19-AE19>24,(Q19+AB19-AE19)-24,Q19+AB19-AE19),IF(AND(IF(Q19+AB19-AE19>24,(Q19+AB19-AE19)-24,Q19+AB19-AE19)<IJD,R19>IJD,R19<FJD),R19-IJD,0)))),IF(R19<IF(Q19+AB19-AE19>24,(Q19+AB19-AE19)-24,Q19+AB19-AE19),IF(AND(IF(Q19+AB19-AE19>24,(Q19+AB19-AE19)-24,Q19+AB19-AE19)>IJD,IF(Q19+AB19-AE19>24,(Q19+AB19-AE19)-24,Q19+AB19-AE19)<FJD,R19>=IJD,R19<FJD),FJD-IF(Q19+AB19-AE19>24,(Q19+AB19-AE19)-24,Q19+AB19-AE19)+R19-IJD,IF(AND(IF(Q19+AB19-AE19>24,(Q19+AB19-AE19)-24,Q19+AB19-AE19)>=IJD,IF(Q19+AB19-AE19>24,(Q19+AB19-AE19)-24,Q19+AB19-AE19)<FJD,R19<IJD),FJD-IF(Q19+AB19-AE19>24,(Q19+AB19-AE19)-24,Q19+AB19-AE19),IF(AND(IF(Q19+AB19-AE19>24,(Q19+AB19-AE19)-24,Q19+AB19-AE19)>FJD,R19>IJD,R19<FJD),R19-IJD,IF(AND(IF(Q19+AB19-AE19>24,(Q19+AB19-AE19)-24,Q19+AB19-AE19)>FJD,R19>FJD),16,IF(AND(IF(Q19+AB19-AE19>24,(Q19+AB19-AE19)-24,Q19+AB19-AE19)<IJD,R19<IJD),16,0)))))))),0) -> 0 | AG19: 0 | AH19: 0 | AI19: =IF(AND(H19<>"N/A",K19<>"N/A"),IF(S19>R19,IF(AND(R19>=IJD,S19<FJD),S19-R19,IF(AND(R19>=IJD,S19>FJD),IF(R19>FJD,R19-FJD,FJD-R19),IF(AND(R19<IJD,S19>=IJD,S19>FJD),S19-IJD-(S19-FJD),IF(AND(R19<IJD,S19>=IJD),S19-IJD,IF(AND(R19<IJD,S19<IJD),0))))),IF(S19<R19,IF(AND(R19>=FJD,S19<=IJD),0,IF(AND(R19<FJD,S19<=IJD),FJD-R19,IF(AND(R19>FJD,S19>IJD),S19-IJD,IF(AND(R19<FJD,S19>IJD),FJD-R19+S19-IJD)))))),0) -> 0 | AJ19: 0 | AK19: 0 | AL19: =IF(AND(H19<>"N/A",K19<>"N/A"),IF(T19>S19,IF(AND(S19>=IJD,T19<=FJD),T19-S19,IF(AND(S19<IJD,T19>FJD),FJD-IJD,IF(AND(S19>=IJD,S19<FJD,T19<24),FJD-S19,IF(AND(S19<IJD,T19>IJD,T19<FJD),T19-IJD,0)))),IF(T19<S19,IF(AND(S19>IJD,S19<FJD,T19>=IJD,T19<FJD),FJD-S19+T19-IJD,IF(AND(S19>=IJD,S19<FJD,T19<IJD),FJD-S19,IF(AND(S19>FJD,T19>IJD,T19<FJD),T19-IJD,IF(AND(S19>FJD,T19>FJD),16,IF(AND(S19<IJD,T19<IJD),16,0))))))),0) -> 0 | AM19: 0 | AN19: 0 | AO19: =IF(AND(H19<>"N/A",K19<>"N/A"),IF(AN19=0,0,IF(T19>IF(S19+AK19-AN19>24,(S19+AK19-AN19)-24,S19+AK19-AN19),IF(AND(IF(S19+AK19-AN19>24,(S19+AK19-AN19)-24,S19+AK19-AN19)>=IJD,T19<=FJD),T19-IF(S19+AK19-AN19>24,(S19+AK19-AN19)-24,S19+AK19-AN19),IF(AND(IF(S19+AK19-AN19>24,(S19+AK19-AN19)-24,S19+AK19-AN19)<IJD,T19>FJD),FJD-IJD,IF(AND(IF(S19+AK19-AN19>24,(S19+AK19-AN19)-24,S19+AK19-AN19)>=IJD,IF(S19+AK19-AN19>24,(S19+AK19-AN19)-24,S19+AK19-AN19)<FJD,T19<24),FJD-IF(S19+AK19-AN19>24,(S19+AK19-AN19)-24,S19+AK19-AN19),IF(AND(IF(S19+AK19-AN19>24,(S19+AK19-AN19)-24,S19+AK19-AN19)<IJD,T19>IJD,T19<FJD),T19-IJD,0)))),IF(T19<IF(S19+AK19-AN19>24,(S19+AK19-AN19)-24,S19+AK19-AN19),IF(AND(IF(S19+AK19-AN19>24,(S19+AK19-AN19)-24,S19+AK19-AN19)>IJD,IF(S19+AK19-AN19>24,(S19+AK19-AN19)-24,S19+AK19-AN19)<FJD,T19>=IJD,T19<FJD),FJD-IF(S19+AK19-AN19>24,(S19+AK19-AN19)-24,S19+AK19-AN19)+T19-IJD,IF(AND(IF(S19+AK19-AN19>24,(S19+AK19-AN19)-24,S19+AK19-AN19)>=IJD,IF(S19+AK19-AN19>24,(S19+AK19-AN19)-24,S19+AK19-AN19)<FJD,T19<IJD),FJD-IF(S19+AK19-AN19>24,(S19+AK19-AN19)-24,S19+AK19-AN19),IF(AND(IF(S19+AK19-AN19>24,(S19+AK19-AN19)-24,S19+AK19-AN19)>FJD,T19>IJD,T19<FJD),T19-IJD,IF(AND(IF(S19+AK19-AN19>24,(S19+AK19-AN19)-24,S19+AK19-AN19)>FJD,T19>FJD),16,IF(AND(IF(S19+AK19-AN19>24,(S19+AK19-AN19)-24,S19+AK19-AN19)<IJD,T19<IJD),16,0)))))))),0) -> 0 | AP19: 0 | AQ19: 8 | AR19: =IF(AND(H19="N/A",K19="N/A"),IF(T19>Q19,IF(AND(Q19>=IJD,T19<=FJD),T19-Q19,IF(AND(Q19<IJD,T19>FJD),FJD-IJD,IF(AND(Q19>=IJD,Q19<FJD,T19<24),FJD-Q19,IF(AND(Q19<IJD,T19>IJD,T19<FJD),T19-IJD,0)))),IF(T19<Q19,IF(AND(Q19>IJD,Q19<FJD,T19>=IJD,T19<FJD),FJD-Q19+T19-IJD,IF(AND(Q19>=IJD,Q19<FJD,T19<IJD),FJD-Q19,IF(AND(Q19>FJD,T19>IJD,T19<FJD),T19-IJD,IF(AND(Q19>FJD,T19>FJD),16,IF(AND(Q19<IJD,T19<IJD),16,0))))))),0) -> 2.983333333 | AS19: 5.016666667 | AT19: 0 | AU19: =IF(AND(H19="N/A",K19="N/A"),IF(AT19=0,0,IF(T19>IF(Q19+AQ19-AT19>24,(Q19+AQ19-AT19)-24,Q19+AQ19-AT19),IF(AND(IF(Q19+AQ19-AT19>24,(Q19+AQ19-AT19)-24,Q19+AQ19-AT19)>=IJD,T19<=FJD),T19-IF(Q19+AQ19-AT19>24,(Q19+AQ19-AT19)-24,Q19+AQ19-AT19),IF(AND(IF(Q19+AQ19-AT19>24,(Q19+AQ19-AT19)-24,Q19+AQ19-AT19)<IJD,T19>FJD),FJD-IJD,IF(AND(IF(Q19+AQ19-AT19>24,(Q19+AQ19-AT19)-24,Q19+AQ19-AT19)>=IJD,IF(Q19+AQ19-AT19>24,(Q19+AQ19-AT19)-24,Q19+AQ19-AT19)<FJD,T19<24),FJD-IF(Q19+AQ19-AT19>24,(Q19+AQ19-AT19)-24,Q19+AQ19-AT19),IF(AND(IF(Q19+AQ19-AT19>24,(Q19+AQ19-AT19)-24,Q19+AQ19-AT19)<IJD,T19>IJD,T19<FJD),T19-IJD,0)))),IF(T19<IF(Q19+AQ19-AT19>24,(Q19+AQ19-AT19)-24,Q19+AQ19-AT19),IF(AND(IF(Q19+AQ19-AT19>24,(Q19+AQ19-AT19)-24,Q19+AQ19-AT19)>IJD,IF(Q19+AQ19-AT19>24,(Q19+AQ19-AT19)-24,Q19+AQ19-AT19)<FJD,T19>=IJD,T19<FJD),FJD-IF(Q19+AQ19-AT19>24,(Q19+AQ19-AT19)-24,Q19+AQ19-AT19)+T19-IJD,IF(AND(IF(Q19+AQ19-AT19>24,(Q19+AQ19-AT19)-24,Q19+AQ19-AT19)>=IJD,IF(Q19+AQ19-AT19>24,(Q19+AQ19-AT19)-24,Q19+AQ19-AT19)<FJD,T19<IJD),FJD-IF(Q19+AQ19-AT19>24,(Q19+AQ19-AT19)-24,Q19+AQ19-AT19),IF(AND(IF(Q19+AQ19-AT19>24,(Q19+AQ19-AT19)-24,Q19+AQ19-AT19)>FJD,T19>IJD,T19<FJD),T19-IJD,IF(AND(IF(Q19+AQ19-AT19>24,(Q19+AQ19-AT19)-24,Q19+AQ19-AT19)>FJD,T19>FJD),16,IF(AND(IF(Q19+AQ19-AT19>24,(Q19+AQ19-AT19)-24,Q19+AQ19-AT19)<IJD,T19<IJD),16,0)))))))),0) -> 0 | AV19: 0 | AW19: =X19*((1+RECARGONOCTURNA)*VALORHORAORDINARIA) -> 20250 | AX19: =Z19*((1+RECARGOEXTRADIURNA)*VALORHORAORDINARIA) -> 0 | AY19: =AA19*((1+RECARGOEXTRANOCTURNA)*VALORHORAORDINARIA) -> 0 | AZ19: 20250 | BA19: =IF(Y19>2,"Excedio el límite de horas Extras en " & Y19-LIMITEHORASEXTRAXDIA,"") -> 
A20: 91666050 | B20: Gonzalo | C20: Munera | D20: 8 | E20: 22 | F20: : | G20: 00 | H20: N/A | I20: : | J20: N/A | K20: N/A | L20: : | M20: N/A | N20: 08 | O20: : | P20: 00 | Q20: 22 | R20: #VALUE! | S20: #VALUE! | T20: 8 | U20: 10 | V20: 8 | W20: =ROUND(AC20-AF20+AL20-AO20+AR20-AU20,1) -> 0 | X20: 8 | Y20: 2 | Z20: =ROUND(AF20+AO20+AU20,1) -> 2 | AA20: 0 | AB20: 0 | AC20: =IF(AND(H20<>"N/A",K20<>"N/A"),IF(R20>Q20,IF(AND(Q20>=IJD,R20<=FJD),R20-Q20,IF(AND(Q20<IJD,R20>FJD),FJD-IJD,IF(AND(Q20>=IJD,Q20<FJD,R20<24),FJD-Q20,IF(AND(Q20<IJD,R20>IJD,R20<FJD),R20-IJD,0)))),IF(R20<Q20,IF(AND(Q20>IJD,Q20<FJD,R20>=IJD,R20<FJD),FJD-Q20+R20-IJD,IF(AND(Q20>=IJD,Q20<FJD,R20<IJD),FJD-Q20,IF(AND(Q20>FJD,R20>IJD,R20<FJD),R20-IJD,IF(AND(Q20>FJD,R20>FJD),16,IF(AND(Q20<IJD,R20<IJD),16,0))))))),0) -> 0 | AD20: 0 | AE20: 0 | AF20: =IF(AND(H20<>"N/A",K20<>"N/A"),IF(AE20=0,0,IF(R20>IF(Q20+AB20-AE20>24,(Q20+AB20-AE20)-24,Q20+AB20-AE20),IF(AND(IF(Q20+AB20-AE20>24,(Q20+AB20-AE20)-24,Q20+AB20-AE20)>=IJD,R20<=FJD),R20-IF(Q20+AB20-AE20>24,(Q20+AB20-AE20)-24,Q20+AB20-AE20),IF(AND(IF(Q20+AB20-AE20>24,(Q20+AB20-AE20)-24,Q20+AB20-AE20)<IJD,R20>FJD),FJD-IJD,IF(AND(IF(Q20+AB20-AE20>24,(Q20+AB20-AE20)-24,Q20+AB20-AE20)>=IJD,IF(Q20+AB20-AE20>24,(Q20+AB20-AE20)-24,Q20+AB20-AE20)<FJD,R20<24),FJD-IF(Q20+AB20-AE20>24,(Q20+AB20-AE20)-24,Q20+AB20-AE20),IF(AND(IF(Q20+AB20-AE20>24,(Q20+AB20-AE20)-24,Q20+AB20-AE20)<IJD,R20>IJD,R20<FJD),R20-IJD,0)))),IF(R20<IF(Q20+AB20-AE20>24,(Q20+AB20-AE20)-24,Q20+AB20-AE20),IF(AND(IF(Q20+AB20-AE20>24,(Q20+AB20-AE20)-24,Q20+AB20-AE20)>IJD,IF(Q20+AB20-AE20>24,(Q20+AB20-AE20)-24,Q20+AB20-AE20)<FJD,R20>=IJD,R20<FJD),FJD-IF(Q20+AB20-AE20>24,(Q20+AB20-AE20)-24,Q20+AB20-AE20)+R20-IJD,IF(AND(IF(Q20+AB20-AE20>24,(Q20+AB20-AE20)-24,Q20+AB20-AE20)>=IJD,IF(Q20+AB20-AE20>24,(Q20+AB20-AE20)-24,Q20+AB20-AE20)<FJD,R20<IJD),FJD-IF(Q20+AB20-AE20>24,(Q20+AB20-AE20)-24,Q20+AB20-AE20),IF(AND(IF(Q20+AB20-AE20>24,(Q20+AB20-AE20)-24,Q20+AB20-AE20)>FJD,R20>IJD,R20<FJD),R20-IJD,IF(AND(IF(Q20+AB20-AE20>24,(Q20+AB20-AE20)-24,Q20+AB20-AE20)>FJD,R20>FJD),16,IF(AND(IF(Q20+AB20-AE20>24,(Q20+AB20-AE20)-24,Q20+AB20-AE20)<IJD,R20<IJD),16,0)))))))),0) -> 0 | AG20: 0 | AH20: 0 | AI20: =IF(AND(H20<>"N/A",K20<>"N/A"),IF(S20>R20,IF(AND(R20>=IJD,S20<FJD),S20-R20,IF(AND(R20>=IJD,S20>FJD),IF(R20>FJD,R20-FJD,FJD-R20),IF(AND(R20<IJD,S20>=IJD,S20>FJD),S20-IJD-(S20-FJD),IF(AND(R20<IJD,S20>=IJD),S20-IJD,IF(AND(R20<IJD,S20<IJD),0))))),IF(S20<R20,IF(AND(R20>=FJD,S20<=IJD),0,IF(AND(R20<FJD,S20<=IJD),FJD-R20,IF(AND(R20>FJD,S20>IJD),S20-IJD,IF(AND(R20<FJD,S20>IJD),FJD-R20+S20-IJD)))))),0) -> 0 | AJ20: 0 | AK20: 0 | AL20: =IF(AND(H20<>"N/A",K20<>"N/A"),IF(T20>S20,IF(AND(S20>=IJD,T20<=FJD),T20-S20,IF(AND(S20<IJD,T20>FJD),FJD-IJD,IF(AND(S20>=IJD,S20<FJD,T20<24),FJD-S20,IF(AND(S20<IJD,T20>IJD,T20<FJD),T20-IJD,0)))),IF(T20<S20,IF(AND(S20>IJD,S20<FJD,T20>=IJD,T20<FJD),FJD-S20+T20-IJD,IF(AND(S20>=IJD,S20<FJD,T20<IJD),FJD-S20,IF(AND(S20>FJD,T20>IJD,T20<FJD),T20-IJD,IF(AND(S20>FJD,T20>FJD),16,IF(AND(S20<IJD,T20<IJD),16,0))))))),0) -> 0 | AM20: 0 | AN20: 0 | AO20: =IF(AND(H20<>"N/A",K20<>"N/A"),IF(AN20=0,0,IF(T20>IF(S20+AK20-AN20>24,(S20+AK20-AN20)-24,S20+AK20-AN20),IF(AND(IF(S20+AK20-AN20>24,(S20+AK20-AN20)-24,S20+AK20-AN20)>=IJD,T20<=FJD),T20-IF(S20+AK20-AN20>24,(S20+AK20-AN20)-24,S20+AK20-AN20),IF(AND(IF(S20+AK20-AN20>24,(S20+AK20-AN20)-24,S20+AK20-AN20)<IJD,T20>FJD),FJD-IJD,IF(AND(IF(S20+AK20-AN20>24,(S20+AK20-AN20)-24,S20+AK20-AN20)>=IJD,IF(S20+AK20-AN20>24,(S20+AK20-AN20)-24,S20+AK20-AN20)<FJD,T20<24),FJD-IF(S20+AK20-AN20>24,(S20+AK20-AN20)-24,S20+AK20-AN20),IF(AND(IF(S20+AK20-AN20>24,(S20+AK20-AN20)-24,S20+AK20-AN20)<IJD,T20>IJD,T20<FJD),T20-IJD,0)))),IF(T20<IF(S20+AK20-AN20>24,(S20+AK20-AN20)-24,S20+AK20-AN20),IF(AND(IF(S20+AK20-AN20>24,(S20+AK20-AN20)-24,S20+AK20-AN20)>IJD,IF(S20+AK20-AN20>24,(S20+AK20-AN20)-24,S20+AK20-AN20)<FJD,T20>=IJD,T20<FJD),FJD-IF(S20+AK20-AN20>24,(S20+AK20-AN20)-24,S20+AK20-AN20)+T20-IJD,IF(AND(IF(S20+AK20-AN20>24,(S20+AK20-AN20)-24,S20+AK20-AN20)>=IJD,IF(S20+AK20-AN20>24,(S20+AK20-AN20)-24,S20+AK20-AN20)<FJD,T20<IJD),FJD-IF(S20+AK20-AN20>24,(S20+AK20-AN20)-24,S20+AK20-AN20),IF(AND(IF(S20+AK20-AN20>24,(S20+AK20-AN20)-24,S20+AK20-AN20)>FJD,T20>IJD,T20<FJD),T20-IJD,IF(AND(IF(S20+AK20-AN20>24,(S20+AK20-AN20)-24,S20+AK20-AN20)>FJD,T20>FJD),16,IF(AND(IF(S20+AK20-AN20>24,(S20+AK20-AN20)-24,S20+AK20-AN20)<IJD,T20<IJD),16,0)))))))),0) -> 0 | AP20: 0 | AQ20: 10 | AR20: =IF(AND(H20="N/A",K20="N/A"),IF(T20>Q20,IF(AND(Q20>=IJD,T20<=FJD),T20-Q20,IF(AND(Q20<IJD,T20>FJD),FJD-IJD,IF(AND(Q20>=IJD,Q20<FJD,T20<24),FJD-Q20,IF(AND(Q20<IJD,T20>IJD,T20<FJD),T20-IJD,0)))),IF(T20<Q20,IF(AND(Q20>IJD,Q20<FJD,T20>=IJD,T20<FJD),FJD-Q20+T20-IJD,IF(AND(Q20>=IJD,Q20<FJD,T20<IJD),FJD-Q20,IF(AND(Q20>FJD,T20>IJD,T20<FJD),T20-IJD,IF(AND(Q20>FJD,T20>FJD),16,IF(AND(Q20<IJD,T20<IJD),16,0))))))),0) -> 2 | AS20: 8 | AT20: 2 | AU20: =IF(AND(H20="N/A",K20="N/A"),IF(AT20=0,0,IF(T20>IF(Q20+AQ20-AT20>24,(Q20+AQ20-AT20)-24,Q20+AQ20-AT20),IF(AND(IF(Q20+AQ20-AT20>24,(Q20+AQ20-AT20)-24,Q20+AQ20-AT20)>=IJD,T20<=FJD),T20-IF(Q20+AQ20-AT20>24,(Q20+AQ20-AT20)-24,Q20+AQ20-AT20),IF(AND(IF(Q20+AQ20-AT20>24,(Q20+AQ20-AT20)-24,Q20+AQ20-AT20)<IJD,T20>FJD),FJD-IJD,IF(AND(IF(Q20+AQ20-AT20>24,(Q20+AQ20-AT20)-24,Q20+AQ20-AT20)>=IJD,IF(Q20+AQ20-AT20>24,(Q20+AQ20-AT20)-24,Q20+AQ20-AT20)<FJD,T20<24),FJD-IF(Q20+AQ20-AT20>24,(Q20+AQ20-AT20)-24,Q20+AQ20-AT20),IF(AND(IF(Q20+AQ20-AT20>24,(Q20+AQ20-AT20)-24,Q20+AQ20-AT20)<IJD,T20>IJD,T20<FJD),T20-IJD,0)))),IF(T20<IF(Q20+AQ20-AT20>24,(Q20+AQ20-AT20)-24,Q20+AQ20-AT20),IF(AND(IF(Q20+AQ20-AT20>24,(Q20+AQ20-AT20)-24,Q20+AQ20-AT20)>IJD,IF(Q20+AQ20-AT20>24,(Q20+AQ20-AT20)-24,Q20+AQ20-AT20)<FJD,T20>=IJD,T20<FJD),FJD-IF(Q20+AQ20-AT20>24,(Q20+AQ20-AT20)-24,Q20+AQ20-AT20)+T20-IJD,IF(AND(IF(Q20+AQ20-AT20>24,(Q20+AQ20-AT20)-24,Q20+AQ20-AT20)>=IJD,IF(Q20+AQ20-AT20>24,(Q20+AQ20-AT20)-24,Q20+AQ20-AT20)<FJD,T20<IJD),FJD-IF(Q20+AQ20-AT20>24,(Q20+AQ20-AT20)-24,Q20+AQ20-AT20),IF(AND(IF(Q20+AQ20-AT20>24,(Q20+AQ20-AT20)-24,Q20+AQ20-AT20)>FJD,T20>IJD,T20<FJD),T20-IJD,IF(AND(IF(Q20+AQ20-AT20>24,(Q20+AQ20-AT20)-24,Q20+AQ20-AT20)>FJD,T20>FJD),16,IF(AND(IF(Q20+AQ20-AT20>24,(Q20+AQ20-AT20)-24,Q20+AQ20-AT20)<IJD,T20<IJD),16,0)))))))),0) -> 2 | AV20: 0 | AW20: =X20*((1+RECARGONOCTURNA)*VALORHORAORDINARIA) -> 32400 | AX20: =Z20*((1+RECARGOEXTRADIURNA)*VALORHORAORDINARIA) -> 7500 | AY20: =AA20*((1+RECARGOEXTRANOCTURNA)*VALORHORAORDINARIA) -> 0 | AZ20: 39900 | BA20: =IF(Y20>2,"Excedio el límite de horas Extras en " & Y20-LIMITEHORASEXTRAXDIA,"") -> 
A21: 99166507 | B21: German | C21: Lara | D21: 8 | E21: 22 | F21: : | G21: 00 | H21: N/A | I21: : | J21: N/A | K21: N/A | L21: : | M21: N/A | N21: 08 | O21: : | P21: 00 | Q21: 22 | R21: #VALUE! | S21: #VALUE! | T21: 8 | U21: 10 | V21: 8 | W21: =ROUND(AC21-AF21+AL21-AO21+AR21-AU21,1) -> 0 | X21: 8 | Y21: 2 | Z21: =ROUND(AF21+AO21+AU21,1) -> 2 | AA21: 0 | AB21: 0 | AC21: =IF(AND(H21<>"N/A",K21<>"N/A"),IF(R21>Q21,IF(AND(Q21>=IJD,R21<=FJD),R21-Q21,IF(AND(Q21<IJD,R21>FJD),FJD-IJD,IF(AND(Q21>=IJD,Q21<FJD,R21<24),FJD-Q21,IF(AND(Q21<IJD,R21>IJD,R21<FJD),R21-IJD,0)))),IF(R21<Q21,IF(AND(Q21>IJD,Q21<FJD,R21>=IJD,R21<FJD),FJD-Q21+R21-IJD,IF(AND(Q21>=IJD,Q21<FJD,R21<IJD),FJD-Q21,IF(AND(Q21>FJD,R21>IJD,R21<FJD),R21-IJD,IF(AND(Q21>FJD,R21>FJD),16,IF(AND(Q21<IJD,R21<IJD),16,0))))))),0) -> 0 | AD21: 0 | AE21: 0 | AF21: =IF(AND(H21<>"N/A",K21<>"N/A"),IF(AE21=0,0,IF(R21>IF(Q21+AB21-AE21>24,(Q21+AB21-AE21)-24,Q21+AB21-AE21),IF(AND(IF(Q21+AB21-AE21>24,(Q21+AB21-AE21)-24,Q21+AB21-AE21)>=IJD,R21<=FJD),R21-IF(Q21+AB21-AE21>24,(Q21+AB21-AE21)-24,Q21+AB21-AE21),IF(AND(IF(Q21+AB21-AE21>24,(Q21+AB21-AE21)-24,Q21+AB21-AE21)<IJD,R21>FJD),FJD-IJD,IF(AND(IF(Q21+AB21-AE21>24,(Q21+AB21-AE21)-24,Q21+AB21-AE21)>=IJD,IF(Q21+AB21-AE21>24,(Q21+AB21-AE21)-24,Q21+AB21-AE21)<FJD,R21<24),FJD-IF(Q21+AB21-AE21>24,(Q21+AB21-AE21)-24,Q21+AB21-AE21),IF(AND(IF(Q21+AB21-AE21>24,(Q21+AB21-AE21)-24,Q21+AB21-AE21)<IJD,R21>IJD,R21<FJD),R21-IJD,0)))),IF(R21<IF(Q21+AB21-AE21>24,(Q21+AB21-AE21)-24,Q21+AB21-AE21),IF(AND(IF(Q21+AB21-AE21>24,(Q21+AB21-AE21)-24,Q21+AB21-AE21)>IJD,IF(Q21+AB21-AE21>24,(Q21+AB21-AE21)-24,Q21+AB21-AE21)<FJD,R21>=IJD,R21<FJD),FJD-IF(Q21+AB21-AE21>24,(Q21+AB21-AE21)-24,Q21+AB21-AE21)+R21-IJD,IF(AND(IF(Q21+AB21-AE21>24,(Q21+AB21-AE21)-24,Q21+AB21-AE21)>=IJD,IF(Q21+AB21-AE21>24,(Q21+AB21-AE21)-24,Q21+AB21-AE21)<FJD,R21<IJD),FJD-IF(Q21+AB21-AE21>24,(Q21+AB21-AE21)-24,Q21+AB21-AE21),IF(AND(IF(Q21+AB21-AE21>24,(Q21+AB21-AE21)-24,Q21+AB21-AE21)>FJD,R21>IJD,R21<FJD),R21-IJD,IF(AND(IF(Q21+AB21-AE21>24,(Q21+AB21-AE21)-24,Q21+AB21-AE21)>FJD,R21>FJD),16,IF(AND(IF(Q21+AB21-AE21>24,(Q21+AB21-AE21)-24,Q21+AB21-AE21)<IJD,R21<IJD),16,0)))))))),0) -> 0 | AG21: 0 | AH21: 0 | AI21: =IF(AND(H21<>"N/A",K21<>"N/A"),IF(S21>R21,IF(AND(R21>=IJD,S21<FJD),S21-R21,IF(AND(R21>=IJD,S21>FJD),IF(R21>FJD,R21-FJD,FJD-R21),IF(AND(R21<IJD,S21>=IJD,S21>FJD),S21-IJD-(S21-FJD),IF(AND(R21<IJD,S21>=IJD),S21-IJD,IF(AND(R21<IJD,S21<IJD),0))))),IF(S21<R21,IF(AND(R21>=FJD,S21<=IJD),0,IF(AND(R21<FJD,S21<=IJD),FJD-R21,IF(AND(R21>FJD,S21>IJD),S21-IJD,IF(AND(R21<FJD,S21>IJD),FJD-R21+S21-IJD)))))),0) -> 0 | AJ21: 0 | AK21: 0 | AL21: =IF(AND(H21<>"N/A",K21<>"N/A"),IF(T21>S21,IF(AND(S21>=IJD,T21<=FJD),T21-S21,IF(AND(S21<IJD,T21>FJD),FJD-IJD,IF(AND(S21>=IJD,S21<FJD,T21<24),FJD-S21,IF(AND(S21<IJD,T21>IJD,T21<FJD),T21-IJD,0)))),IF(T21<S21,IF(AND(S21>IJD,S21<FJD,T21>=IJD,T21<FJD),FJD-S21+T21-IJD,IF(AND(S21>=IJD,S21<FJD,T21<IJD),FJD-S21,IF(AND(S21>FJD,T21>IJD,T21<FJD),T21-IJD,IF(AND(S21>FJD,T21>FJD),16,IF(AND(S21<IJD,T21<IJD),16,0))))))),0) -> 0 | AM21: 0 | AN21: 0 | AO21: =IF(AND(H21<>"N/A",K21<>"N/A"),IF(AN21=0,0,IF(T21>IF(S21+AK21-AN21>24,(S21+AK21-AN21)-24,S21+AK21-AN21),IF(AND(IF(S21+AK21-AN21>24,(S21+AK21-AN21)-24,S21+AK21-AN21)>=IJD,T21<=FJD),T21-IF(S21+AK21-AN21>24,(S21+AK21-AN21)-24,S21+AK21-AN21),IF(AND(IF(S21+AK21-AN21>24,(S21+AK21-AN21)-24,S21+AK21-AN21)<IJD,T21>FJD),FJD-IJD,IF(AND(IF(S21+AK21-AN21>24,(S21+AK21-AN21)-24,S21+AK21-AN21)>=IJD,IF(S21+AK21-AN21>24,(S21+AK21-AN21)-24,S21+AK21-AN21)<FJD,T21<24),FJD-IF(S21+AK21-AN21>24,(S21+AK21-AN21)-24,S21+AK21-AN21),IF(AND(IF(S21+AK21-AN21>24,(S21+AK21-AN21)-24,S21+AK21-AN21)<IJD,T21>IJD,T21<FJD),T21-IJD,0)))),IF(T21<IF(S21+AK21-AN21>24,(S21+AK21-AN21)-24,S21+AK21-AN21),IF(AND(IF(S21+AK21-AN21>24,(S21+AK21-AN21)-24,S21+AK21-AN21)>IJD,IF(S21+AK21-AN21>24,(S21+AK21-AN21)-24,S21+AK21-AN21)<FJD,T21>=IJD,T21<FJD),FJD-IF(S21+AK21-AN21>24,(S21+AK21-AN21)-24,S21+AK21-AN21)+T21-IJD,IF(AND(IF(S21+AK21-AN21>24,(S21+AK21-AN21)-24,S21+AK21-AN21)>=IJD,IF(S21+AK21-AN21>24,(S21+AK21-AN21)-24,S21+AK21-AN21)<FJD,T21<IJD),FJD-IF(S21+AK21-AN21>24,(S21+AK21-AN21)-24,S21+AK21-AN21),IF(AND(IF(S21+AK21-AN21>24,(S21+AK21-AN21)-24,S21+AK21-AN21)>FJD,T21>IJD,T21<FJD),T21-IJD,IF(AND(IF(S21+AK21-AN21>24,(S21+AK21-AN21)-24,S21+AK21-AN21)>FJD,T21>FJD),16,IF(AND(IF(S21+AK21-AN21>24,(S21+AK21-AN21)-24,S21+AK21-AN21)<IJD,T21<IJD),16,0)))))))),0) -> 0 | AP21: 0 | AQ21: 10 | AR21: =IF(AND(H21="N/A",K21="N/A"),IF(T21>Q21,IF(AND(Q21>=IJD,T21<=FJD),T21-Q21,IF(AND(Q21<IJD,T21>FJD),FJD-IJD,IF(AND(Q21>=IJD,Q21<FJD,T21<24),FJD-Q21,IF(AND(Q21<IJD,T21>IJD,T21<FJD),T21-IJD,0)))),IF(T21<Q21,IF(AND(Q21>IJD,Q21<FJD,T21>=IJD,T21<FJD),FJD-Q21+T21-IJD,IF(AND(Q21>=IJD,Q21<FJD,T21<IJD),FJD-Q21,IF(AND(Q21>FJD,T21>IJD,T21<FJD),T21-IJD,IF(AND(Q21>FJD,T21>FJD),16,IF(AND(Q21<IJD,T21<IJD),16,0))))))),0) -> 2 | AS21: 8 | AT21: 2 | AU21: =IF(AND(H21="N/A",K21="N/A"),IF(AT21=0,0,IF(T21>IF(Q21+AQ21-AT21>24,(Q21+AQ21-AT21)-24,Q21+AQ21-AT21),IF(AND(IF(Q21+AQ21-AT21>24,(Q21+AQ21-AT21)-24,Q21+AQ21-AT21)>=IJD,T21<=FJD),T21-IF(Q21+AQ21-AT21>24,(Q21+AQ21-AT21)-24,Q21+AQ21-AT21),IF(AND(IF(Q21+AQ21-AT21>24,(Q21+AQ21-AT21)-24,Q21+AQ21-AT21)<IJD,T21>FJD),FJD-IJD,IF(AND(IF(Q21+AQ21-AT21>24,(Q21+AQ21-AT21)-24,Q21+AQ21-AT21)>=IJD,IF(Q21+AQ21-AT21>24,(Q21+AQ21-AT21)-24,Q21+AQ21-AT21)<FJD,T21<24),FJD-IF(Q21+AQ21-AT21>24,(Q21+AQ21-AT21)-24,Q21+AQ21-AT21),IF(AND(IF(Q21+AQ21-AT21>24,(Q21+AQ21-AT21)-24,Q21+AQ21-AT21)<IJD,T21>IJD,T21<FJD),T21-IJD,0)))),IF(T21<IF(Q21+AQ21-AT21>24,(Q21+AQ21-AT21)-24,Q21+AQ21-AT21),IF(AND(IF(Q21+AQ21-AT21>24,(Q21+AQ21-AT21)-24,Q21+AQ21-AT21)>IJD,IF(Q21+AQ21-AT21>24,(Q21+AQ21-AT21)-24,Q21+AQ21-AT21)<FJD,T21>=IJD,T21<FJD),FJD-IF(Q21+AQ21-AT21>24,(Q21+AQ21-AT21)-24,Q21+AQ21-AT21)+T21-IJD,IF(AND(IF(Q21+AQ21-AT21>24,(Q21+AQ21-AT21)-24,Q21+AQ21-AT21)>=IJD,IF(Q21+AQ21-AT21>24,(Q21+AQ21-AT21)-24,Q21+AQ21-AT21)<FJD,T21<IJD),FJD-IF(Q21+AQ21-AT21>24,(Q21+AQ21-AT21)-24,Q21+AQ21-AT21),IF(AND(IF(Q21+AQ21-AT21>24,(Q21+AQ21-AT21)-24,Q21+AQ21-AT21)>FJD,T21>IJD,T21<FJD),T21-IJD,IF(AND(IF(Q21+AQ21-AT21>24,(Q21+AQ21-AT21)-24,Q21+AQ21-AT21)>FJD,T21>FJD),16,IF(AND(IF(Q21+AQ21-AT21>24,(Q21+AQ21-AT21)-24,Q21+AQ21-AT21)<IJD,T21<IJD),16,0)))))))),0) -> 2 | AV21: 0 | AW21: =X21*((1+RECARGONOCTURNA)*VALORHORAORDINARIA) -> 32400 | AX21: =Z21*((1+RECARGOEXTRADIURNA)*VALORHORAORDINARIA) -> 7500 | AY21: =AA21*((1+RECARGOEXTRANOCTURNA)*VALORHORAORDINARIA) -> 0 | AZ21: 39900 | BA21: =IF(Y21>2,"Excedio el límite de horas Extras en " & Y21-LIMITEHORASEXTRAXDIA,"") -> 
A22: 86987512 | B22: Aminta | C22: Perez | D22: 4 | E22: 08 | F22: : | G22: 00 | H22: 12 | I22: : | J22: 00 | K22: 14 | L22: : | M22: 00 | N22: 16 | O22: : | P22: 00 | Q22: 8 | R22: 12 | S22: 14 | T22: 16 | U22: 6 | V22: 4 | W22: =ROUND(AC22-AF22+AL22-AO22+AR22-AU22,1) -> 4 | X22: 0 | Y22: 2 | Z22: =ROUND(AF22+AO22+AU22,1) -> 2 | AA22: 0 | AB22: 4 | AC22: =IF(AND(H22<>"N/A",K22<>"N/A"),IF(R22>Q22,IF(AND(Q22>=IJD,R22<=FJD),R22-Q22,IF(AND(Q22<IJD,R22>FJD),FJD-IJD,IF(AND(Q22>=IJD,Q22<FJD,R22<24),FJD-Q22,IF(AND(Q22<IJD,R22>IJD,R22<FJD),R22-IJD,0)))),IF(R22<Q22,IF(AND(Q22>IJD,Q22<FJD,R22>=IJD,R22<FJD),FJD-Q22+R22-IJD,IF(AND(Q22>=IJD,Q22<FJD,R22<IJD),FJD-Q22,IF(AND(Q22>FJD,R22>IJD,R22<FJD),R22-IJD,IF(AND(Q22>FJD,R22>FJD),16,IF(AND(Q22<IJD,R22<IJD),16,0))))))),0) -> 4 | AD22: 0 | AE22: 0 | AF22: =IF(AND(H22<>"N/A",K22<>"N/A"),IF(AE22=0,0,IF(R22>IF(Q22+AB22-AE22>24,(Q22+AB22-AE22)-24,Q22+AB22-AE22),IF(AND(IF(Q22+AB22-AE22>24,(Q22+AB22-AE22)-24,Q22+AB22-AE22)>=IJD,R22<=FJD),R22-IF(Q22+AB22-AE22>24,(Q22+AB22-AE22)-24,Q22+AB22-AE22),IF(AND(IF(Q22+AB22-AE22>24,(Q22+AB22-AE22)-24,Q22+AB22-AE22)<IJD,R22>FJD),FJD-IJD,IF(AND(IF(Q22+AB22-AE22>24,(Q22+AB22-AE22)-24,Q22+AB22-AE22)>=IJD,IF(Q22+AB22-AE22>24,(Q22+AB22-AE22)-24,Q22+AB22-AE22)<FJD,R22<24),FJD-IF(Q22+AB22-AE22>24,(Q22+AB22-AE22)-24,Q22+AB22-AE22),IF(AND(IF(Q22+AB22-AE22>24,(Q22+AB22-AE22)-24,Q22+AB22-AE22)<IJD,R22>IJD,R22<FJD),R22-IJD,0)))),IF(R22<IF(Q22+AB22-AE22>24,(Q22+AB22-AE22)-24,Q22+AB22-AE22),IF(AND(IF(Q22+AB22-AE22>24,(Q22+AB22-AE22)-24,Q22+AB22-AE22)>IJD,IF(Q22+AB22-AE22>24,(Q22+AB22-AE22)-24,Q22+AB22-AE22)<FJD,R22>=IJD,R22<FJD),FJD-IF(Q22+AB22-AE22>24,(Q22+AB22-AE22)-24,Q22+AB22-AE22)+R22-IJD,IF(AND(IF(Q22+AB22-AE22>24,(Q22+AB22-AE22)-24,Q22+AB22-AE22)>=IJD,IF(Q22+AB22-AE22>24,(Q22+AB22-AE22)-24,Q22+AB22-AE22)<FJD,R22<IJD),FJD-IF(Q22+AB22-AE22>24,(Q22+AB22-AE22)-24,Q22+AB22-AE22),IF(AND(IF(Q22+AB22-AE22>24,(Q22+AB22-AE22)-24,Q22+AB22-AE22)>FJD,R22>IJD,R22<FJD),R22-IJD,IF(AND(IF(Q22+AB22-AE22>24,(Q22+AB22-AE22)-24,Q22+AB22-AE22)>FJD,R22>FJD),16,IF(AND(IF(Q22+AB22-AE22>24,(Q22+AB22-AE22)-24,Q22+AB22-AE22)<IJD,R22<IJD),16,0)))))))),0) -> 0 | AG22: 0 | AH22: 2 | AI22: =IF(AND(H22<>"N/A",K22<>"N/A"),IF(S22>R22,IF(AND(R22>=IJD,S22<FJD),S22-R22,IF(AND(R22>=IJD,S22>FJD),IF(R22>FJD,R22-FJD,FJD-R22),IF(AND(R22<IJD,S22>=IJD,S22>FJD),S22-IJD-(S22-FJD),IF(AND(R22<IJD,S22>=IJD),S22-IJD,IF(AND(R22<IJD,S22<IJD),0))))),IF(S22<R22,IF(AND(R22>=FJD,S22<=IJD),0,IF(AND(R22<FJD,S22<=IJD),FJD-R22,IF(AND(R22>FJD,S22>IJD),S22-IJD,IF(AND(R22<FJD,S22>IJD),FJD-R22+S22-IJD)))))),0) -> 2 | AJ22: 0 | AK22: 2 | AL22: =IF(AND(H22<>"N/A",K22<>"N/A"),IF(T22>S22,IF(AND(S22>=IJD,T22<=FJD),T22-S22,IF(AND(S22<IJD,T22>FJD),FJD-IJD,IF(AND(S22>=IJD,S22<FJD,T22<24),FJD-S22,IF(AND(S22<IJD,T22>IJD,T22<FJD),T22-IJD,0)))),IF(T22<S22,IF(AND(S22>IJD,S22<FJD,T22>=IJD,T22<FJD),FJD-S22+T22-IJD,IF(AND(S22>=IJD,S22<FJD,T22<IJD),FJD-S22,IF(AND(S22>FJD,T22>IJD,T22<FJD),T22-IJD,IF(AND(S22>FJD,T22>FJD),16,IF(AND(S22<IJD,T22<IJD),16,0))))))),0) -> 2 | AM22: 0 | AN22: 2 | AO22: =IF(AND(H22<>"N/A",K22<>"N/A"),IF(AN22=0,0,IF(T22>IF(S22+AK22-AN22>24,(S22+AK22-AN22)-24,S22+AK22-AN22),IF(AND(IF(S22+AK22-AN22>24,(S22+AK22-AN22)-24,S22+AK22-AN22)>=IJD,T22<=FJD),T22-IF(S22+AK22-AN22>24,(S22+AK22-AN22)-24,S22+AK22-AN22),IF(AND(IF(S22+AK22-AN22>24,(S22+AK22-AN22)-24,S22+AK22-AN22)<IJD,T22>FJD),FJD-IJD,IF(AND(IF(S22+AK22-AN22>24,(S22+AK22-AN22)-24,S22+AK22-AN22)>=IJD,IF(S22+AK22-AN22>24,(S22+AK22-AN22)-24,S22+AK22-AN22)<FJD,T22<24),FJD-IF(S22+AK22-AN22>24,(S22+AK22-AN22)-24,S22+AK22-AN22),IF(AND(IF(S22+AK22-AN22>24,(S22+AK22-AN22)-24,S22+AK22-AN22)<IJD,T22>IJD,T22<FJD),T22-IJD,0)))),IF(T22<IF(S22+AK22-AN22>24,(S22+AK22-AN22)-24,S22+AK22-AN22),IF(AND(IF(S22+AK22-AN22>24,(S22+AK22-AN22)-24,S22+AK22-AN22)>IJD,IF(S22+AK22-AN22>24,(S22+AK22-AN22)-24,S22+AK22-AN22)<FJD,T22>=IJD,T22<FJD),FJD-IF(S22+AK22-AN22>24,(S22+AK22-AN22)-24,S22+AK22-AN22)+T22-IJD,IF(AND(IF(S22+AK22-AN22>24,(S22+AK22-AN22)-24,S22+AK22-AN22)>=IJD,IF(S22+AK22-AN22>24,(S22+AK22-AN22)-24,S22+AK22-AN22)<FJD,T22<IJD),FJD-IF(S22+AK22-AN22>24,(S22+AK22-AN22)-24,S22+AK22-AN22),IF(AND(IF(S22+AK22-AN22>24,(S22+AK22-AN22)-24,S22+AK22-AN22)>FJD,T22>IJD,T22<FJD),T22-IJD,IF(AND(IF(S22+AK22-AN22>24,(S22+AK22-AN22)-24,S22+AK22-AN22)>FJD,T22>FJD),16,IF(AND(IF(S22+AK22-AN22>24,(S22+AK22-AN22)-24,S22+AK22-AN22)<IJD,T22<IJD),16,0)))))))),0) -> 2 | AP22: 0 | AQ22: 0 | AR22: =IF(AND(H22="N/A",K22="N/A"),IF(T22>Q22,IF(AND(Q22>=IJD,T22<=FJD),T22-Q22,IF(AND(Q22<IJD,T22>FJD),FJD-IJD,IF(AND(Q22>=IJD,Q22<FJD,T22<24),FJD-Q22,IF(AND(Q22<IJD,T22>IJD,T22<FJD),T22-IJD,0)))),IF(T22<Q22,IF(AND(Q22>IJD,Q22<FJD,T22>=IJD,T22<FJD),FJD-Q22+T22-IJD,IF(AND(Q22>=IJD,Q22<FJD,T22<IJD),FJD-Q22,IF(AND(Q22>FJD,T22>IJD,T22<FJD),T22-IJD,IF(AND(Q22>FJD,T22>FJD),16,IF(AND(Q22<IJD,T22<IJD),16,0))))))),0) -> 0 | AS22: 0 | AT22: 0 | AU22: =IF(AND(H22="N/A",K22="N/A"),IF(AT22=0,0,IF(T22>IF(Q22+AQ22-AT22>24,(Q22+AQ22-AT22)-24,Q22+AQ22-AT22),IF(AND(IF(Q22+AQ22-AT22>24,(Q22+AQ22-AT22)-24,Q22+AQ22-AT22)>=IJD,T22<=FJD),T22-IF(Q22+AQ22-AT22>24,(Q22+AQ22-AT22)-24,Q22+AQ22-AT22),IF(AND(IF(Q22+AQ22-AT22>24,(Q22+AQ22-AT22)-24,Q22+AQ22-AT22)<IJD,T22>FJD),FJD-IJD,IF(AND(IF(Q22+AQ22-AT22>24,(Q22+AQ22-AT22)-24,Q22+AQ22-AT22)>=IJD,IF(Q22+AQ22-AT22>24,(Q22+AQ22-AT22)-24,Q22+AQ22-AT22)<FJD,T22<24),FJD-IF(Q22+AQ22-AT22>24,(Q22+AQ22-AT22)-24,Q22+AQ22-AT22),IF(AND(IF(Q22+AQ22-AT22>24,(Q22+AQ22-AT22)-24,Q22+AQ22-AT22)<IJD,T22>IJD,T22<FJD),T22-IJD,0)))),IF(T22<IF(Q22+AQ22-AT22>24,(Q22+AQ22-AT22)-24,Q22+AQ22-AT22),IF(AND(IF(Q22+AQ22-AT22>24,(Q22+AQ22-AT22)-24,Q22+AQ22-AT22)>IJD,IF(Q22+AQ22-AT22>24,(Q22+AQ22-AT22)-24,Q22+AQ22-AT22)<FJD,T22>=IJD,T22<FJD),FJD-IF(Q22+AQ22-AT22>24,(Q22+AQ22-AT22)-24,Q22+AQ22-AT22)+T22-IJD,IF(AND(IF(Q22+AQ22-AT22>24,(Q22+AQ22-AT22)-24,Q22+AQ22-AT22)>=IJD,IF(Q22+AQ22-AT22>24,(Q22+AQ22-AT22)-24,Q22+AQ22-AT22)<FJD,T22<IJD),FJD-IF(Q22+AQ22-AT22>24,(Q22+AQ22-AT22)-24,Q22+AQ22-AT22),IF(AND(IF(Q22+AQ22-AT22>24,(Q22+AQ22-AT22)-24,Q22+AQ22-AT22)>FJD,T22>IJD,T22<FJD),T22-IJD,IF(AND(IF(Q22+AQ22-AT22>24,(Q22+AQ22-AT22)-24,Q22+AQ22-AT22)>FJD,T22>FJD),16,IF(AND(IF(Q22+AQ22-AT22>24,(Q22+AQ22-AT22)-24,Q22+AQ22-AT22)<IJD,T22<IJD),16,0)))))))),0) -> 0 | AV22: 0 | AW22: =X22*((1+RECARGONOCTURNA)*VALORHORAORDINARIA) -> 0 | AX22: =Z22*((1+RECARGOEXTRADIURNA)*VALORHORAORDINARIA) -> 7500 | AY22: =AA22*((1+RECARGOEXTRANOCTURNA)*VALORHORAORDINARIA) -> 0 | AZ22: 7500 | BA22: =IF(Y22>2,"Excedio el límite de horas Extras en " & Y22-LIMITEHORASEXTRAXDIA,"") -> 
Q23: 0 | R23: 0 | S23: 0 | T23: 0
Q24: 0 | R24: 0 | S24: 0 | T24: 0
Q25: 0 | R25: 0 | S25: 0 | T25: 0
Q26: 0 | R26: 0 | S26: 0 | T26: 0
Q27: 0 | R27: 0 | S27: 0 | T27: 0
Q28: 0 | R28: 0 | S28: 0 | T28: 0
Q29: 0 | R29: 0 | S29: 0 | T29: 0
Q30: 0 | R30: 0 | S30: 0 | T30: 0
Q31: 0 | R31: 0 | S31: 0 | T31: 0
Q32: 0 | R32: 0 | S32: 0 | T32: 0
Q33: 0 | R33: 0 | S33: 0 | T33: 0
Q34: 0 | R34: 0 | S34: 0 | T34: 0
Q35: 0 | R35: 0 | S35: 0 | T35: 0
Q36: 0 | R36: 0 | S36: 0 | T36: 0
Q37: 0 | R37: 0 | S37: 0 | T37: 0
Q38: 0 | R38: 0 | S38: 0 | T38: 0
Q39: 0 | R39: 0 | S39: 0 | T39: 0
Q40: 0 | R40: 0 | S40: 0 | T40: 0
Q41: 0 | R41: 0 | S41: 0 | T41: 0
Q42: 0 | R42: 0 | S42: 0 | T42: 0
Q43: 0 | R43: 0 | S43: 0 | T43: 0
Q44: 0 | R44: 0 | S44: 0 | T44: 0
Q45: 0 | R45: 0 | S45: 0 | T45: 0
Q46: 0 | R46: 0 | S46: 0 | T46: 0
Q47: 0 | R47: 0 | S47: 0 | T47: 0
Q48: 0 | R48: 0 | S48: 0 | T48: 0
Q49: 0 | R49: 0 | S49: 0 | T49: 0
Q50: 0 | R50: 0 | S50: 0 | T50: 0
Q51: 0 | R51: 0 | S51: 0 | T51: 0
Q52: 0 | R52: 0 | S52: 0 | T52: 0
Q53: 0 | R53: 0 | S53: 0 | T53: 0
Q54: 0 | R54: 0 | S54: 0 | T54: 0
Q55: 0 | R55: 0 | S55: 0 | T55: 0
Q56: 0 | R56: 0 | S56: 0 | T56: 0
Q57: 0 | R57: 0 | S57: 0 | T57: 0
Q58: 0 | R58: 0 | S58: 0 | T58: 0
Q59: 0 | R59: 0 | S59: 0 | T59: 0
Q60: 0 | R60: 0 | S60: 0 | T60: 0
Q61: 0 | R61: 0 | S61: 0 | T61: 0
Q62: 0 | R62: 0 | S62: 0 | T62: 0
Q63: 0 | R63: 0 | S63: 0 | T63: 0
Q64: 0 | R64: 0 | S64: 0 | T64: 0
Q65: 0 | R65: 0 | S65: 0 | T65: 0
Q66: 0 | R66: 0 | S66: 0 | T66: 0
Q67: 0 | R67: 0 | S67: 0 | T67: 0
Q68: 0 | R68: 0 | S68: 0 | T68: 0
Q69: 0 | R69: 0 | S69: 0 | T69: 0
Q70: 0 | R70: 0 | S70: 0 | T70: 0
Q71: 0 | R71: 0 | S71: 0 | T71: 0
Q72: 0 | R72: 0 | S72: 0 | T72: 0
Q73: 0 | R73: 0 | S73: 0 | T73: 0
Q74: 0 | R74: 0 | S74: 0 | T74: 0
Q75: 0 | R75: 0 | S75: 0 | T75: 0
Q76: 0 | R76: 0 | S76: 0 | T76: 0
Q77: 0 | R77: 0 | S77: 0 | T77: 0
Q78: 0 | R78: 0 | S78: 0 | T78: 0
Q79: 0 | R79: 0 | S79: 0 | T79: 0
Q80: 0 | R80: 0 | S80: 0 | T80: 0
Q81: 0 | R81: 0 | S81: 0 | T81: 0
Q82: 0 | R82: 0 | S82: 0 | T82: 0
Q83: 0 | R83: 0 | S83: 0 | T83: 0
Q84: 0 | R84: 0 | S84: 0 | T84: 0
Q85: 0 | R85: 0 | S85: 0 | T85: 0
Q86: 0 | R86: 0 | S86: 0 | T86: 0
Q87: 0 | R87: 0 | S87: 0 | T87: 0
Q88: 0 | R88: 0 | S88: 0 | T88: 0
Q89: 0 | R89: 0 | S89: 0 | T89: 0
Q90: 0 | R90: 0 | S90: 0 | T90: 0
Q91: 0 | R91: 0 | S91: 0 | T91: 0
Q92: 0 | R92: 0 | S92: 0 | T92: 0
Q93: 0 | R93: 0 | S93: 0 | T93: 0
Q94: 0 | R94: 0 | S94: 0 | T94: 0
Q95: 0 | R95: 0 | S95: 0 | T95: 0
Q96: 0 | R96: 0 | S96: 0 | T96: 0
Q97: 0 | R97: 0 | S97: 0 | T97: 0
Q98: 0 | R98: 0 | S98: 0 | T98: 0
Q99: 0 | R99: 0 | S99: 0 | T99: 0
Q100: 0 | R100: 0 | S100: 0 | T100: 0
Q101: 0 | R101: 0 | S101: 0 | T101: 0
Q102: 0 | R102: 0 | S102: 0 | T102: 0
Q103: 0 | R103: 0 | S103: 0 | T103: 0
Q104: 0 | R104: 0 | S104: 0 | T104: 0
Q105: 0 | R105: 0 | S105: 0 | T105: 0

Sheet Registro de Turnos (hidden)
B3: CEDULA | C3: Fecha | D3: Total Laboradas | E3: Ordinarias Laboradas | H3: Extras Laboradas
E4: Total | F4: Diurnas | G4: Nocturnas | H4: Total | I4: Diurnas | J4: Nocturnas
B5: 12345678 | C5: 2011-12-23 | D5: 8 | E5: 8 | F5: 8 | G5: 0 | H5: 0 | I5: 0 | J5: 0
B6: 92408250 | C6: 2011-12-23 | D6: 10 | E6: 8 | F6: 8 | G6: 0 | H6: 2 | I6: 2 | J6: 0
B7: 90963745 | C7: 2011-12-23 | D7: 9 | E7: 8 | F7: 6.983333333 | G7: 1.016666667 | H7: 1 | I7: 0 | J7: 1
B8: 96097193 | C8: 2011-12-23 | D8: 12 | E8: 8 | F8: 8 | G8: 0 | H8: 4 | I8: 2.983333333 | J8: 1.016666667
B9: 93638537 | C9: 2011-12-23 | D9: 8 | E9: 8 | F9: 3.983333333 | G9: 4.016666667 | H9: 0 | I9: 0 | J9: 0
B10: 98702520 | C10: 2011-12-23 | D10: 10 | E10: 8 | F10: 0 | G10: 8 | H10: 2 | I10: 2 | J10: 0
B11: 95721889 | C11: 2011-12-23 | D11: 8 | E11: 8 | F11: 8 | G11: 0 | H11: 0 | I11: 0 | J11: 0
B12: 92722045 | C12: 2011-12-23 | D12: 10 | E12: 8 | F12: 8 | G12: 0 | H12: 2 | I12: 2 | J12: 0
B13: 97527365 | C13: 2011-12-23 | D13: 9 | E13: 8 | F13: 6.983333333 | G13: 1.016666667 | H13: 1 | I13: 0 | J13: 1
B14: 97070960 | C14: 2011-12-23 | D14: 12 | E14: 8 | F14: 8 | G14: 0 | H14: 4 | I14: 2.983333333 | J14: 1.016666667
B15: 94144851 | C15: 2011-12-23 | D15: 8 | E15: 8 | F15: 3.983333333 | G15: 4.016666667 | H15: 0 | I15: 0 | J15: 0
B16: 92931162 | C16: 2011-12-23 | D16: 10 | E16: 8 | F16: 0 | G16: 8 | H16: 2 | I16: 2 | J16: 0
B17: 96554557 | C17: 2011-12-23 | D17: 8 | E17: 8 | F17: 8 | G17: 0 | H17: 0 | I17: 0 | J17: 0
B18: 92456336 | C18: 2011-12-23 | D18: 10 | E18: 8 | F18: 8 | G18: 0 | H18: 2 | I18: 2 | J18: 0
B19: 95807147 | C19: 2011-12-23 | D19: 9 | E19: 8 | F19: 6.983333333 | G19: 1.016666667 | H19: 1 | I19: 0 | J19: 1
B20: 92963879 | C20: 2011-12-23 | D20: 12 | E20: 8 | F20: 8 | G20: 0 | H20: 4 | I20: 2.983333333 | J20: 1.016666667
B21: 94180411 | C21: 2011-12-23 | D21: 8 | E21: 8 | F21: 3.983333333 | G21: 4.016666667 | H21: 0 | I21: 0 | J21: 0
B22: 91666050 | C22: 2011-12-23 | D22: 10 | E22: 8 | F22: 0 | G22: 8 | H22: 2 | I22: 2 | J22: 0
B23: 99166507 | C23: 2011-12-23 | D23: 10 | E23: 8 | F23: 0 | G23: 8 | H23: 2 | I23: 2 | J23: 0
B24: 12345678 | C24: 2011-12-26 | D24: 8 | E24: 8 | F24: 8 | G24: 0 | H24: 0 | I24: 0 | J24: 0
B25: 92408250 | C25: 2011-12-26 | D25: 10 | E25: 8 | F25: 8 | G25: 0 | H25: 2 | I25: 2 | J25: 0
B26: 90963745 | C26: 2011-12-26 | D26: 9 | E26: 8 | F26: 6.983333333 | G26: 1.016666667 | H26: 1 | I26: 0 | J26: 1
B27: 96097193 | C27: 2011-12-26 | D27: 12 | E27: 8 | F27: 8 | G27: 0 | H27: 4 | I27: 2.983333333 | J27: 1.016666667
B28: 93638537 | C28: 2011-12-26 | D28: 8 | E28: 8 | F28: 3.983333333 | G28: 4.016666667 | H28: 0 | I28: 0 | J28: 0
B29: 98702520 | C29: 2011-12-26 | D29: 10 | E29: 8 | F29: 0 | G29: 8 | H29: 2 | I29: 2 | J29: 0
B30: 95721889 | C30: 2011-12-26 | D30: 8 | E30: 8 | F30: 8 | G30: 0 | H30: 0 | I30: 0 | J30: 0
B31: 92722045 | C31: 2011-12-26 | D31: 10 | E31: 8 | F31: 8 | G31: 0 | H31: 2 | I31: 2 | J31: 0
B32: 97527365 | C32: 2011-12-26 | D32: 9 | E32: 8 | F32: 6.983333333 | G32: 1.016666667 | H32: 1 | I32: 0 | J32: 1
B33: 97070960 | C33: 2011-12-26 | D33: 12 | E33: 8 | F33: 8 | G33: 0 | H33: 4 | I33: 2.983333333 | J33: 1.016666667
B34: 94144851 | C34: 2011-12-26 | D34: 8 | E34: 8 | F34: 3.983333333 | G34: 4.016666667 | H34: 0 | I34: 0 | J34: 0
B35: 92931162 | C35: 2011-12-26 | D35: 10 | E35: 8 | F35: 0 | G35: 8 | H35: 2 | I35: 2 | J35: 0
B36: 96554557 | C36: 2011-12-26 | D36: 8 | E36: 8 | F36: 8 | G36: 0 | H36: 0 | I36: 0 | J36: 0
B37: 92456336 | C37: 2011-12-26 | D37: 10 | E37: 8 | F37: 8 | G37: 0 | H37: 2 | I37: 2 | J37: 0
B38: 95807147 | C38: 2011-12-26 | D38: 9 | E38: 8 | F38: 6.983333333 | G38: 1.016666667 | H38: 1 | I38: 0 | J38: 1
B39: 92963879 | C39: 2011-12-26 | D39: 12 | E39: 8 | F39: 8 | G39: 0 | H39: 4 | I39: 2.983333333 | J39: 1.016666667
B40: 94180411 | C40: 2011-12-26 | D40: 8 | E40: 8 | F40: 3.983333333 | G40: 4.016666667 | H40: 0 | I40: 0 | J40: 0
B41: 91666050 | C41: 2011-12-26 | D41: 10 | E41: 8 | F41: 0 | G41: 8 | H41: 2 | I41: 2 | J41: 0
B42: 99166507 | C42: 2011-12-26 | D42: 10 | E42: 8 | F42: 0 | G42: 8 | H42: 2 | I42: 2 | J42: 0
B43: 12345678 | C43: =TODAY() -> 2021-08-29 | D43: 8 | E43: 8 | F43: 8 | G43: 0 | H43: 0 | I43: 0 | J43: 0
B44: 92408250 | C44: 2021-08-29 | D44: 10 | E44: 8 | F44: 8 | G44: 0 | H44: 2 | I44: 2 | J44: 0
B45: 90963745 | C45: 2021-08-29 | D45: 9 | E45: 8 | F45: 6.983333333 | G45: 1.016666667 | H45: 1 | I45: 0 | J45: 1
B46: 96097193 | C46: 2021-08-29 | D46: 12 | E46: 8 | F46: 8 | G46: 0 | H46: 4 | I46: 2.983333333 | J46: 1.016666667
B47: 93638537 | C47: 2021-08-29 | D47: 8 | E47: 8 | F47: 3.983333333 | G47: 4.016666667 | H47: 0 | I47: 0 | J47: 0
B48: 98702520 | C48: 2021-08-29 | D48: 10 | E48: 8 | F48: 0 | G48: 8 | H48: 2 | I48: 2 | J48: 0
B49: 95721889 | C49: 2021-08-29 | D49: 8 | E49: 8 | F49: 8 | G49: 0 | H49: 0 | I49: 0 | J49: 0
B50: 92722045 | C50: 2021-08-29 | D50: 10 | E50: 8 | F50: 8 | G50: 0 | H50: 2 | I50: 2 | J50: 0
B51: 97527365 | C51: 2021-08-29 | D51: 9 | E51: 8 | F51: 6.983333333 | G51: 1.016666667 | H51: 1 | I51: 0 | J51: 1
B52: 97070960 | C52: 2021-08-29 | D52: 12 | E52: 8 | F52: 8 | G52: 0 | H52: 4 | I52: 2.983333333 | J52: 1.016666667
B53: 94144851 | C53: 2021-08-29 | D53: 8 | E53: 8 | F53: 3.983333333 | G53: 4.016666667 | H53: 0 | I53: 0 | J53: 0
B54: 92931162 | C54: 2021-08-29 | D54: 10 | E54: 8 | F54: 0 | G54: 8 | H54: 2 | I54: 2 | J54: 0
B55: 96554557 | C55: 2021-08-29 | D55: 8 | E55: 8 | F55: 8 | G55: 0 | H55: 0 | I55: 0 | J55: 0
B56: 92456336 | C56: 2021-08-29 | D56: 10 | E56: 8 | F56: 8 | G56: 0 | H56: 2 | I56: 2 | J56: 0
B57: 95807147 | C57: 2021-08-29 | D57: 9 | E57: 8 | F57: 6.983333333 | G57: 1.016666667 | H57: 1 | I57: 0 | J57: 1
B58: 92963879 | C58: 2021-08-29 | D58: 12 | E58: 8 | F58: 8 | G58: 0 | H58: 4 | I58: 2.983333333 | J58: 1.016666667
B59: 94180411 | C59: 2021-08-29 | D59: 8 | E59: 8 | F59: 3.983333333 | G59: 4.016666667 | H59: 0 | I59: 0 | J59: 0
B60: 91666050 | C60: 2021-08-29 | D60: 10 | E60: 8 | F60: 0 | G60: 8 | H60: 2 | I60: 2 | J60: 0
B61: 99166507 | C61: 2021-08-29 | D61: 10 | E61: 8 | F61: 0 | G61: 8 | H61: 2 | I61: 2 | J61: 0

Sheet Consulta de Turnos por Cédula (hidden)
B2: CEDULA | C2: 83234777
B4: Fecha | C4: Total Laboradas | D4: Ordinarias Laboradas | G4: Extras Laboradas
D5: Total | E5: Diurnas | F5: Nocturnas | G5: Total | H5: Diurnas | I5: Nocturnas
B6: 2011-12-23 | C6: 9 | D6: 8 | E6: 6.983333333 | F6: 1.016666667 | G6: 1 | H6: 0 | I6: 1
B7: 2011-12-26 | C7: 9 | D7: 8 | E7: 6.983333333 | F7: 1.016666667 | G7: 1 | H7: 0 | I7: 1
B8: 2011-12-27 | C8: 9 | D8: 8 | E8: 6.983333333 | F8: 1.016666667 | G8: 1 | H8: 0 | I8: 1
